"Service Area","Expenditure Category","Expenditure Code","Paid Date","Trans No","Amount","Type","Supplier ID","Supplier Name"
"General Fund","Difference A/c","Z910198","03/05/2017","1036863 - 4","-0.01","Revenue","",""
"General Fund","C.I.T.Awaiting Payment","Z970590","19/04/2017","46293406 - 1","8151.9","Revenue","20016580","HMRC"
"General Fund","AR Refunds (Sundries & Periodics)","Z400404","21/04/2017","46293454 - 1","1000","Revenue","36801517","iMP"
"General Fund","AR Refunds (Sundries & Periodics)","Z400404","28/04/2017","46293534 - 1","809.64","Revenue","36725613","TOUCHLOAD LTD"
"General Fund","C.I.T.Awaiting Payment","Z970590","16/05/2017","46293661 - 1","4060.95","Revenue","20016580","HMRC"
"General Fund","AR Refunds (Sundries & Periodics)","Z400404","12/05/2017","46293676 - 0","2021.74","Revenue","36723972","RUSKIN COLLEGE"
"General Fund","AR Refunds (Sundries & Periodics)","Z400404","12/05/2017","46293679 - 1","3385.67","Revenue","36009321","RED OPIA LTD"
"General Fund","AR Refunds (Sundries & Periodics)","Z400404","12/05/2017","46293681 - 1","540","Revenue","36022651","ST CHRISTOPHERS PRIMARY SCHOOL"
"General Fund","AR Refunds (Sundries & Periodics)","Z400404","16/05/2017","46293692 - 1","1250","Revenue","20014454","EMMAUS OXFORD (STORE) LIMITED"
"General Fund","AR Refunds (Sundries & Periodics)","Z400404","19/05/2017","46293791 - 0","500","Revenue","36701489","QUIDDITCH UK"
"General Fund","AR Refunds (Sundries & Periodics)","Z400404","19/05/2017","46293793 - 0","639.73","Revenue","36725179","TOUCHLOAD LTD T/A KINGS SCHOOL"
"General Fund","AR Refunds (Sundries & Periodics)","Z400404","23/05/2017","46293804 - 1","726.44","Revenue","20000000","GENERAL EXPENSES"
"General Fund","C.I.T.Awaiting Payment","Z970590","13/06/2017","46294033 - 1","5416.01","Revenue","20016580","HMRC"
"General Fund","Difference A/c","Z910198","20/06/2017","46294096 - 3","-0.01","Revenue","",""
"General Fund","AR Refunds (Sundries & Periodics)","Z400404","23/06/2017","46294207 - 0","500","Revenue","36022982","BRITISH HEART FOUNDATION"
"General Fund","AR Refunds (Sundries & Periodics)","Z400404","23/06/2017","46294208 - 1","1000","Revenue","36801295","ATHAR ALI & NADIA AZIZ"
"General Fund","AR Refunds (Sundries & Periodics)","Z400404","23/06/2017","46294214 - 1","500","Revenue","36023784","OXFORD HINDU TEMPLE AND COMMUNITY CENTRE PROJECT"
"General Fund","AR Refunds (Sundries & Periodics)","Z400404","23/06/2017","46294215 - 0","500","Revenue","36018462","OXFORD UNIVERSITY HINDU SOCIETY"
"General Fund","AR Refunds (Sundries & Periodics)","Z400404","23/06/2017","46294216 - 1","500","Revenue","36801621","DIGME FITNESS"
"General Fund","AR Refunds (Sundries & Periodics)","Z400404","23/06/2017","46294222 - 1","607.41","Revenue","36725660","WEBB ONE LTD T/A MCDONALDS BOTLEY"
"Assistant Chief Executive","General Contracted Services","D3401","04/04/2017","1036241 - 0","800","Revenue","20003025","PETE RUSSELL"
"Assistant Chief Executive","Consultants Fees","D3411","25/04/2017","1036401 - 0","43900","Revenue","20018173","MARKET & OPINION RESEARCH INTERNATIONAL LTD T/A IPSOS MORI"
"Assistant Chief Executive","Contract Printing (External)","D3303","11/04/2017","1036443 - 0","3675","Revenue","20011523","HERALD CHASE"
"Assistant Chief Executive","General Stationery Supplies","D3301","11/04/2017","1036443 - 1","1450","Revenue","20011523","HERALD CHASE"
"Assistant Chief Executive","Postage & Carriage","D3501","11/04/2017","1036443 - 2","20192.16","Revenue","20011523","HERALD CHASE"
"Assistant Chief Executive","Grants","D3701","25/04/2017","1036444 - 0","1000","Revenue","20016727","AGE UK OXFORDSHIRE"
"Assistant Chief Executive","Temporary Bureau Staffing","A0108","11/04/2017","1036673 - 0","16330","Revenue","20016203","PENNA PLC"
"Assistant Chief Executive","Advertising & Publicity","D3802","25/04/2017","1036824 - 0","14950","Revenue","20004336","HEMMING GROUP LTD"
"Assistant Chief Executive","Grants","D3701","16/05/2017","1036906 - 1","6000","Revenue","20013670","RESOURCE FUTURES LTD"
"Assistant Chief Executive","Staff Advertising","A0702","03/05/2017","1037022 - 0","1950","Revenue","20015377"," GUARDIAN NEWS & MEDIA LTD"
"Assistant Chief Executive","Away Days","A0635","06/06/2017","1037294 - 0","510","Revenue","20011651","UNIVERSITY OF OXFORD"
"Assistant Chief Executive","General Contracted Services","D3401","31/05/2017","1037394 - 0","1300","Revenue","20015995","OXFORD DIGITAL MEDIA LTD"
"Assistant Chief Executive","General Contracted Services","D3401","31/05/2017","1037407 - 0","5000","Revenue","20019473","WATERSHED ARTS TRUST LTD"
"Assistant Chief Executive","Temporary Bureau Staffing","A0108","16/05/2017","1037424 - 0","12070","Revenue","20016203","PENNA PLC"
"Assistant Chief Executive","Consultants Fees","D3411","31/05/2017","1037457 - 0","6930","Revenue","20016203","PENNA PLC"
"Assistant Chief Executive","Consultants Fees","D3411","31/05/2017","1037458 - 0","9240","Revenue","20016203","PENNA PLC"
"Assistant Chief Executive","General Contracted Services","D3401","13/06/2017","1037749 - 1","850","Revenue","20015995","OXFORD DIGITAL MEDIA LTD"
"Assistant Chief Executive","General Contracted Services","D3401","06/06/2017","1037764 - 0","580","Revenue","20017948","INSPIRING DRAMA (THOMAS BROOKS)"
"Assistant Chief Executive","Main Contractor","Y021","06/06/2017","1037872 - 0","4550","Capital","20019436","REGIONAL NETWORKING SOLUTIONS LTD"
"Assistant Chief Executive","Staff Advertising","A0702","27/06/2017","1037957 - 0","2950","Revenue","20004336","HEMMING GROUP LTD"
"Assistant Chief Executive","General Contracted Services","D3401","13/06/2017","1037971 - 0","4800","Revenue","20019600","ACCESS INTELLIGENCE MEDIA & COMMUNICATIONS LTD"
"Assistant Chief Executive","Contract Printing (External)","D3303","27/06/2017","1038022 - 0","4648","Revenue","20019080","MORTONS MEDIA GROUP LTD"
"Assistant Chief Executive","Main Contractor","Y021","19/04/2017","46293414 - 21","4217.76","Capital","20018053","REED SPECIALIST RECRUITMENT LTD"
"Assistant Chief Executive","Temporary Bureau Staffing","A0108","19/04/2017","46293414 - 26","3865.21","Revenue","20018053","REED SPECIALIST RECRUITMENT LTD"
"Assistant Chief Executive","Temporary Bureau Staffing","A0108","25/04/2017","46293486 - 1","16330","Revenue","20016203","PENNA PLC"
"Assistant Chief Executive","Temporary Bureau Staffing","A0108","16/05/2017","46293675 - 11","3211.18","Revenue","20018053","REED SPECIALIST RECRUITMENT LTD"
"Assistant Chief Executive","Temporary Bureau Staffing","A0108","16/05/2017","46293712 - 1","16330","Revenue","20016203","PENNA PLC"
"Assistant Chief Executive","Consultants Fees","D3411","23/05/2017","46293772 - 1","12810","Revenue","20018173","MARKET & OPINION RESEARCH INTERNATIONAL LTD T/A IPSOS MORI"
"Assistant Chief Executive","Temporary Bureau Staffing","A0108","13/06/2017","46294016 - 21","2858.03","Revenue","20018053","REED SPECIALIST RECRUITMENT LTD"
"Transformation","Subscriptions","D3703","19/04/2017","1036296 - 0","2451","Revenue","20019201","BARBOUR-ABI"
"Transformation","Software Maintenance/Running Costs","D3513","11/04/2017","1036402 - 0","3737.13","Revenue","20016801","BYTES SOFTWARE SERVICES LTD"
"Transformation","General Contracted Services","D3401","11/04/2017","1036537 - 0","2306","Revenue","20008015","M TECH COMUNICATIONS BRISTOL LTD"
"Transformation","Consultants Fees","D3411","19/04/2017","1036819 - 0","3800","Revenue","20013463","IDOX SOFTWARE LTD"
"Transformation","Reactive Maintenance & Minor Repairs","B1101","31/05/2017","1037179 - 0","1749.4","Revenue","20016526","FLEXIFORM BUSINESS FURNITURE LTD"
"Transformation","IT Skills Development","A0638","31/05/2017","1037693 - 0","1840","Revenue","20019432","GLOBELINK (UK) LTD"
"Transformation","Temporary Bureau Staffing","A0108","27/06/2017","1037987 - 0","2400","Revenue","20006509","SOCITM LIMITED"
"Transformation","Software Purchase","D3511","20/06/2017","1038172 - 0","1005.31","Revenue","20016801","BYTES SOFTWARE SERVICES LTD"
"Transformation","Temporary Bureau Staffing","A0108","19/04/2017","46293414 - 12","14422.82","Revenue","20018053","REED SPECIALIST RECRUITMENT LTD"
"Transformation","Temporary Bureau Staffing","A0108","16/05/2017","46293675 - 3","6249.55","Revenue","20018053","REED SPECIALIST RECRUITMENT LTD"
"Transformation","Temporary Bureau Staffing","A0108","13/06/2017","46294016 - 12","15364.19","Revenue","20018053","REED SPECIALIST RECRUITMENT LTD"
"Business Improvement","Consultants Fees","D3411","04/04/2017","1033628 - 0","5000","Revenue","20013463","IDOX SOFTWARE LTD"
"Business Improvement","Software Maintenance/Running Costs","D3513","11/04/2017","1035372 - 1","784","Revenue","20006940","BT GLOBAL SERVIES"
"Business Improvement","Software Maintenance/Running Costs","D3513","11/04/2017","1035883 - 0","5640","Revenue","20017717","WORKBOOKS ONLINE LTD"
"Business Improvement","Servitor","D3508","04/04/2017","1035887 - 0","85133.38","Revenue","20010153","CIVICA UK LTD"
"Business Improvement","Hospitality","D3803","04/04/2017","1036037 - 0","561.5","Revenue","20017971","A & J CATERING (OXFORDSHIRE) LTD"
"Business Improvement","General Contracted Services","D3401","11/04/2017","1036067 - 0","1300","Revenue","20011589","CAPITA BUSINESS SERVICES LTD"
"Business Improvement","Hardware Purchase","D3520","11/04/2017","1036089 - 0","370","Revenue","20015962","HANDS FREE COMPUTING LTD"
"Business Improvement","Software Purchase","D3511","11/04/2017","1036089 - 1","334.95","Revenue","20015962","HANDS FREE COMPUTING LTD"
"Business Improvement","External Telephone Charges","D3503","11/04/2017","1036112 - 1","1774.39","Revenue","20016411","""JOHNNIE"" JOHNSON HOUSING TRUST"
"Business Improvement","Main Contractor","Y021","11/04/2017","1036152 - 0","8100","Capital","20019354","INTEGRA ASSOCIATES"
"Business Improvement","Main Contractor","Y021","11/04/2017","1036152 - 1","-900","Capital","20019354","INTEGRA ASSOCIATES"
"Business Improvement","Hardware Purchase","D3520","19/04/2017","1036176 - 0","1079","Revenue","20002302","MISCO"
"Business Improvement","Consultants Fees","D3411","04/04/2017","1036178 - 1","10575","Revenue","20008268","UNIT 4 BUSINESS SOFTWARE LTD."
"Business Improvement","Consultants Fees","D3411","04/04/2017","1036179 - 1","2750","Revenue","20008268","UNIT 4 BUSINESS SOFTWARE LTD."
"Business Improvement","Consultants Fees","D3411","04/04/2017","1036184 - 1","3300","Revenue","20008268","UNIT 4 BUSINESS SOFTWARE LTD."
"Business Improvement","Police Checks","D3429","04/04/2017","1036187 - 0","492.5","Revenue","20010933","KENT COUNTY COUNCIL"
"Business Improvement","Travel Scheme Discount","C2505","04/04/2017","1036193 - 1","907.4","Revenue","20006596","OXFORD BUS COMPANY LTD"
"Business Improvement","Software Maintenance/Running Costs","D3513","19/04/2017","1036289 - 0","2105","Revenue","20017849","NETCALL TELECOM LTD"
"Business Improvement","Software Maintenance/Running Costs","D3513","19/04/2017","1036299 - 0","2018.92","Revenue","20012320","NORTHGATE PUBLIC SERVICES (UK) LTD"
"Business Improvement","Corporate Development Programme","A0631","04/04/2017","1036305 - 0","800","Revenue","20003025","PETE RUSSELL"
"Business Improvement","Software Maintenance/Running Costs","D3513","19/04/2017","1036328 - 0","1115","Revenue","20017849","NETCALL TELECOM LTD"
"Business Improvement","Software Maintenance/Running Costs","D3513","19/04/2017","1036346 - 0","6573.13","Revenue","20007877","COMPUTACENTER (UK) LTD"
"Business Improvement","Software Maintenance/Running Costs","D3513","19/04/2017","1036347 - 0","26534","Revenue","20008475","ESRI (UK) LTD"
"Business Improvement","Temporary Bureau Staffing","A0108","04/04/2017","1036351 - 0","4375","Revenue","20013052","SCC (SPECIALIST COMPUTER CENTRES PLC)"
"Business Improvement","Main Contractor","Y021","25/04/2017","1036352 - 0","5400","Capital","20018839","JADU LTD"
"Business Improvement","Temporary Bureau Staffing","A0108","04/04/2017","1036353 - 0","20125","Revenue","20013052","SCC (SPECIALIST COMPUTER CENTRES PLC)"
"Business Improvement","Software Maintenance/Running Costs","D3513","04/04/2017","1036355 - 1","525.82","Revenue","20012320","NORTHGATE PUBLIC SERVICES (UK) LTD"
"Business Improvement","Staff Advertising","A0702","04/04/2017","1036391 - 0","1295","Revenue","20019180","UBM (UK) Ltd"
"Business Improvement","Compliance Training (H&S)","A0630","25/04/2017","1036398 - 0","737.91","Revenue","20018748","OPTUM HEALTH SOLUTIONS (UK) LTD"
"Business Improvement","Temporary Bureau Staffing","A0108","25/04/2017","1036405 - 0","5000","Revenue","20006509","SOCITM LIMITED"
"Business Improvement","Consultants Fees","D3411","04/04/2017","1036409 - 0","1680","Revenue","20018873","ISCAPE SOLUTIONS"
"Business Improvement","External Telephone Charges","D3503","04/04/2017","1036411 - 1","750","Revenue","20008028","VODAFONE LIMITED (CORPORATE)"
"Business Improvement","External Telephone Charges","D3503","04/04/2017","1036411 - 2","50","Revenue","20008028","VODAFONE LIMITED (CORPORATE)"
"Business Improvement","Hardware Purchase","D3520","04/04/2017","1036412 - 0","1800","Revenue","20006940","BT GLOBAL SERVIES"
"Business Improvement","General Contracted Services","D3401","04/04/2017","1036414 - 0","22800","Revenue","20013052","SCC (SPECIALIST COMPUTER CENTRES PLC)"
"Business Improvement","General Contracted Services","D3401","04/04/2017","1036416 - 0","45601.63","Revenue","20013052","SCC (SPECIALIST COMPUTER CENTRES PLC)"
"Business Improvement","General Contracted Services","D3401","04/04/2017","1036417 - 0","45601.03","Revenue","20013052","SCC (SPECIALIST COMPUTER CENTRES PLC)"
"Business Improvement","Temporary Bureau Staffing","A0108","04/04/2017","1036418 - 0","12687.5","Revenue","20013052","SCC (SPECIALIST COMPUTER CENTRES PLC)"
"Business Improvement","General Contracted Services","D3401","04/04/2017","1036451 - 0","97794.75","Revenue","20013052","SCC (SPECIALIST COMPUTER CENTRES PLC)"
"Business Improvement","CRM Database","D3514","25/04/2017","1036464 - 0","51807","Revenue","20014697","KANA SOFTWARE IRELAND LTD"
"Business Improvement","Temporary Bureau Staffing","A0108","25/04/2017","1036478 - 0","2187.5","Revenue","20013052","SCC (SPECIALIST COMPUTER CENTRES PLC)"
"Business Improvement","Furniture & Equipment Purchase","D3001","11/04/2017","1036500 - 0","594.7","Revenue","20009620","POSTURITE LTD"
"Business Improvement","Software Maintenance/Running Costs","D3513","25/04/2017","1036522 - 0","3625","Revenue","20018060","R & A SOFTWARE SYSTEMS T/A RA INFORM SYSTEMS"
"Business Improvement","Furniture & Equipment Purchase","D3001","25/04/2017","1036534 - 0","1650","Revenue","20015868","RISKEX LIMITED"
"Business Improvement","Software Maintenance/Running Costs","D3513","11/04/2017","1036536 - 0","480","Revenue","20018572","AGILE COLLECTIVE LTD"
"Business Improvement","Software Maintenance/Running Costs","D3513","03/05/2017","1036558 - 0","8010","Revenue","20016668","MODERN MINDSET LTD"
"Business Improvement","Main Contractor","Y021","03/05/2017","1036612 - 1","1800","Capital","20019354","INTEGRA ASSOCIATES"
"Business Improvement","General Stationery Supplies","D3301","25/04/2017","1036626 - 0","1916.86","Revenue","20007849","LYRECO UK LTD"
"Business Improvement","Postage & Carriage","D3501","11/04/2017","1036638 - 1","2499.8","Revenue","20016588","VODAFONE LTD"
"Business Improvement","Consultants Fees","D3411","11/04/2017","1036669 - 0","4845","Revenue","20018456","FIRST LINE TELECOMS LTD"
"Business Improvement","Advertising & Publicity","D3802","03/05/2017","1036675 - 0","460","Revenue","20018976","SILK GROUP LTD"
"Business Improvement","Network Rental","D3531","11/04/2017","1036685 - 1","4716.67","Revenue","20016588","VODAFONE LTD"
"Business Improvement","Stamp Duty & Other Legal Fees","D3415","25/04/2017","1036715 - 0","597","Revenue","20002930","OXFORDSHIRE COUNTY COUNCIL"
"Business Improvement","Contract Printing (External)","D3303","03/05/2017","1036740 - 0","1166","Revenue","20002930","OXFORDSHIRE COUNTY COUNCIL"
"Business Improvement","Corporate Development Programme","A0631","09/05/2017","1036742 - 0","3500","Revenue","20019479","DAISY BOGG CONSULTANCY LTD"
"Business Improvement","Software Maintenance/Running Costs","D3513","03/05/2017","1036772 - 0","775.36","Revenue","20003193","ORDNANCE SURVEY"
"Business Improvement","Software Maintenance/Running Costs","D3513","03/05/2017","1036778 - 0","35000","Revenue","20011589","CAPITA BUSINESS SERVICES LTD"
"Business Improvement","Software Purchase","D3511","03/05/2017","1036778 - 1","22835","Revenue","20011589","CAPITA BUSINESS SERVICES LTD"
"Business Improvement","Consultants Fees","D3411","03/05/2017","1036778 - 2","10631","Revenue","20011589","CAPITA BUSINESS SERVICES LTD"
"Business Improvement","Software Maintenance/Running Costs","D3513","25/04/2017","1036793 - 0","1300","Revenue","20012320","NORTHGATE PUBLIC SERVICES (UK) LTD"
"Business Improvement","Network Rental","D3531","25/04/2017","1036804 - 1","4716.67","Revenue","20016588","VODAFONE LTD"
"Business Improvement","Consultants Fees","D3411","19/04/2017","1036817 - 0","950","Revenue","20013463","IDOX SOFTWARE LTD"
"Business Improvement","Consultants Fees","D3411","19/04/2017","1036818 - 0","950","Revenue","20013463","IDOX SOFTWARE LTD"
"Business Improvement","Consultants Fees","D3411","19/04/2017","1036820 - 0","950","Revenue","20013463","IDOX SOFTWARE LTD"
"Business Improvement","Short Courses","A0622","09/05/2017","1036839 - 0","1250","Revenue","20018972","MAYBO LTD"
"Business Improvement","Software Maintenance/Running Costs","D3513","25/04/2017","1036853 - 0","2650","Revenue","20019354","INTEGRA ASSOCIATES"
"Business Improvement","External Telephone Charges","D3503","03/05/2017","1036863 - 1","26006.68","Revenue","20006940","BT GLOBAL SERVIES"
"Business Improvement","Management Development","A0637","25/04/2017","1036897 - 0","610","Revenue","20017664","GREENBANK LTD"
"Business Improvement","General Contracted Services","D3401","23/05/2017","1036920 - 0","3700.5","Revenue","20019405","ROCKSURE SYSTEMS LTD"
"Business Improvement","Furniture & Equipment Purchase","D3001","16/05/2017","1036943 - 0","602.69","Revenue","20009620","POSTURITE LTD"
"Business Improvement","General Contracted Services","D3401","03/05/2017","1036947 - 0","1007.5","Revenue","20011523","HERALD CHASE"
"Business Improvement","Hardware Rental","D3521","03/05/2017","1036972 - 0","654.92","Revenue","20018722","SHARP BUSINESS SYSTEMS UK PLC"
"Business Improvement","Subscriptions","D3703","16/05/2017","1036987 - 0","1701","Revenue","20019410","CITY & GUILDS ILM"
"Business Improvement","Contract Printing (External)","D3303","09/05/2017","1036993 - 0","619.52","Revenue","20019101","CRITIQOM LTD"
"Business Improvement","Software Maintenance/Running Costs","D3513","03/05/2017","1037018 - 0","12508.07","Revenue","20013927","XPRESS SOFTWARE SOLUTIONS LTD"
"Business Improvement","Software Maintenance/Running Costs","D3513","16/05/2017","1037021 - 0","505.57","Revenue","20012320","NORTHGATE PUBLIC SERVICES (UK) LTD"
"Business Improvement","Travel Scheme Discount","C2505","03/05/2017","1037059 - 1","1496.7","Revenue","20006596","OXFORD BUS COMPANY LTD"
"Business Improvement","Software Purchase","D3511","09/05/2017","1037073 - 0","2085.88","Revenue","20016801","BYTES SOFTWARE SERVICES LTD"
"Business Improvement","Software Maintenance/Running Costs","D3513","03/05/2017","1037079 - 1","784","Revenue","20006940","BT GLOBAL SERVIES"
"Business Improvement","Contract Printing (External)","D3303","03/05/2017","1037085 - 0","5385","Revenue","20002930","OXFORDSHIRE COUNTY COUNCIL"
"Business Improvement","Software Maintenance/Running Costs","D3513","09/05/2017","1037115 - 0","13200","Revenue","20018810","INTEC FOR BUSINESS LTD"
"Business Improvement","Main Contractor","Y021","23/05/2017","1037134 - 0","151921.12","Capital","20019420","KENT COUNTY SUPPLIES"
"Business Improvement","Temporary Bureau Staffing","A0108","23/05/2017","1037146 - 0","3600","Revenue","20006509","SOCITM LIMITED"
"Business Improvement","Software Maintenance/Running Costs","D3513","31/05/2017","1037156 - 0","6780","Revenue","20019212","XN LEISURE SYSTEMS LTD"
"Business Improvement","Software Maintenance/Running Costs","D3513","09/05/2017","1037157 - 0","480","Revenue","20018572","AGILE COLLECTIVE LTD"
"Business Improvement","External Telephone Charges","D3503","16/05/2017","1037166 - 1","1848.27","Revenue","20006940","BT GLOBAL SERVIES"
"Business Improvement","Software Maintenance/Running Costs","D3513","23/05/2017","1037206 - 0","950","Revenue","20012320","NORTHGATE PUBLIC SERVICES (UK) LTD"
"Business Improvement","Postage & Carriage","D3501","16/05/2017","1037222 - 0","481.78","Revenue","20019101","CRITIQOM LTD"
"Business Improvement","Postage & Carriage","D3501","09/05/2017","1037224 - 0","3680.86","Revenue","20019101","CRITIQOM LTD"
"Business Improvement","Postage & Carriage","D3501","09/05/2017","1037225 - 0","1520.52","Revenue","20019101","CRITIQOM LTD"
"Business Improvement","General Contracted Services","D3401","23/05/2017","1037228 - 0","1600","Revenue","20013052","SCC (SPECIALIST COMPUTER CENTRES PLC)"
"Business Improvement","Photocopying/Paper Supplies","D3306","23/05/2017","1037246 - 0","5437.11","Revenue","20018722","SHARP BUSINESS SYSTEMS UK PLC"
"Business Improvement","Network Rental","D3531","16/05/2017","1037263 - 1","4716.67","Revenue","20016588","VODAFONE LTD"
"Business Improvement","Software Maintenance/Running Costs","D3513","31/05/2017","1037293 - 0","2300","Revenue","20019354","INTEGRA ASSOCIATES"
"Business Improvement","Software Purchase","D3511","31/05/2017","1037304 - 0","7081.65","Revenue","20011589","CAPITA BUSINESS SERVICES LTD"
"Business Improvement","General Stationery Supplies","D3301","31/05/2017","1037386 - 0","1648.21","Revenue","20007849","LYRECO UK LTD"
"Business Improvement","Hardware Rental","D3521","16/05/2017","1037387 - 0","919.85","Revenue","20008022","NEOPOST FINANCE LIMITED"
"Business Improvement","Hardware Purchase","D3520","06/06/2017","1037403 - 0","14000","Revenue","20019579","F15 TECHNOLOGY LTD T/A 4NETWORKS.CO.UK"
"Business Improvement","Postage & Carriage","D3501","23/05/2017","1037419 - 0","727.72","Revenue","20019101","CRITIQOM LTD"
"Business Improvement","Software Maintenance/Running Costs","D3513","06/06/2017","1037456 - 0","38205","Revenue","20017849","NETCALL TELECOM LTD"
"Business Improvement","Software Maintenance/Running Costs","D3513","23/05/2017","1037474 - 0","5500","Revenue","20018517","TMI SYSTEMS LIMITED"
"Business Improvement","Staff Advertising","A0702","23/05/2017","1037504 - 0","1100","Revenue","20009528","HAYMARKET MEDIA GROUP"
"Business Improvement","Postage & Carriage","D3501","31/05/2017","1037517 - 0","707.31","Revenue","20019101","CRITIQOM LTD"
"Business Improvement","Short Courses","A0622","23/05/2017","1037524 - 0","2400","Revenue","20019565","ACTIVATE ENTERPRISE"
"Business Improvement","External Telephone Charges","D3503","23/05/2017","1037549 - 1","728.57","Revenue","20008028","VODAFONE LIMITED (CORPORATE)"
"Business Improvement","Software Maintenance/Running Costs","D3513","13/06/2017","1037572 - 0","7590","Revenue","20013113","CADLINE LTD"
"Business Improvement","Consultants Fees","D3411","23/05/2017","1037605 - 0","5012.5","Revenue","20017632","DURADIAMOND HEALTHCARE LTD"
"Business Improvement","Contract Printing (External)","D3303","23/05/2017","1037609 - 0","1520.11","Revenue","20019101","CRITIQOM LTD"
"Business Improvement","Online Services","D3510","06/06/2017","1037620 - 0","1220","Revenue","20009660","EXPERIAN LTD"
"Business Improvement","Hospitality","D3803","13/06/2017","1037626 - 0","3484.6","Revenue","20017971","A & J CATERING (OXFORDSHIRE) LTD"
"Business Improvement","Software Maintenance/Running Costs","D3513","13/06/2017","1037629 - 0","5172","Revenue","20009966","EXEGESIS SDM LTD"
"Business Improvement","Short Courses","A0622","31/05/2017","1037630 - 0","805.5","Revenue","20009620","POSTURITE LTD"
"Business Improvement","Hardware Purchase","D3520","13/06/2017","1037632 - 0","5816","Revenue","20019579","F15 TECHNOLOGY LTD T/A 4NETWORKS.CO.UK"
"Business Improvement","Contract Printing (External)","D3303","13/06/2017","1037637 - 0","3943","Revenue","20002930","OXFORDSHIRE COUNTY COUNCIL"
"Business Improvement","Hardware Rental","D3521","06/06/2017","1037660 - 0","1005.11","Revenue","20018722","SHARP BUSINESS SYSTEMS UK PLC"
"Business Improvement","Hardware Rental","D3521","06/06/2017","1037661 - 0","2964.55","Revenue","20018722","SHARP BUSINESS SYSTEMS UK PLC"
"Business Improvement","Subscriptions","D3703","13/06/2017","1037672 - 0","2362.5","Revenue","20010691","REED BUSINESS INFORMATION LTD"
"Business Improvement","Subscriptions","D3703","13/06/2017","1037672 - 1","2362.5","Revenue","20010691","REED BUSINESS INFORMATION LTD"
"Business Improvement","IT Skills Development","A0638","13/06/2017","1037681 - 0","2500","Revenue","20007875","MIDLAND HR"
"Business Improvement","Software Maintenance/Running Costs","D3513","31/05/2017","1037694 - 0","35600","Revenue","20008268","UNIT 4 BUSINESS SOFTWARE LTD."
"Business Improvement","IT Skills Development","A0638","06/06/2017","1037712 - 0","1350","Revenue","20016801","BYTES SOFTWARE SERVICES LTD"
"Business Improvement","Postage & Carriage","D3501","06/06/2017","1037718 - 0","754.79","Revenue","20019101","CRITIQOM LTD"
"Business Improvement","Software Maintenance/Running Costs","D3513","20/06/2017","1037723 - 0","749.93","Revenue","20012320","NORTHGATE PUBLIC SERVICES (UK) LTD"
"Business Improvement","Furniture & Equipment Purchase","D3001","31/05/2017","1037730 - 0","602.69","Revenue","20009620","POSTURITE LTD"
"Business Improvement","Short Courses","A0622","31/05/2017","1037732 - 0","2174.97","Revenue","20019520","JTL TRAINING"
"Business Improvement","Postage & Carriage","D3501","13/06/2017","1037760 - 0","645.68","Revenue","20019101","CRITIQOM LTD"
"Business Improvement","Software Maintenance/Running Costs","D3513","20/06/2017","1037772 - 0","925.65","Revenue","20007875","MIDLAND HR"
"Business Improvement","Software Maintenance/Running Costs","D3513","20/06/2017","1037773 - 0","514.25","Revenue","20007875","MIDLAND HR"
"Business Improvement","Software Maintenance/Running Costs","D3513","20/06/2017","1037774 - 1","5656.75","Revenue","20007875","MIDLAND HR"
"Business Improvement","Software Maintenance/Running Costs","D3513","20/06/2017","1037775 - 1","8963.61","Revenue","20007875","MIDLAND HR"
"Business Improvement","External Telephone Charges","D3503","06/06/2017","1037806 - 1","711.89","Revenue","20008028","VODAFONE LIMITED (CORPORATE)"
"Business Improvement","Travel Scheme Discount","C2505","06/06/2017","1037818 - 1","1619","Revenue","20006596","OXFORD BUS COMPANY LTD"
"Business Improvement","Software Maintenance/Running Costs","D3513","06/06/2017","1037819 - 1","784","Revenue","20006940","BT GLOBAL SERVIES"
"Business Improvement","Software Maintenance/Running Costs","D3513","06/06/2017","1037856 - 0","6150","Revenue","20015282","INOVEM LTD"
"Business Improvement","Consultants Fees","D3411","06/06/2017","1037857 - 0","5492.5","Revenue","20017632","DURADIAMOND HEALTHCARE LTD"
"Business Improvement","Software Maintenance/Running Costs","D3513","13/06/2017","1037885 - 0","8900","Revenue","20008268","UNIT 4 BUSINESS SOFTWARE LTD."
"Business Improvement","General Contracted Services","D3401","27/06/2017","1037917 - 0","1900","Revenue","20013052","SCC (SPECIALIST COMPUTER CENTRES PLC)"
"Business Improvement","General Contracted Services","D3401","27/06/2017","1037918 - 1","48985.15","Revenue","20013052","SCC (SPECIALIST COMPUTER CENTRES PLC)"
"Business Improvement","General Contracted Services","D3401","27/06/2017","1037919 - 0","4800","Revenue","20013052","SCC (SPECIALIST COMPUTER CENTRES PLC)"
"Business Improvement","Conferences/Seminars","A0636","27/06/2017","1037928 - 0","2794.1","Revenue","20019577","MACNAUGHTON MCGREGOR LTD"
"Business Improvement","Software Maintenance/Running Costs","D3513","09/06/2017","1037936 - 0","6410","Revenue","20015657","DUE NORTH LIMITED"
"Business Improvement","Hardware Purchase","D3520","27/06/2017","1037972 - 0","576","Revenue","20019579","F15 TECHNOLOGY LTD T/A 4NETWORKS.CO.UK"
"Business Improvement","Software Maintenance/Running Costs","D3513","27/06/2017","1037980 - 0","2000","Revenue","20011511","DATASTOX LIMITED"
"Business Improvement","General Stationery Supplies","D3301","27/06/2017","1037984 - 0","1307.95","Revenue","20007849","LYRECO UK LTD"
"Business Improvement","Software Maintenance/Running Costs","D3513","13/06/2017","1037985 - 0","480","Revenue","20018572","AGILE COLLECTIVE LTD"
"Business Improvement","Temporary Bureau Staffing","A0108","27/06/2017","1037988 - 0","1400","Revenue","20006509","SOCITM LIMITED"
"Business Improvement","Contract Printing (External)","D3303","27/06/2017","1038052 - 0","937.6","Revenue","20019101","CRITIQOM LTD"
"Business Improvement","Postage & Carriage","D3501","27/06/2017","1038056 - 0","786.53","Revenue","20019101","CRITIQOM LTD"
"Business Improvement","Network Rental","D3531","20/06/2017","1038065 - 1","4716.67","Revenue","20016588","VODAFONE LTD"
"Business Improvement","Rent","B1701","20/06/2017","1038075 - 1","5487.48","Revenue","20017686","WORKMAN LLP"
"Business Improvement","Rent","B1701","20/06/2017","1038076 - 1","12612.64","Revenue","20017686","WORKMAN LLP"
"Business Improvement","Travel Scheme Discount","C2505","20/06/2017","1038081 - 1","1163.2","Revenue","20006596","OXFORD BUS COMPANY LTD"
"Business Improvement","Health Screening","D3428","20/06/2017","1038117 - 0","699","Revenue","20017632","DURADIAMOND HEALTHCARE LTD"
"Business Improvement","Conferences/Seminars","A0636","20/06/2017","1038190 - 0","1918","Revenue","20016197","THE KING'S CENTRE LTD"
"Business Improvement","Consultants Fees","D3411","27/06/2017","1038269 - 0","6175","Revenue","20014438","NORTHGATE ARINSO UK LTD"
"Business Improvement","Software Maintenance/Running Costs","D3513","27/06/2017","1038311 - 0","2200","Revenue","20019354","INTEGRA ASSOCIATES"
"Business Improvement","Consultants Fees","D3411","27/06/2017","1038330 - 1","5151.88","Revenue","20017632","DURADIAMOND HEALTHCARE LTD"
"Business Improvement","Software Maintenance/Running Costs","D3513","27/06/2017","1038354 - 0","3070.01","Revenue","20016801","BYTES SOFTWARE SERVICES LTD"
"Business Improvement","Consultants Fees","D3411","07/04/2017","46291798 - 1","4340","Revenue","20009010","DOCUMENT OUTPUT SOLUTIONS LTD"
"Business Improvement","Network Rental","D3531","04/04/2017","46293217 - 1","2493.96","Revenue","20008028","VODAFONE LIMITED (CORPORATE)"
"Business Improvement","Consultants Fees","D3411","25/04/2017","46293331 - 1","225","Revenue","20011499","TOPS"
"Business Improvement","Consultants Fees","D3411","25/04/2017","46293331 - 16","84","Revenue","20011499","TOPS"
"Business Improvement","General Contracted Services","D3401","25/04/2017","46293408 - 1","45601.03","Revenue","20013052","SCC (SPECIALIST COMPUTER CENTRES PLC)"
"Business Improvement","Temporary Bureau Staffing","A0108","19/04/2017","46293414 - 8","3935.62","Revenue","20018053","REED SPECIALIST RECRUITMENT LTD"
"Business Improvement","Temporary Bureau Staffing","A0108","19/04/2017","46293414 - 9","10216","Revenue","20018053","REED SPECIALIST RECRUITMENT LTD"
"Business Improvement","Temporary Bureau Staffing","A0108","19/04/2017","46293414 - 10","1150.52","Revenue","20018053","REED SPECIALIST RECRUITMENT LTD"
"Business Improvement","Temporary Bureau Staffing","A0108","19/04/2017","46293414 - 11","26733.5","Revenue","20018053","REED SPECIALIST RECRUITMENT LTD"
"Business Improvement","Consultants Fees","D3411","31/05/2017","46293671 - 2","57","Revenue","20011499","TOPS"
"Business Improvement","Consultants Fees","D3411","31/05/2017","46293671 - 12","84","Revenue","20011499","TOPS"
"Business Improvement","Temporary Bureau Staffing","A0108","16/05/2017","46293675 - 5","10533.67","Revenue","20018053","REED SPECIALIST RECRUITMENT LTD"
"Business Improvement","Temporary Bureau Staffing","A0108","16/05/2017","46293675 - 6","12954.98","Revenue","20018053","REED SPECIALIST RECRUITMENT LTD"
"Business Improvement","Short Courses","A0622","23/05/2017","46293767 - 1","1000","Revenue","20019565","ACTIVATE ENTERPRISE"
"Business Improvement","Temporary Bureau Staffing","A0108","13/06/2017","46294016 - 9","11015.74","Revenue","20018053","REED SPECIALIST RECRUITMENT LTD"
"Business Improvement","Temporary Bureau Staffing","A0108","13/06/2017","46294016 - 10","1314.88","Revenue","20018053","REED SPECIALIST RECRUITMENT LTD"
"Business Improvement","Temporary Bureau Staffing","A0108","13/06/2017","46294016 - 11","17665.89","Revenue","20018053","REED SPECIALIST RECRUITMENT LTD"
"Business Improvement","Temporary Bureau Staffing","A0108","13/06/2017","46294016 - 15","2104.51","Revenue","20018053","REED SPECIALIST RECRUITMENT LTD"
"Business Improvement","Consultants Fees","D3411","31/05/2017","46294052 - 3","42","Revenue","20011499","TOPS"
"Business Improvement","Consultants Fees","D3411","31/05/2017","46294052 - 12","42","Revenue","20011499","TOPS"
"Business Improvement","Consultants Fees","D3411","27/06/2017","46294284 - 3","42","Revenue","20011499","TOPS"
"Business Improvement","Consultants Fees","D3411","27/06/2017","46294284 - 12","42","Revenue","20011499","TOPS"
"Business Improvement","Electricity","B1501","03/05/2017","47019510 - 1","1973.08","Revenue","20002402","SOUTHERN ELECTRIC PLC"
"Welfare Reform Team","Grants","D3701","04/04/2017","1036392 - 0","11225","Revenue","20011006","ASPIRE OXFORDSHIRE COMMUNITY ENTERPRISE LTD"
"Welfare Reform Team","Grants","D3701","11/04/2017","1036458 - 0","3405","Revenue","20009795","ETHNIC MINORITY BUSINESS SERVICE"
"Welfare Reform Team","Grants","D3701","11/04/2017","1036459 - 0","3720.8","Revenue","20019528","BASE 33 YOUTH CHARITY"
"Welfare Reform Team","Grants","D3701","11/04/2017","1036461 - 0","6600","Revenue","20017749","YELLOW SUBMARINE"
"Welfare Reform Team","Grants","D3701","11/04/2017","1036462 - 0","7547.83","Revenue","20017749","YELLOW SUBMARINE"
"Welfare Reform Team","Grants","D3701","04/04/2017","1036466 - 0","4670.5","Revenue","20004327","THE PORCH"
"Welfare Reform Team","Grants","D3701","04/04/2017","1036471 - 0","14551.89","Revenue","20011006","ASPIRE OXFORDSHIRE COMMUNITY ENTERPRISE LTD"
"Welfare Reform Team","Grants","D3701","25/04/2017","1036472 - 0","5566.75","Revenue","20008142","TRAX"
"Welfare Reform Team","Grants","D3701","11/04/2017","1036567 - 0","5566.25","Revenue","20019515","SOUTH OXFORDSHIRE FOOD & EDUCATION ALLIANCE"
"Welfare Reform Team","Grants","D3701","19/04/2017","1036668 - 0","5772.56","Revenue","20019527","BYHP"
"Welfare Reform Team","Grants","D3701","03/05/2017","1036693 - 0","1713.75","Revenue","20018674","WORKERS EDUCATIONAL ASSOCIATION"
"Welfare Reform Team","Grants","D3701","19/04/2017","1036770 - 0","1675","Revenue","20014542","OXFORD UNITED YOUTH & COMMUNITY SPORTS TRUST"
"Welfare Reform Team","Grants","D3701","03/05/2017","1036965 - 0","3270","Revenue","20009273","ASYLUM WELCOME"
"Welfare Reform Team","Grants","D3701","09/05/2017","1037110 - 0","600","Revenue","20019551","ACE TRAINING & CONSULTANCY LTD"
"Welfare Reform Team","Grants","D3701","23/05/2017","1037467 - 0","7611.69","Revenue","20019515","SOUTH OXFORDSHIRE FOOD & EDUCATION ALLIANCE"
"Welfare Reform Team","Grants","D3701","23/05/2017","1037475 - 0","4257.37","Revenue","20017749","YELLOW SUBMARINE"
"Welfare Reform Team","Grants","D3701","20/06/2017","1037791 - 0","1612.19","Revenue","20019528","BASE 33 YOUTH CHARITY"
"Welfare Reform Team","Grants","D3701","13/06/2017","1037989 - 0","13093.27","Revenue","20011006","ASPIRE OXFORDSHIRE COMMUNITY ENTERPRISE LTD"
"Welfare Reform Team","Grants","D3701","11/04/2017","46293316 - 1","14551.89","Revenue","20011006","ASPIRE OXFORDSHIRE COMMUNITY ENTERPRISE LTD"
"Welfare Reform Team","Grants","D3701","11/04/2017","46293318 - 1","14551.89","Revenue","20011006","ASPIRE OXFORDSHIRE COMMUNITY ENTERPRISE LTD"
"Regeneration & Economy","Services Maintenance (Planned)","B1103","11/04/2017","1036091 - 1","157.5","Revenue","20000210","BARKER & EVANS LTD"
"Regeneration & Economy","General Contracted Services","D3401","04/04/2017","1036211 - 0","1084.13","Revenue","20018026","UK GAS CONNECTION LTD"
"Regeneration & Economy","Consultants Fees","D3411","11/04/2017","1036425 - 0","1416.67","Revenue","20003549","BOSSOMS BOATYARD LTD"
"Regeneration & Economy","Services Maintenance (Planned)","B1103","11/04/2017","1036549 - 0","926.25","Revenue","20000249","SSE CONTRACTING LTD"
"Regeneration & Economy","Consultants Fees","D3411","06/06/2017","1036597 - 0","2160","Revenue","20019379","OXFORD RAIL STRATEGIES LTD"
"Regeneration & Economy","Reactive Maintenance & Minor Repairs","B1101","11/04/2017","1036602 - 0","3400","Revenue","20011508","D A MILES & SONS"
"Regeneration & Economy","Services Maintenance (Planned)","B1103","03/05/2017","1036614 - 1","157.5","Revenue","20000210","BARKER & EVANS LTD"
"Regeneration & Economy","Consultants Fees","D3411","25/04/2017","1036671 - 0","3000","Revenue","20017937","FISHER GERMAN LLP"
"Regeneration & Economy","Consultants Fees","D3411","25/04/2017","1036677 - 0","2000","Revenue","20017937","FISHER GERMAN LLP"
"Regeneration & Economy","Consultants Fees","D3411","25/04/2017","1036678 - 0","1016.6","Revenue","20017937","FISHER GERMAN LLP"
"Regeneration & Economy","Consultants Fees","D3411","19/04/2017","1036700 - 0","2250","Revenue","20008541","KEMP & KEMP LLP"
"Regeneration & Economy","Services Maintenance (Planned)","B1103","13/06/2017","1036815 - 2","70","Revenue","20000210","BARKER & EVANS LTD"
"Regeneration & Economy","Services Maintenance (Planned)","B1103","13/06/2017","1036815 - 3","386.11","Revenue","20000210","BARKER & EVANS LTD"
"Regeneration & Economy","Consultants Fees","D3411","25/04/2017","1036829 - 0","3045","Revenue","20018783","OSBORNE CLARKE"
"Regeneration & Economy","Reactive Maintenance & Minor Repairs","B1101","25/04/2017","1036844 - 1","2862.07","Revenue","20002633","ADT FIRE & SECURITY"
"Regeneration & Economy","Consultants Fees","D3411","16/05/2017","1036860 - 0","1400","Revenue","20019171","GREEN & PARTNERS"
"Regeneration & Economy","Grants","D3701","25/04/2017","1036861 - 0","9801.37","Revenue","20018382","EXPERIENCE OXFORDSHIRE"
"Regeneration & Economy","Grants","D3701","25/04/2017","1036862 - 0","23750","Revenue","20018382","EXPERIENCE OXFORDSHIRE"
"Regeneration & Economy","Counsel & External Legal Fees","D3417","03/05/2017","1036952 - 0","1471","Revenue","20018460","VEALE WASBROUGH VIZARD"
"Regeneration & Economy","Counsel & External Legal Fees","D3417","03/05/2017","1036956 - 0","478.5","Revenue","20018460","VEALE WASBROUGH VIZARD"
"Regeneration & Economy","Counsel & External Legal Fees","D3417","03/05/2017","1036957 - 0","725","Revenue","20018460","VEALE WASBROUGH VIZARD"
"Regeneration & Economy","Counsel & External Legal Fees","D3417","03/05/2017","1036958 - 0","1471","Revenue","20018460","VEALE WASBROUGH VIZARD"
"Regeneration & Economy","Counsel & External Legal Fees","D3417","03/05/2017","1036959 - 0","1503","Revenue","20018460","VEALE WASBROUGH VIZARD"
"Regeneration & Economy","Rent","B1701","03/05/2017","1037057 - 1","4241.92","Revenue","20016754","AMAS LTD/RENT A/C"
"Regeneration & Economy","Grants","D3701","09/05/2017","1037105 - 0","21500","Revenue","20018382","EXPERIENCE OXFORDSHIRE"
"Regeneration & Economy","Consultants Fees","D3411","09/05/2017","1037152 - 0","1416.67","Revenue","20003549","BOSSOMS BOATYARD LTD"
"Regeneration & Economy","Counsel & External Legal Fees","D3417","23/05/2017","1037223 - 0","636.5","Revenue","20018460","VEALE WASBROUGH VIZARD"
"Regeneration & Economy","Counsel & External Legal Fees","D3417","23/05/2017","1037229 - 0","648","Revenue","20018460","VEALE WASBROUGH VIZARD"
"Regeneration & Economy","Counsel & External Legal Fees","D3417","13/06/2017","1037287 - 1","754","Revenue","20018460","VEALE WASBROUGH VIZARD"
"Regeneration & Economy","Consultants Fees","D3411","16/05/2017","1037309 - 0","1905","Revenue","20010039","MARRIOTTS"
"Regeneration & Economy","Consultants Fees","D3411","09/06/2017","1037448 - 0","1400","Revenue","20019171","GREEN & PARTNERS"
"Regeneration & Economy","Consultants Fees","D3411","09/06/2017","1037449 - 0","1400","Revenue","20019171","GREEN & PARTNERS"
"Regeneration & Economy","Consultants Fees","D3411","13/06/2017","1037494 - 0","1743.65","Revenue","20018047","TURLEY ASSOCIATES"
"Regeneration & Economy","Counsel & External Legal Fees","D3417","31/05/2017","1037513 - 0","1000","Revenue","20018550","PHILIP SISSONS"
"Regeneration & Economy","Consultants Fees","D3411","09/06/2017","1037560 - 0","1400","Revenue","20019171","GREEN & PARTNERS"
"Regeneration & Economy","Conferences","D3602","31/05/2017","1037679 - 0","515","Revenue","20019277","Ocean Media Group Ltd"
"Regeneration & Economy","Consultants Fees","D3411","13/06/2017","1037680 - 0","2114","Revenue","20010039","MARRIOTTS"
"Regeneration & Economy","Consultants Fees","D3411","06/06/2017","1037798 - 0","1290","Revenue","20003549","BOSSOMS BOATYARD LTD"
"Regeneration & Economy","Consultants Fees","D3411","06/06/2017","1037799 - 0","1416.67","Revenue","20003549","BOSSOMS BOATYARD LTD"
"Regeneration & Economy","Consultants Fees","D3411","06/06/2017","1037874 - 0","1289.52","Revenue","20019433","MACQUARIE EQUIPMENT FINANCE (UK) LTD"
"Regeneration & Economy","General Contracted Services","D3401","20/06/2017","1038115 - 0","474","Revenue","20017971","A & J CATERING (OXFORDSHIRE) LTD"
"Regeneration & Economy","Consultants Fees","D3411","20/06/2017","1038168 - 0","550","Revenue","20019638","JAMES MACKINTOSH ARCHITECTS LTD.,"
"Regeneration & Economy","Property Rents/Income","K9550","11/04/2017","46293304 - 1","6875","Revenue","20012815","ST MICHAELS PCC"
"Regeneration & Economy","Temporary Bureau Staffing","A0108","19/04/2017","46293414 - 22","3770.43","Revenue","20018053","REED SPECIALIST RECRUITMENT LTD"
"Regeneration & Economy","Services Maintenance (Planned)","B1103","25/04/2017","46293417 - 7","251.23","Revenue","20004494","COTSWOLD LIFTS LTD"
"Regeneration & Economy","Fire Alarms and Emergency Lighting","B1241","19/04/2017","46293418 - 2","200","Revenue","20002568","PYROTEC SERVICES LTD"
"Regeneration & Economy","Fire Alarms and Emergency Lighting","B1241","19/04/2017","46293418 - 7","1760","Revenue","20002568","PYROTEC SERVICES LTD"
"Regeneration & Economy","Fire Alarms and Emergency Lighting","B1241","19/04/2017","46293418 - 9","119","Revenue","20002568","PYROTEC SERVICES LTD"
"Regeneration & Economy","Temporary Bureau Staffing","A0108","16/05/2017","46293675 - 30","1366.73","Revenue","20018053","REED SPECIALIST RECRUITMENT LTD"
"Regeneration & Economy","Temporary Bureau Staffing","A0108","13/06/2017","46294016 - 17","7392.58","Revenue","20018053","REED SPECIALIST RECRUITMENT LTD"
"Regeneration & Economy","Gas","B1502","27/06/2017","47017688 - 1","507.69","Revenue","20011042","KENT COUNTY COUNCIL"
"Regeneration & Economy","Gas","B1502","11/04/2017","47019092 - 1","2307.41","Revenue","20007602","TOTAL GAS & POWER LTD"
"Regeneration & Economy","Gas","B1502","11/04/2017","47019107 - 0","2087.83","Revenue","20007602","TOTAL GAS & POWER LTD"
"Regeneration & Economy","Gas","B1502","25/04/2017","47019241 - 0","617.12","Revenue","20007602","TOTAL GAS & POWER LTD"
"Regeneration & Economy","Gas","B1502","25/04/2017","47019262 - 1","454.82","Revenue","20002402","SOUTHERN ELECTRIC PLC"
"Regeneration & Economy","Electricity","B1501","03/05/2017","47019588 - 1","1197.84","Revenue","20002402","SOUTHERN ELECTRIC PLC"
"Regeneration & Economy","Water & Sewerage Charges","B1830","09/05/2017","47019648 - 1","602.77","Revenue","20019401","CASTLE WATER"
"Regeneration & Economy","Gas","B1502","09/05/2017","47019653 - 0","1071.57","Revenue","20002402","SOUTHERN ELECTRIC PLC"
"Regeneration & Economy","Electricity","B1501","09/05/2017","47019664 - 1","538.58","Revenue","20012680","EDF ENERGY"
"Regeneration & Economy","Gas","B1502","23/05/2017","47019766 - 1","427.56","Revenue","20007602","TOTAL GAS & POWER LTD"
"Regeneration & Economy","Water & Sewerage Charges","B1830","13/06/2017","47020100 - 0","562.63","Revenue","20019401","CASTLE WATER"
"Planning, Sustainable Dev & Regulatory","Subscriptions","D3703","31/05/2017","1035286 - 0","929","Revenue","20006596","OXFORD BUS COMPANY LTD"
"Planning, Sustainable Dev & Regulatory","Temporary Bureau Staffing","A0108","13/06/2017","1035398 - 0","1147","Revenue","20018827","THE OYSTER PARTNERSHIP LTD"
"Planning, Sustainable Dev & Regulatory","Software Maintenance/Running Costs","D3513","04/04/2017","1035776 - 0","5786.24","Revenue","20016003","TEAM (ENERGY AUDITING AGENCY LTD)"
"Planning, Sustainable Dev & Regulatory","Temporary Bureau Staffing","A0108","04/04/2017","1035841 - 0","2060.91","Revenue","20018827","THE OYSTER PARTNERSHIP LTD"
"Planning, Sustainable Dev & Regulatory","Temporary Bureau Staffing","A0108","11/04/2017","1035863 - 0","1085","Revenue","20018827","THE OYSTER PARTNERSHIP LTD"
"Planning, Sustainable Dev & Regulatory","Consultants Fees","D3411","04/04/2017","1036028 - 0","2860","Revenue","20002930","OXFORDSHIRE COUNTY COUNCIL"
"Planning, Sustainable Dev & Regulatory","General Contracted Services","D3401","11/04/2017","1036034 - 0","3255","Revenue","20016437","SYAQS"
"Planning, Sustainable Dev & Regulatory","Subscriptions","D3703","11/04/2017","1036048 - 0","480","Revenue","20005063","CHARTERED INSTITUTE OF ENVIRONMENTAL HEALTH"
"Planning, Sustainable Dev & Regulatory","Training Supplies","A0646","11/04/2017","1036062 - 0","747.75","Revenue","20005063","CHARTERED INSTITUTE OF ENVIRONMENTAL HEALTH"
"Planning, Sustainable Dev & Regulatory","Consultants Fees","D3411","04/04/2017","1036144 - 0","1020","Revenue","20018827","THE OYSTER PARTNERSHIP LTD"
"Planning, Sustainable Dev & Regulatory","Public Transport","C2501","04/04/2017","1036165 - 0","968.98","Revenue","20006596","OXFORD BUS COMPANY LTD"
"Planning, Sustainable Dev & Regulatory","Consultants Fees","D3411","19/04/2017","1036205 - 0","7493.75","Revenue","20017818","RICARDO-AEA LTD"
"Planning, Sustainable Dev & Regulatory","Hospitality","D3803","04/04/2017","1036248 - 0","720.83","Revenue","20017557","HUB COMMERCIAL VENTURES CIC"
"Planning, Sustainable Dev & Regulatory","Temporary Bureau Staffing","A0108","19/04/2017","1036281 - 0","1710.18","Revenue","20018827","THE OYSTER PARTNERSHIP LTD"
"Planning, Sustainable Dev & Regulatory","General Contracted Services","D3401","19/04/2017","1036284 - 0","1370","Revenue","20019415","SYNAPSYS SOLUTIONS LTD"
"Planning, Sustainable Dev & Regulatory","Consultants Fees","D3411","25/04/2017","1036335 - 0","6000","Revenue","20018276","DESIGN COUNCIL"
"Planning, Sustainable Dev & Regulatory","Consultants Fees","D3411","25/04/2017","1036336 - 0","6400","Revenue","20018276","DESIGN COUNCIL"
"Planning, Sustainable Dev & Regulatory","Consultants Fees","D3411","11/04/2017","1036369 - 0","2125","Revenue","20015565","EUNOMIA RESEARCH & CONSULTING LTD"
"Planning, Sustainable Dev & Regulatory","General Contracted Services","D3401","04/04/2017","1036438 - 0","6253","Revenue","20009530","OSBORNE RICHARDSON LTD"
"Planning, Sustainable Dev & Regulatory","Temporary Bureau Staffing","A0108","03/05/2017","1036439 - 0","1007.91","Revenue","20018827","THE OYSTER PARTNERSHIP LTD"
"Planning, Sustainable Dev & Regulatory","General Contracted Services","D3401","04/04/2017","1036440 - 0","2184","Revenue","20009530","OSBORNE RICHARDSON LTD"
"Planning, Sustainable Dev & Regulatory","General Contracted Services","D3401","04/04/2017","1036441 - 0","4842","Revenue","20009530","OSBORNE RICHARDSON LTD"
"Planning, Sustainable Dev & Regulatory","Temporary Bureau Staffing","A0108","11/04/2017","1036463 - 0","3519","Revenue","20009530","OSBORNE RICHARDSON LTD"
"Planning, Sustainable Dev & Regulatory","Consultants Fees","D3411","21/04/2017","1036561 - 0","8752.5","Revenue","20009818","CAMBRIDGE CITY COUNCIL"
"Planning, Sustainable Dev & Regulatory","Consultants Fees","D3411","11/04/2017","1036569 - 0","8884","Revenue","20008805","SAVILLS (L & P ) LIMITED"
"Planning, Sustainable Dev & Regulatory","Consultants Fees","D3411","11/04/2017","1036570 - 0","28345.79","Revenue","20008805","SAVILLS (L & P ) LIMITED"
"Planning, Sustainable Dev & Regulatory","Consultants Fees","D3411","11/04/2017","1036571 - 0","31887.56","Revenue","20008805","SAVILLS (L & P ) LIMITED"
"Planning, Sustainable Dev & Regulatory","Consultants Fees","D3411","11/04/2017","1036572 - 0","4662","Revenue","20008805","SAVILLS (L & P ) LIMITED"
"Planning, Sustainable Dev & Regulatory","Temporary Bureau Staffing","A0108","11/04/2017","1036578 - 0","1260.25","Revenue","20009530","OSBORNE RICHARDSON LTD"
"Planning, Sustainable Dev & Regulatory","Consultants Fees","D3411","25/04/2017","1036592 - 0","4559.98","Revenue","20019457","ENVIRONMENTAL DIMENSION PARTNERSHIP LTD"
"Planning, Sustainable Dev & Regulatory","Consultants Fees","D3411","03/05/2017","1036593 - 1","6540.56","Revenue","20019457","ENVIRONMENTAL DIMENSION PARTNERSHIP LTD"
"Planning, Sustainable Dev & Regulatory","Consultants Fees","D3411","03/05/2017","1036594 - 1","5120.94","Revenue","20019457","ENVIRONMENTAL DIMENSION PARTNERSHIP LTD"
"Planning, Sustainable Dev & Regulatory","Consultants Fees","D3411","19/04/2017","1036711 - 0","7323.05","Revenue","20008132","ARCADIS LLP"
"Planning, Sustainable Dev & Regulatory","Consultants Fees","D3411","25/04/2017","1036728 - 0","28807.47","Revenue","20008805","SAVILLS (L & P ) LIMITED"
"Planning, Sustainable Dev & Regulatory","Consultants Fees","D3411","25/04/2017","1036764 - 0","4375.54","Revenue","20016567","CARTER JONAS"
"Planning, Sustainable Dev & Regulatory","Internal Lighting","B1151","09/05/2017","1036769 - 0","3297.7","Revenue","20018854","IMPACT LIGHTING SOLUTIONS LTD"
"Planning, Sustainable Dev & Regulatory","Software Maintenance/Running Costs","D3513","03/05/2017","1036786 - 0","13300","Revenue","20019542","ROCKTIME LTD"
"Planning, Sustainable Dev & Regulatory","General Contracted Services","D3401","19/04/2017","1036799 - 0","3388","Revenue","20009530","OSBORNE RICHARDSON LTD"
"Planning, Sustainable Dev & Regulatory","General Contracted Services","D3401","19/04/2017","1036801 - 0","1062","Revenue","20009530","OSBORNE RICHARDSON LTD"
"Planning, Sustainable Dev & Regulatory","General Contracted Services","D3401","16/05/2017","1036833 - 0","430","Revenue","20008696","TOTAL HYGIENE LTD"
"Planning, Sustainable Dev & Regulatory","General Contracted Services","D3401","03/05/2017","1036977 - 0","2000","Revenue","20012692","FREECHOICE GROUP"
"Planning, Sustainable Dev & Regulatory","Consultants Fees","D3411","09/05/2017","1036982 - 0","12036","Revenue","20011651","UNIVERSITY OF OXFORD"
"Planning, Sustainable Dev & Regulatory","Photocopying/Paper Supplies","D3306","03/05/2017","1037003 - 0","861.78","Revenue","20011588","CANON (UK) lTD"
"Planning, Sustainable Dev & Regulatory","Consultants Fees","D3411","09/05/2017","1037010 - 0","8304.91","Revenue","20019457","ENVIRONMENTAL DIMENSION PARTNERSHIP LTD"
"Planning, Sustainable Dev & Regulatory","Subscriptions","D3703","16/05/2017","1037055 - 1","2400","Revenue","20009350","APSE"
"Planning, Sustainable Dev & Regulatory","Consultants Fees","D3411","16/05/2017","1037071 - 0","1152.5","Revenue","20018330","JOHN MOORE HERITAGE SERVICES"
"Planning, Sustainable Dev & Regulatory","General Contracted Services","D3401","09/05/2017","1037165 - 1","595.33","Revenue","20019568","ASELFORD PLUMBING & HEATING"
"Planning, Sustainable Dev & Regulatory","Consultants Fees","D3411","16/05/2017","1037209 - 0","6710","Revenue","20016567","CARTER JONAS"
"Planning, Sustainable Dev & Regulatory","Temporary Bureau Staffing","A0108","16/05/2017","1037235 - 0","3478","Revenue","20018827","THE OYSTER PARTNERSHIP LTD"
"Planning, Sustainable Dev & Regulatory","Temporary Bureau Staffing","A0108","09/05/2017","1037237 - 0","2941.5","Revenue","20018827","THE OYSTER PARTNERSHIP LTD"
"Planning, Sustainable Dev & Regulatory","Temporary Bureau Staffing","A0108","09/05/2017","1037238 - 0","1739","Revenue","20018827","THE OYSTER PARTNERSHIP LTD"
"Planning, Sustainable Dev & Regulatory","Consultants Fees","D3411","16/05/2017","1037243 - 0","7182.36","Revenue","20008132","ARCADIS LLP"
"Planning, Sustainable Dev & Regulatory","Consultants Fees","D3411","16/05/2017","1037354 - 0","7710","Revenue","20019393","WALLINGFORD HYDROSOLUTIONS LTD"
"Planning, Sustainable Dev & Regulatory","Subscriptions","D3703","06/06/2017","1037400 - 0","1680","Revenue","20009528","HAYMARKET MEDIA GROUP"
"Planning, Sustainable Dev & Regulatory","Temporary Bureau Staffing","A0108","23/05/2017","1037435 - 0","1794.5","Revenue","20018827","THE OYSTER PARTNERSHIP LTD"
"Planning, Sustainable Dev & Regulatory","Advertising & Publicity","D3802","23/05/2017","1037500 - 0","560.56","Revenue","20007856","NEWSQUEST MIDLANDS, WALES & SOUTH WEST"
"Planning, Sustainable Dev & Regulatory","Advertising & Publicity","D3802","31/05/2017","1037501 - 0","485.1","Revenue","20007856","NEWSQUEST MIDLANDS, WALES & SOUTH WEST"
"Planning, Sustainable Dev & Regulatory","Consultants Fees","D3411","06/06/2017","1037527 - 0","525","Revenue","20012551","LEVETT THERIVEL"
"Planning, Sustainable Dev & Regulatory","Temporary Bureau Staffing","A0108","23/05/2017","1037542 - 0","1428","Revenue","20018827","THE OYSTER PARTNERSHIP LTD"
"Planning, Sustainable Dev & Regulatory","General Contracted Services","D3401","13/06/2017","1037555 - 0","960","Revenue","20018683","AIR MONITORS LIMITED"
"Planning, Sustainable Dev & Regulatory","Energy Conservation","B1165","13/06/2017","1037574 - 0","7000","Revenue","20018271","NATIONAL ENERGY FOUNDATION"
"Planning, Sustainable Dev & Regulatory","Consultants Fees","D3411","31/05/2017","1037575 - 0","2125","Revenue","20015565","EUNOMIA RESEARCH & CONSULTING LTD"
"Planning, Sustainable Dev & Regulatory","Consultants Fees","D3411","13/06/2017","1037596 - 0","7493.75","Revenue","20017818","RICARDO-AEA LTD"
"Planning, Sustainable Dev & Regulatory","General Contracted Services","D3401","31/05/2017","1037624 - 0","990","Revenue","20018878","TRANSITION BY DESIGN CIC"
"Planning, Sustainable Dev & Regulatory","Consultants Fees","D3411","27/06/2017","1037671 - 0","8389","Revenue","20011651","UNIVERSITY OF OXFORD"
"Planning, Sustainable Dev & Regulatory","General Contracted Services","D3401","31/05/2017","1037675 - 0","551","Revenue","20002859","BRUEL & KJAER (UK) LTD"
"Planning, Sustainable Dev & Regulatory","General Contracted Services","D3401","06/06/2017","1037768 - 0","2875","Revenue","20017818","RICARDO-AEA LTD"
"Planning, Sustainable Dev & Regulatory","General Contracted Services","D3401","06/06/2017","1037777 - 0","1450","Revenue","20012692","FREECHOICE GROUP"
"Planning, Sustainable Dev & Regulatory","Advertising & Publicity","D3802","13/06/2017","1037890 - 0","485.1","Revenue","20007856","NEWSQUEST MIDLANDS, WALES & SOUTH WEST"
"Planning, Sustainable Dev & Regulatory","Advertising & Publicity","D3802","13/06/2017","1037895 - 0","875","Revenue","20007856","NEWSQUEST MIDLANDS, WALES & SOUTH WEST"
"Planning, Sustainable Dev & Regulatory","Advertising & Publicity","D3802","13/06/2017","1037896 - 0","875","Revenue","20007856","NEWSQUEST MIDLANDS, WALES & SOUTH WEST"
"Planning, Sustainable Dev & Regulatory","Advertising & Publicity","D3802","13/06/2017","1037897 - 0","582.12","Revenue","20007856","NEWSQUEST MIDLANDS, WALES & SOUTH WEST"
"Planning, Sustainable Dev & Regulatory","Advertising & Publicity","D3802","13/06/2017","1037900 - 0","743.82","Revenue","20007856","NEWSQUEST MIDLANDS, WALES & SOUTH WEST"
"Planning, Sustainable Dev & Regulatory","Temporary Bureau Staffing","A0108","13/06/2017","1037904 - 0","5391.5","Revenue","20018827","THE OYSTER PARTNERSHIP LTD"
"Planning, Sustainable Dev & Regulatory","Temporary Bureau Staffing","A0108","13/06/2017","1037905 - 0","3433.75","Revenue","20018827","THE OYSTER PARTNERSHIP LTD"
"Planning, Sustainable Dev & Regulatory","Temporary Bureau Staffing","A0108","13/06/2017","1037906 - 0","1875.75","Revenue","20018827","THE OYSTER PARTNERSHIP LTD"
"Planning, Sustainable Dev & Regulatory","Temporary Bureau Staffing","A0108","13/06/2017","1037907 - 0","1834.75","Revenue","20018827","THE OYSTER PARTNERSHIP LTD"
"Planning, Sustainable Dev & Regulatory","Temporary Bureau Staffing","A0108","13/06/2017","1037908 - 0","1824.5","Revenue","20018827","THE OYSTER PARTNERSHIP LTD"
"Planning, Sustainable Dev & Regulatory","Temporary Bureau Staffing","A0108","13/06/2017","1037909 - 0","1178.75","Revenue","20018827","THE OYSTER PARTNERSHIP LTD"
"Planning, Sustainable Dev & Regulatory","Temporary Bureau Staffing","A0108","13/06/2017","1037910 - 0","1168.5","Revenue","20018827","THE OYSTER PARTNERSHIP LTD"
"Planning, Sustainable Dev & Regulatory","Temporary Bureau Staffing","A0108","13/06/2017","1037911 - 0","1178.75","Revenue","20018827","THE OYSTER PARTNERSHIP LTD"
"Planning, Sustainable Dev & Regulatory","Advertising & Publicity","D3802","13/06/2017","1037921 - 0","485.1","Revenue","20007856","NEWSQUEST MIDLANDS, WALES & SOUTH WEST"
"Planning, Sustainable Dev & Regulatory","Temporary Bureau Staffing","A0108","13/06/2017","1037933 - 1","1428","Revenue","20018827","THE OYSTER PARTNERSHIP LTD"
"Planning, Sustainable Dev & Regulatory","Temporary Bureau Staffing","A0108","13/06/2017","1037944 - 0","1428","Revenue","20018827","THE OYSTER PARTNERSHIP LTD"
"Planning, Sustainable Dev & Regulatory","Temporary Bureau Staffing","A0108","13/06/2017","1037946 - 0","1428","Revenue","20018827","THE OYSTER PARTNERSHIP LTD"
"Planning, Sustainable Dev & Regulatory","Temporary Bureau Staffing","A0108","20/06/2017","1037947 - 0","1428","Revenue","20018827","THE OYSTER PARTNERSHIP LTD"
"Planning, Sustainable Dev & Regulatory","Temporary Bureau Staffing","A0108","13/06/2017","1037952 - 0","1428","Revenue","20018827","THE OYSTER PARTNERSHIP LTD"
"Planning, Sustainable Dev & Regulatory","Temporary Bureau Staffing","A0108","13/06/2017","1037953 - 0","1428","Revenue","20018827","THE OYSTER PARTNERSHIP LTD"
"Planning, Sustainable Dev & Regulatory","Advertising & Publicity","D3802","27/06/2017","1037981 - 0","440","Revenue","20016547","LONDON CALLING ARTS LTD"
"Planning, Sustainable Dev & Regulatory","Counsel & External Legal Fees","D3417","13/06/2017","1037998 - 0","1750","Revenue","20014117","MR DOUGLAS EDWARDS"
"Planning, Sustainable Dev & Regulatory","General Contracted Services","D3401","13/06/2017","1038031 - 0","2100","Revenue","20012498","ROYAL BOROUGH OF WINDSOR AND MAIDENHEAD"
"Planning, Sustainable Dev & Regulatory","Consultants Fees","D3411","20/06/2017","1038086 - 1","6298.07","Revenue","20008178","WEST OXFORDSHIRE DISTRICT COUNCIL GENERAL A/C"
"Planning, Sustainable Dev & Regulatory","Consultants Fees","D3411","27/06/2017","1038101 - 0","11455","Revenue","20008848","LAND USE CONSULTANTS"
"Planning, Sustainable Dev & Regulatory","Advertising & Publicity","D3802","20/06/2017","1038105 - 0","560.56","Revenue","20007856","NEWSQUEST MIDLANDS, WALES & SOUTH WEST"
"Planning, Sustainable Dev & Regulatory","Subscriptions","D3703","20/06/2017","1038146 - 0","829.5","Revenue","20011419","EXOVA  (UK) LTD"
"Planning, Sustainable Dev & Regulatory","General Contracted Services","D3401","20/06/2017","1038197 - 0","568","Revenue","20012692","FREECHOICE GROUP"
"Planning, Sustainable Dev & Regulatory","Postage & Carriage","D3501","27/06/2017","1038217 - 0","980.27","Revenue","20009533","AYLESBURY VALE DISTRICT COUNCIL"
"Planning, Sustainable Dev & Regulatory","General Contracted Services","D3401","27/06/2017","1038339 - 0","700","Revenue","20017021","MARC WEST"
"Planning, Sustainable Dev & Regulatory","Licences","K9571","11/04/2017","46293299 - 1","540","Revenue","20000014","PLANNING APPLICATION REFUNDS"
"Planning, Sustainable Dev & Regulatory","Consultants Fees","D3411","25/04/2017","46293331 - 2","141","Revenue","20011499","TOPS"
"Planning, Sustainable Dev & Regulatory","Consultants Fees","D3411","25/04/2017","46293331 - 14","84","Revenue","20011499","TOPS"
"Planning, Sustainable Dev & Regulatory","Consultants Fees","D3411","25/04/2017","46293331 - 19","99","Revenue","20011499","TOPS"
"Planning, Sustainable Dev & Regulatory","Services - General Fees","K9501","11/04/2017","46293367 - 1","2000","Revenue","20000019","GRANT PAYMENTS"
"Planning, Sustainable Dev & Regulatory","Temporary Bureau Staffing","A0108","19/04/2017","46293414 - 7","28764.41","Revenue","20018053","REED SPECIALIST RECRUITMENT LTD"
"Planning, Sustainable Dev & Regulatory","Temporary Bureau Staffing","A0108","19/04/2017","46293414 - 17","7091.34","Revenue","20018053","REED SPECIALIST RECRUITMENT LTD"
"Planning, Sustainable Dev & Regulatory","Temporary Bureau Staffing","A0108","19/04/2017","46293414 - 18","1298.17","Revenue","20018053","REED SPECIALIST RECRUITMENT LTD"
"Planning, Sustainable Dev & Regulatory","Temporary Bureau Staffing","A0108","19/04/2017","46293414 - 19","2081.4","Revenue","20018053","REED SPECIALIST RECRUITMENT LTD"
"Planning, Sustainable Dev & Regulatory","Temporary Bureau Staffing","A0108","19/04/2017","46293414 - 24","2956.6","Revenue","20018053","REED SPECIALIST RECRUITMENT LTD"
"Planning, Sustainable Dev & Regulatory","Advertising & Publicity","D3802","09/05/2017","46293636 - 1","5000","Revenue","20000019","GRANT PAYMENTS"
"Planning, Sustainable Dev & Regulatory","Advertising & Publicity","D3802","09/05/2017","46293637 - 1","7890","Revenue","20009131","FILM OXFORD"
"Planning, Sustainable Dev & Regulatory","Advertising & Publicity","D3802","09/05/2017","46293638 - 1","1400","Revenue","20016329","SU FRIZZELL"
"Planning, Sustainable Dev & Regulatory","Consultants Fees","D3411","31/05/2017","46293671 - 10","42","Revenue","20011499","TOPS"
"Planning, Sustainable Dev & Regulatory","Consultants Fees","D3411","31/05/2017","46293671 - 14","42","Revenue","20011499","TOPS"
"Planning, Sustainable Dev & Regulatory","Consultants Fees","D3411","31/05/2017","46293671 - 16","57","Revenue","20011499","TOPS"
"Planning, Sustainable Dev & Regulatory","Temporary Bureau Staffing","A0108","16/05/2017","46293675 - 12","17589.82","Revenue","20018053","REED SPECIALIST RECRUITMENT LTD"
"Planning, Sustainable Dev & Regulatory","Temporary Bureau Staffing","A0108","16/05/2017","46293675 - 34","1229.81","Revenue","20018053","REED SPECIALIST RECRUITMENT LTD"
"Planning, Sustainable Dev & Regulatory","Temporary Bureau Staffing","A0108","16/05/2017","46293675 - 39","1149.79","Revenue","20018053","REED SPECIALIST RECRUITMENT LTD"
"Planning, Sustainable Dev & Regulatory","Advertising & Publicity","D3802","06/06/2017","46293984 - 1","1749","Revenue","20000000","GENERAL EXPENSES"
"Planning, Sustainable Dev & Regulatory","Temporary Bureau Staffing","A0108","13/06/2017","46294016 - 8","17216.96","Revenue","20018053","REED SPECIALIST RECRUITMENT LTD"
"Planning, Sustainable Dev & Regulatory","Temporary Bureau Staffing","A0108","13/06/2017","46294016 - 18","2634.08","Revenue","20018053","REED SPECIALIST RECRUITMENT LTD"
"Planning, Sustainable Dev & Regulatory","Temporary Bureau Staffing","A0108","13/06/2017","46294016 - 19","1132.5","Revenue","20018053","REED SPECIALIST RECRUITMENT LTD"
"Planning, Sustainable Dev & Regulatory","Consultants Fees","D3411","13/06/2017","46294032 - 1","7710","Revenue","20019393","WALLINGFORD HYDROSOLUTIONS LTD"
"Planning, Sustainable Dev & Regulatory","General Contracted Services","D3401","20/06/2017","46294188 - 1","4820","Revenue","20000000","GENERAL EXPENSES"
"Planning, Sustainable Dev & Regulatory","Hospitality","D3803","20/06/2017","46294198 - 1","743","Revenue","20000000","GENERAL EXPENSES"
"Planning, Sustainable Dev & Regulatory","Licences","K9571","20/06/2017","46294203 - 1","599","Revenue","20000017","ENVIRONMENTAL HEALTH REFUNDS"
"Environmental Development","Grants-Private Persons","Y005","03/05/2017","1036098 - 0","1042.49","Capital","20012692","FREECHOICE GROUP"
"Environmental Development","Grants-Private Persons","Y005","04/04/2017","1036159 - 0","4622","Capital","20014420","C M RAYSON BUILDERS"
"Environmental Development","Grants-Private Persons","Y005","04/04/2017","1036186 - 1","20000","Capital","20017827","OWEN CASHELL GENERAL BUILDER"
"Environmental Development","Grants-Private Persons","Y005","04/04/2017","1036222 - 0","3745","Capital","20010352","DOMESTIC LIFT SERVICES LTD"
"Environmental Development","Grants-Private Persons","Y005","25/04/2017","1036280 - 0","1749.03","Capital","20012692","FREECHOICE GROUP"
"Environmental Development","Grants-Private Persons","Y005","11/04/2017","1036377 - 0","4500","Capital","20019448","GORDON DAVIS"
"Environmental Development","Grants-Private Persons","Y005","11/04/2017","1036393 - 0","5020","Capital","20014420","C M RAYSON BUILDERS"
"Environmental Development","Grants-Private Persons","Y005","19/04/2017","1036707 - 0","5910","Capital","20012692","FREECHOICE GROUP"
"Environmental Development","Grants-Private Persons","Y005","03/05/2017","1036976 - 0","4165","Capital","20012692","FREECHOICE GROUP"
"Environmental Development","Grants-Private Persons","Y005","03/05/2017","1036978 - 0","10970.78","Capital","20012692","FREECHOICE GROUP"
"Environmental Development","Grants-Private Persons","Y005","16/05/2017","1036979 - 0","1880","Capital","20012692","FREECHOICE GROUP"
"Environmental Development","Grants-Private Persons","Y005","09/05/2017","1037165 - 0","1600","Capital","20019568","ASELFORD PLUMBING & HEATING"
"Environmental Development","Grants-Private Persons","Y005","16/05/2017","1037212 - 0","5519","Capital","20015923","ABLE LIVING SOLUTIONS"
"Environmental Development","Grants-Private Persons","Y005","16/05/2017","1037306 - 0","4830","Capital","20012692","FREECHOICE GROUP"
"Environmental Development","Grants-Private Persons","Y005","16/05/2017","1037307 - 0","1495","Capital","20012692","FREECHOICE GROUP"
"Environmental Development","Grants-Private Persons","Y005","16/05/2017","1037308 - 0","1390","Capital","20012692","FREECHOICE GROUP"
"Environmental Development","Grants-Private Persons","Y005","16/05/2017","1037348 - 0","595","Capital","20014420","C M RAYSON BUILDERS"
"Environmental Development","Grants-Private Persons","Y005","13/06/2017","1037459 - 0","4575","Capital","20012692","FREECHOICE GROUP"
"Environmental Development","Grants-Private Persons","Y005","31/05/2017","1037557 - 0","1700","Capital","20012692","FREECHOICE GROUP"
"Environmental Development","Grants-Private Persons","Y005","31/05/2017","1037641 - 0","2228.85","Capital","20000222","ELLIOTT & JORDAN LTD"
"Environmental Development","Grants-Private Persons","Y005","31/05/2017","1037652 - 0","2989","Capital","20016993","OXFORDSHIRE WET ROOMS & SHOWERS"
"Environmental Development","Grants-Private Persons","Y005","06/06/2017","1037690 - 0","500","Capital","20012692","FREECHOICE GROUP"
"Environmental Development","Grants-Private Persons","Y005","06/06/2017","1037797 - 0","800","Capital","20016167","MR P A SMITH"
"Environmental Development","Grants-Private Persons","Y005","27/06/2017","1037830 - 0","1885","Capital","20012692","FREECHOICE GROUP"
"Environmental Development","Grants-Private Persons","Y005","13/06/2017","1037854 - 0","886.5","Capital","20019568","ASELFORD PLUMBING & HEATING"
"Environmental Development","Grants-Private Persons","Y005","06/06/2017","1037875 - 0","1369.83","Capital","20000222","ELLIOTT & JORDAN LTD"
"Environmental Development","Grants-Private Persons","Y005","30/05/2017","1038265 - 0","2254.5","Capital","20017827","OWEN CASHELL GENERAL BUILDER"
"Environmental Development","Grants-Private Persons","Y005","14/06/2017","1038267 - 1","6254.5","Capital","20017827","OWEN CASHELL GENERAL BUILDER"
"Environmental Development","Grants-Private Persons","Y005","27/06/2017","1038284 - 0","2491","Capital","20017827","OWEN CASHELL GENERAL BUILDER"
"Environmental Development","Grants-Private Persons","Y005","27/06/2017","1038346 - 0","5600","Capital","20014420","C M RAYSON BUILDERS"
"Housing Services","Temporary Bureau Staffing","A0108","04/04/2017","1035842 - 0","1063.75","Revenue","20018833","JAMES ANDREWS RECRUITMENT SOLUTIONS LTD"
"Housing Services","Specialist Services","B1306","04/04/2017","1035972 - 0","592","Revenue","20019495","TOTAL GRAPHICS SOLUTIONS RF LTD"
"Housing Services","Services Maintenance (Planned)","B1103","04/04/2017","1035989 - 0","17850.75","Revenue","20000210","BARKER & EVANS LTD"
"Housing Services","Temporary Bureau Staffing","A0108","11/04/2017","1036026 - 0","1063.75","Revenue","20018833","JAMES ANDREWS RECRUITMENT SOLUTIONS LTD"
"Housing Services","Services Maintenance (Planned)","B1103","11/04/2017","1036091 - 2","2376.72","Revenue","20000210","BARKER & EVANS LTD"
"Housing Services","Services Maintenance (Planned)","B1103","11/04/2017","1036091 - 3","-70","Revenue","20000210","BARKER & EVANS LTD"
"Housing Services","Services Maintenance (Planned)","B1103","11/04/2017","1036091 - 4","105","Revenue","20000210","BARKER & EVANS LTD"
"Housing Services","Services Maintenance (Planned)","B1103","11/04/2017","1036091 - 5","332.66","Revenue","20000210","BARKER & EVANS LTD"
"Housing Services","Energy Conservation","B1165","19/04/2017","1036148 - 1","1240","Revenue","20019044","COMPLIANCE365"
"Housing Services","Bond Payments Homeless","D3600","04/04/2017","1036191 - 0","440","Revenue","20011972","EXTREME ENVIRONMENTAL SERVICES LTD"
"Housing Services","Bond Payments Homeless","D3600","04/04/2017","1036194 - 0","420","Revenue","20011972","EXTREME ENVIRONMENTAL SERVICES LTD"
"Housing Services","Temporary Bureau Staffing","A0108","19/04/2017","1036231 - 0","1063.75","Revenue","20018833","JAMES ANDREWS RECRUITMENT SOLUTIONS LTD"
"Housing Services","General Contracted Services","D3401","19/04/2017","1036233 - 0","750","Revenue","20019532","UK FLOOD DEFENCES LTD"
"Housing Services","Energy Conservation","B1165","04/04/2017","1036258 - 0","2592","Revenue","20018537","AGILITY SURVEY LTD"
"Housing Services","Social Lettings Agency","D3606","19/04/2017","1036275 - 0","44484","Revenue","20019143","ST MUNGOS"
"Housing Services","Energy Conservation","B1165","11/04/2017","1036340 - 0","960","Revenue","20018537","AGILITY SURVEY LTD"
"Housing Services","Temporary Bureau Staffing","A0108","25/04/2017","1036399 - 0","1063.75","Revenue","20018833","JAMES ANDREWS RECRUITMENT SOLUTIONS LTD"
"Housing Services","Reactive Maintenance & Minor Repairs","B1101","25/04/2017","1036422 - 0","789.4","Revenue","20010433","IDEAL FLOORING (OXFORD) LTD"
"Housing Services","Subscriptions","D3703","11/04/2017","1036484 - 0","21873","Revenue","20014707","IHS (GLOBAL) LTD"
"Housing Services","Energy Conservation","B1165","11/04/2017","1036510 - 0","2338","Revenue","20018537","AGILITY SURVEY LTD"
"Housing Services","Energy Conservation","B1165","25/04/2017","1036514 - 0","675","Revenue","20019431","ELLIPSE ENERGY LIMITED"
"Housing Services","Services Maintenance (Planned)","B1103","11/04/2017","1036549 - 1","75","Revenue","20000249","SSE CONTRACTING LTD"
"Housing Services","Services Maintenance (Planned)","B1103","25/04/2017","1036568 - 0","16179","Revenue","20000210","BARKER & EVANS LTD"
"Housing Services","Reactive Maintenance & Minor Repairs","B1101","25/04/2017","1036609 - 0","720","Revenue","20016656","AKSWARD LTD"
"Housing Services","Services Maintenance (Planned)","B1103","03/05/2017","1036614 - 2","2724.03","Revenue","20000210","BARKER & EVANS LTD"
"Housing Services","Services Maintenance (Planned)","B1103","03/05/2017","1036614 - 3","192.5","Revenue","20000210","BARKER & EVANS LTD"
"Housing Services","Services Maintenance (Planned)","B1103","03/05/2017","1036614 - 4","8416.21","Revenue","20000210","BARKER & EVANS LTD"
"Housing Services","Reactive Maintenance & Minor Repairs","B1101","03/05/2017","1036776 - 0","870","Revenue","20017850","SAFESITE LTD"
"Housing Services","Reactive Maintenance & Minor Repairs","B1101","03/05/2017","1036777 - 0","3255","Revenue","20017850","SAFESITE LTD"
"Housing Services","Temporary Bureau Staffing","A0108","31/05/2017","1036795 - 1","1063.75","Revenue","20018833","JAMES ANDREWS RECRUITMENT SOLUTIONS LTD"
"Housing Services","Temporary Bureau Staffing","A0108","16/05/2017","1036797 - 0","862.5","Revenue","20018833","JAMES ANDREWS RECRUITMENT SOLUTIONS LTD"
"Housing Services","Bond Payments Homeless","D3600","19/04/2017","1036800 - 0","1198.7","Revenue","20011218","FOCUSPLAIN LIMITED"
"Housing Services","Services Maintenance (Planned)","B1103","09/05/2017","1036803 - 2","1229.83","Revenue","20000210","BARKER & EVANS LTD"
"Housing Services","Services Maintenance (Planned)","B1103","13/06/2017","1036815 - 4","407","Revenue","20000210","BARKER & EVANS LTD"
"Housing Services","Services Maintenance (Planned)","B1103","13/06/2017","1036815 - 5","93.26","Revenue","20000210","BARKER & EVANS LTD"
"Housing Services","Services Maintenance (Planned)","B1103","13/06/2017","1036815 - 6","1814.75","Revenue","20000210","BARKER & EVANS LTD"
"Housing Services","Main Contractor","Y021","25/04/2017","1036827 - 0","809","Capital","20013257","CITY INSULATION CONTRACTORS LIMITED"
"Housing Services","General Contracted Services","D3401","25/04/2017","1036848 - 0","20000","Revenue","20013694","SHELTER"
"Housing Services","Consultants Fees","D3411","25/04/2017","1036850 - 0","650","Revenue","20013489","BAKER SHEPHERD GILLESPIE"
"Housing Services","Reactive Maintenance & Minor Repairs","B1101","09/05/2017","1036856 - 0","13109.47","Revenue","20019417","DMA SIGNS LTD"
"Housing Services","Reactive Maintenance & Minor Repairs","B1101","09/05/2017","1036857 - 0","1475.09","Revenue","20019417","DMA SIGNS LTD"
"Housing Services","Temporary Bureau Staffing","A0108","23/05/2017","1037045 - 0","876.88","Revenue","20018833","JAMES ANDREWS RECRUITMENT SOLUTIONS LTD"
"Housing Services","Homelessness Accommodation Lease Payments","D3611","03/05/2017","1037058 - 1","25000","Revenue","20010426","OXFORD REAL LIMITED"
"Housing Services","Reactive Maintenance & Minor Repairs","B1101","23/05/2017","1037086 - 0","2564","Revenue","20018693","SWINDON ASBESTOS SURVEYING LTD"
"Housing Services","Homelessness Accommodation Lease Payments","D3611","31/05/2017","1037101 - 1","5361","Revenue","20010650","MR JOHN KEOWN"
"Housing Services","Homelessness Accommodation Lease Payments","D3611","31/05/2017","1037102 - 1","5361","Revenue","20010650","MR JOHN KEOWN"
"Housing Services","Homelessness Accommodation Lease Payments","D3611","31/05/2017","1037103 - 1","5025","Revenue","20010650","MR JOHN KEOWN"
"Housing Services","Services Maintenance (Planned)","B1103","23/05/2017","1037107 - 0","19499.36","Revenue","20000210","BARKER & EVANS LTD"
"Housing Services","Services Maintenance (Planned)","B1103","09/05/2017","1037160 - 0","727.08","Revenue","20006133","GREENFLOW"
"Housing Services","Furniture & Equipment Purchase","D3001","09/05/2017","1037175 - 0","1500","Revenue","20007932","FURNISHED HOMES (UNDERLEY FURNISHINGS) LTD"
"Housing Services","Services Maintenance (Planned)","B1103","09/05/2017","1037196 - 1","432.34","Revenue","20002507","THE CHILTERN LIFT CO LTD"
"Housing Services","Temporary Bureau Staffing","A0108","31/05/2017","1037216 - 0","905.63","Revenue","20018833","JAMES ANDREWS RECRUITMENT SOLUTIONS LTD"
"Housing Services","Bond Payments Homeless","D3600","16/05/2017","1037236 - 0","660","Revenue","20011972","EXTREME ENVIRONMENTAL SERVICES LTD"
"Housing Services","Main Contractor","Y021","16/05/2017","1037314 - 0","14100","Capital","20002369","RIDGE & PARTNERS LLP"
"Housing Services","Reactive Maintenance & Minor Repairs","B1101","31/05/2017","1037318 - 0","24500","Revenue","20009825","MAYLARCH ENVIRONMENTAL LTD"
"Housing Services","Reactive Maintenance & Minor Repairs","B1101","16/05/2017","1037347 - 0","2395","Revenue","20011508","D A MILES & SONS"
"Housing Services","Services Maintenance (Planned)","B1103","06/06/2017","1037405 - 3","4534.7","Revenue","20000210","BARKER & EVANS LTD"
"Housing Services","Reactive Maintenance & Minor Repairs","B1101","16/05/2017","1037423 - 0","1296","Revenue","20000210","BARKER & EVANS LTD"
"Housing Services","Subscriptions","D3703","23/05/2017","1037506 - 0","6750","Revenue","20013618","ASSOCIATION OF RETAINED COUNCIL HOUSING"
"Housing Services","Reactive Maintenance & Minor Repairs","B1101","23/05/2017","1037525 - 0","1955","Revenue","20011508","D A MILES & SONS"
"Housing Services","Reactive Maintenance & Minor Repairs","B1101","23/05/2017","1037526 - 0","2006","Revenue","20011508","D A MILES & SONS"
"Housing Services","Capital Scheme Budget","Y000","13/06/2017","1037536 - 0","10000","Capital","20008467","JONES LANG LASALLE LTD"
"Housing Services","Reactive Maintenance & Minor Repairs","B1101","31/05/2017","1037597 - 0","715","Revenue","20000397","WINDRUSH DOOR & WINDOW SERVICES LTD"
"Housing Services","Reactive Maintenance & Minor Repairs","B1101","23/05/2017","1037598 - 0","2250","Revenue","20000397","WINDRUSH DOOR & WINDOW SERVICES LTD"
"Housing Services","Consultants Fees","D3411","20/06/2017","1037638 - 0","3410.61","Revenue","20019073","TROWN HOUSING CONSULTANCY"
"Housing Services","Subscriptions","D3703","31/05/2017","1037657 - 1","1309","Revenue","20011643","BSI"
"Housing Services","Reactive Maintenance & Minor Repairs","B1101","31/05/2017","1037687 - 0","3389","Revenue","20013614","SMS ENVIRONMENTAL LIMITED"
"Housing Services","Reactive Maintenance & Minor Repairs","B1101","31/05/2017","1037688 - 0","1064","Revenue","20013614","SMS ENVIRONMENTAL LIMITED"
"Housing Services","Reactive Maintenance & Minor Repairs","B1101","06/06/2017","1037695 - 0","950","Revenue","20019316","TRUTH LTD T/A KJC FELT ROOFING"
"Housing Services","Reactive Maintenance & Minor Repairs","B1101","06/06/2017","1037697 - 0","465","Revenue","20019316","TRUTH LTD T/A KJC FELT ROOFING"
"Housing Services","Reactive Maintenance & Minor Repairs","B1101","06/06/2017","1037698 - 0","795","Revenue","20019316","TRUTH LTD T/A KJC FELT ROOFING"
"Housing Services","Reactive Maintenance & Minor Repairs","B1101","31/05/2017","1037702 - 1","700","Revenue","20019316","TRUTH LTD T/A KJC FELT ROOFING"
"Housing Services","Reactive Maintenance & Minor Repairs","B1101","31/05/2017","1037704 - 0","750","Revenue","20019316","TRUTH LTD T/A KJC FELT ROOFING"
"Housing Services","Main Contractor","Y021","31/05/2017","1037711 - 0","1017.32","Capital","20016705","SOUTHERN ELECTRIC POWER DISTRIBUTION PLC"
"Housing Services","Services Maintenance (Planned)","B1103","31/05/2017","1037745 - 0","6553.5","Revenue","20013614","SMS ENVIRONMENTAL LIMITED"
"Housing Services","Services Maintenance (Planned)","B1103","31/05/2017","1037746 - 0","19171.4","Revenue","20013614","SMS ENVIRONMENTAL LIMITED"
"Housing Services","Services Maintenance (Planned)","B1103","31/05/2017","1037747 - 0","15998","Revenue","20013614","SMS ENVIRONMENTAL LIMITED"
"Housing Services","Services Maintenance (Planned)","B1103","06/06/2017","1037771 - 0","14658","Revenue","20013614","SMS ENVIRONMENTAL LIMITED"
"Housing Services","Reactive Maintenance & Minor Repairs","B1101","13/06/2017","1037793 - 0","550","Revenue","20018743","OXFORD SOUND & MEDIA"
"Housing Services","Reactive Maintenance & Minor Repairs","B1101","06/06/2017","1037795 - 0","560","Revenue","20010837","DICK RUDMAN"
"Housing Services","Services Maintenance (Planned)","B1103","20/06/2017","1037796 - 0","19951.61","Revenue","20000210","BARKER & EVANS LTD"
"Housing Services","Bond Payments Homeless","D3600","06/06/2017","1037800 - 0","1514.5","Revenue","20011218","FOCUSPLAIN LIMITED"
"Housing Services","Bond Payments Homeless","D3600","06/06/2017","1037801 - 0","1529","Revenue","20011218","FOCUSPLAIN LIMITED"
"Housing Services","Homelessness Accommodation Lease Payments","D3611","20/06/2017","1037886 - 1","17290","Revenue","20011218","FOCUSPLAIN LIMITED"
"Housing Services","Homelessness Accommodation Lease Payments","D3611","20/06/2017","1037887 - 1","19760","Revenue","20011218","FOCUSPLAIN LIMITED"
"Housing Services","Homelessness Accommodation Lease Payments","D3611","27/06/2017","1037888 - 1","17680","Revenue","20011218","FOCUSPLAIN LIMITED"
"Housing Services","Services Maintenance (Planned)","B1103","13/06/2017","1037968 - 0","360","Revenue","20004494","COTSWOLD LIFTS LTD"
"Housing Services","Reactive Maintenance & Minor Repairs","B1101","13/06/2017","1038002 - 0","445","Revenue","20019316","TRUTH LTD T/A KJC FELT ROOFING"
"Housing Services","Reactive Maintenance & Minor Repairs","B1101","13/06/2017","1038003 - 0","458","Revenue","20019316","TRUTH LTD T/A KJC FELT ROOFING"
"Housing Services","Services Maintenance (Planned)","B1103","20/06/2017","1038014 - 1","2175.61","Revenue","20002568","PYROTEC SERVICES LTD"
"Housing Services","Services Maintenance (Planned)","B1103","20/06/2017","1038025 - 2","2577.15","Revenue","20002568","PYROTEC SERVICES LTD"
"Housing Services","Reactive Maintenance & Minor Repairs","B1101","20/06/2017","1038095 - 0","2706","Revenue","20000244","OXFORD REFRIGERATION LTD"
"Housing Services","Services Maintenance (Planned)","B1103","20/06/2017","1038103 - 1","5379","Revenue","20013614","SMS ENVIRONMENTAL LIMITED"
"Housing Services","Reactive Maintenance & Minor Repairs","B1101","20/06/2017","1038113 - 0","600","Revenue","20017850","SAFESITE LTD"
"Housing Services","Services Maintenance (Planned)","B1103","27/06/2017","1038156 - 0","560","Revenue","20002568","PYROTEC SERVICES LTD"
"Housing Services","Services Maintenance (Planned)","B1103","27/06/2017","1038170 - 0","1850","Revenue","20015973","CBG CONSULTANTS LTD"
"Housing Services","Reactive Maintenance & Minor Repairs","B1101","27/06/2017","1038177 - 0","945","Revenue","20019316","TRUTH LTD T/A KJC FELT ROOFING"
"Housing Services","Reactive Maintenance & Minor Repairs","B1101","27/06/2017","1038178 - 0","750","Revenue","20019316","TRUTH LTD T/A KJC FELT ROOFING"
"Housing Services","Reactive Maintenance & Minor Repairs","B1101","27/06/2017","1038179 - 0","628","Revenue","20019316","TRUTH LTD T/A KJC FELT ROOFING"
"Housing Services","Reactive Maintenance & Minor Repairs","B1101","27/06/2017","1038208 - 0","1498","Revenue","20011508","D A MILES & SONS"
"Housing Services","Reactive Maintenance & Minor Repairs","B1101","27/06/2017","1038209 - 0","1855","Revenue","20011508","D A MILES & SONS"
"Housing Services","Reactive Maintenance & Minor Repairs","B1101","27/06/2017","1038210 - 0","1599","Revenue","20011508","D A MILES & SONS"
"Housing Services","Reactive Maintenance & Minor Repairs","B1101","27/06/2017","1038266 - 0","760","Revenue","20016518","BESPOKE STONEMASONRY SERVICES LTD"
"Housing Services","Furniture & Equipment Purchase","D3001","27/06/2017","1038305 - 0","1290","Revenue","20007932","FURNISHED HOMES (UNDERLEY FURNISHINGS) LTD"
"Housing Services","Reactive Maintenance & Minor Repairs","B1101","27/06/2017","1038313 - 0","2650","Revenue","20011508","D A MILES & SONS"
"Housing Services","Reactive Maintenance & Minor Repairs","B1101","27/06/2017","1038325 - 0","1995","Revenue","20011508","D A MILES & SONS"
"Housing Services","Grants","D3701","04/04/2017","46293066 - 1","5964","Revenue","20004693","CRISIS"
"Housing Services","Homeless Prevention","D3426","04/04/2017","46293171 - 1","701.7","Revenue","20014702","PREMIER LETTING"
"Housing Services","Grants","D3701","04/04/2017","46293179 - 1","1617","Revenue","20015791","A2 DOMINION GROUP"
"Housing Services","Grants","D3701","04/04/2017","46293180 - 1","15000","Revenue","20008698","OXFORD HOMELESS PATHWAYS"
"Housing Services","Grants","D3701","04/04/2017","46293181 - 1","4500","Revenue","20007948","CHENEY SCHOOL ACADEMY TRUST"
"Housing Services","Rent Allowance Cheques (Home Choice)","F5033","04/04/2017","46293199 - 1","4125","Revenue","20016904","CHARLIE MCDONAGH"
"Housing Services","Homeless Prevention","D3426","04/04/2017","46293218 - 1","2442.6","Revenue","20019537","MR MANAWWAR NASIR"
"Housing Services","Homeless Prevention","D3426","04/04/2017","46293221 - 1","625","Revenue","20019538","SURELET CHELTENHAM"
"Housing Services","Other Miscellaneous Expenses","D3811","04/04/2017","46293222 - 1","1000","Revenue","20014702","PREMIER LETTING"
"Housing Services","Homeless Prevention","D3426","04/04/2017","46293251 - 1","500","Revenue","20000010","HOUSING PAYMENTS"
"Housing Services","Homeless Prevention","D3426","04/04/2017","46293255 - 1","1232.76","Revenue","20000010","HOUSING PAYMENTS"
"Housing Services","Other Miscellaneous Expenses","D3811","04/04/2017","46293263 - 1","1027.4","Revenue","20014702","PREMIER LETTING"
"Housing Services","Rent Allowance Cheques (Home Choice)","F5033","11/04/2017","46293303 - 1","500","Revenue","20000010","HOUSING PAYMENTS"
"Housing Services","Rent Allowance Cheques (Home Choice)","F5033","11/04/2017","46293305 - 1","750","Revenue","20014496","SANJAY BHANDARI"
"Housing Services","Homeless Prevention","D3426","11/04/2017","46293306 - 1","830","Revenue","20019548","MR MALCOLM SPIERS"
"Housing Services","Homeless Prevention","D3426","11/04/2017","46293307 - 1","500","Revenue","20000010","HOUSING PAYMENTS"
"Housing Services","Homeless Prevention","D3426","11/04/2017","46293310 - 1","612.14","Revenue","20015871","MR W MUELLER"
"Housing Services","Homeless Prevention","D3426","03/04/2017","46293313 - 1","2035","Revenue","20019442","MR E ALDWORTH/MR MJ NASH"
"Housing Services","Consultants Fees","D3411","25/04/2017","46293331 - 11","42","Revenue","20011499","TOPS"
"Housing Services","Rent Allowance Cheques (Home Choice)","F5033","11/04/2017","46293332 - 1","3300","Revenue","20015668","LINCOMBE PROPERTY SERVICES"
"Housing Services","Rent Allowance Cheques (Home Choice)","F5033","11/04/2017","46293333 - 1","4350","Revenue","20015668","LINCOMBE PROPERTY SERVICES"
"Housing Services","Rent Allowance Cheques (Home Choice)","F5033","11/04/2017","46293334 - 1","3300","Revenue","20019555","MISS VELMA SHALLOW"
"Housing Services","Homeless Prevention","D3426","11/04/2017","46293336 - 1","1212","Revenue","20019556","MR DANIEL O'DONNELL"
"Housing Services","Other Miscellaneous Expenses","D3811","11/04/2017","46293337 - 1","1152.3","Revenue","20000018","Homelessness Holding Fee Misc Account"
"Housing Services","Rent Allowance Cheques (Home Choice)","F5033","11/04/2017","46293339 - 1","900","Revenue","20019475","AMY TERBLANCHE & REAGAN HOOPER"
"Housing Services","Rent Allowance Cheques (Home Choice)","F5033","11/04/2017","46293339 - 2","213.57","Revenue","20019475","AMY TERBLANCHE & REAGAN HOOPER"
"Housing Services","Rent Allowance Cheques (Home Choice)","F5033","11/04/2017","46293340 - 1","545.52","Revenue","20016682","MR MANESH GANDHI"
"Housing Services","Homeless Prevention","D3426","11/04/2017","46293341 - 1","1000","Revenue","20019549","MRS J BEGUM"
"Housing Services","Rent Allowance Cheques (Home Choice)","F5033","11/04/2017","46293342 - 1","1017.75","Revenue","20019549","MRS J BEGUM"
"Housing Services","Rent Allowance Cheques (Home Choice)","F5033","11/04/2017","46293343 - 1","1246","Revenue","20019549","MRS J BEGUM"
"Housing Services","Rent Allowance Cheques (Home Choice)","F5033","11/04/2017","46293344 - 1","2100","Revenue","20015665","ABBEY PROPERTIES"
"Housing Services","Homeless Prevention","D3426","11/04/2017","46293345 - 1","1091.04","Revenue","20019550","DAVID & CAROLINE BRANDON"
"Housing Services","Rent Allowance Cheques (Home Choice)","F5033","11/04/2017","46293347 - 1","510","Revenue","20000010","HOUSING PAYMENTS"
"Housing Services","Rent Allowance Cheques (Home Choice)","F5033","11/04/2017","46293348 - 1","895","Revenue","20015359","URWIN (OXFORD)LTD T/AS MARTIN & CO CLIENT A/C"
"Housing Services","Grants","D3701","11/04/2017","46293360 - 1","4610","Revenue","20000000","GENERAL EXPENSES"
"Housing Services","Grants","D3701","11/04/2017","46293371 - 1","16220.5","Revenue","20010170","CONNECTION SUPPORT"
"Housing Services","Grants","D3701","11/04/2017","46293372 - 1","1911","Revenue","20010170","CONNECTION SUPPORT"
"Housing Services","Homeless Prevention","D3426","11/04/2017","46293393 - 1","2035.5","Revenue","20019442","MR E ALDWORTH/MR MJ NASH"
"Housing Services","Temporary Bureau Staffing","A0108","19/04/2017","46293414 - 6","19874.25","Revenue","20018053","REED SPECIALIST RECRUITMENT LTD"
"Housing Services","Temporary Bureau Staffing","A0108","19/04/2017","46293414 - 20","1808.87","Revenue","20018053","REED SPECIALIST RECRUITMENT LTD"
"Housing Services","Services Maintenance (Planned)","B1103","25/04/2017","46293417 - 4","200","Revenue","20004494","COTSWOLD LIFTS LTD"
"Housing Services","Services Maintenance (Planned)","B1103","25/04/2017","46293417 - 5","80","Revenue","20004494","COTSWOLD LIFTS LTD"
"Housing Services","Services Maintenance (Planned)","B1103","25/04/2017","46293417 - 6","40","Revenue","20004494","COTSWOLD LIFTS LTD"
"Housing Services","Fire Alarms and Emergency Lighting","B1241","19/04/2017","46293418 - 6","669.85","Revenue","20002568","PYROTEC SERVICES LTD"
"Housing Services","Fire Alarms and Emergency Lighting","B1241","19/04/2017","46293418 - 8","1859.65","Revenue","20002568","PYROTEC SERVICES LTD"
"Housing Services","Rent Allowance Cheques (Home Choice)","F5033","25/04/2017","46293476 - 1","1042.5","Revenue","20010426","OXFORD REAL LIMITED"
"Housing Services","Rent Allowance Cheques (Home Choice)","F5033","25/04/2017","46293484 - 1","1800","Revenue","20019475","AMY TERBLANCHE & REAGAN HOOPER"
"Housing Services","Rent Allowance Cheques (Home Choice)","F5033","25/04/2017","46293484 - 2","791.04","Revenue","20019475","AMY TERBLANCHE & REAGAN HOOPER"
"Housing Services","Rent Allowance Cheques (Home Choice)","F5033","25/04/2017","46293484 - 3","900","Revenue","20019475","AMY TERBLANCHE & REAGAN HOOPER"
"Housing Services","Homeless Prevention","D3426","25/04/2017","46293491 - 1","1691.04","Revenue","20019571","MS STACEY CHURCHER"
"Housing Services","Homeless Prevention","D3426","25/04/2017","46293493 - 1","2400","Revenue","20019574","MR M AND MRS A BHOMRA"
"Housing Services","Rent Allowance Cheques (Home Choice)","F5033","03/05/2017","46293560 - 1","3300","Revenue","20014513","MR M LENTHALL"
"Housing Services","Rent Allowance Cheques (Home Choice)","F5033","03/05/2017","46293561 - 1","2775","Revenue","20015204","A B I PROPERTIES"
"Housing Services","Rent Allowance Cheques (Home Choice)","F5033","03/05/2017","46293562 - 1","2775","Revenue","20015204","A B I PROPERTIES"
"Housing Services","Rent Allowance Cheques (Home Choice)","F5033","03/05/2017","46293563 - 1","2775","Revenue","20015204","A B I PROPERTIES"
"Housing Services","Rent Allowance Cheques (Home Choice)","F5033","03/05/2017","46293564 - 1","2775","Revenue","20015204","A B I PROPERTIES"
"Housing Services","Rent Allowance Cheques (Home Choice)","F5033","03/05/2017","46293565 - 1","975","Revenue","20019581","MR MUSAHID SYED"
"Housing Services","Rent Allowance Cheques (Home Choice)","F5033","03/05/2017","46293566 - 1","1691.04","Revenue","20019581","MR MUSAHID SYED"
"Housing Services","Grants","D3701","09/05/2017","46293608 - 1","777","Revenue","20010170","CONNECTION SUPPORT"
"Housing Services","Homeless Prevention","D3426","09/05/2017","46293624 - 1","625","Revenue","20019538","SURELET CHELTENHAM"
"Housing Services","Rent Allowance Cheques (Home Choice)","F5033","09/05/2017","46293634 - 1","2775","Revenue","20019371","MR FINBARR CALNAN"
"Housing Services","Homeless Prevention","D3426","09/05/2017","46293635 - 1","1511.04","Revenue","20000010","HOUSING PAYMENTS"
"Housing Services","Rent Allowance Cheques (Home Choice)","F5033","09/05/2017","46293639 - 1","3300","Revenue","20015668","LINCOMBE PROPERTY SERVICES"
"Housing Services","Rent Allowance Cheques (Home Choice)","F5033","09/05/2017","46293640 - 1","2775","Revenue","20015204","A B I PROPERTIES"
"Housing Services","Consultants Fees","D3411","31/05/2017","46293671 - 15","141","Revenue","20011499","TOPS"
"Housing Services","Homeless Prevention","D3426","16/05/2017","46293673 - 1","795","Revenue","20019585","MR BENJAMIN AWUNOR"
"Housing Services","Temporary Bureau Staffing","A0108","16/05/2017","46293675 - 1","13163.59","Revenue","20018053","REED SPECIALIST RECRUITMENT LTD"
"Housing Services","Temporary Bureau Staffing","A0108","16/05/2017","46293675 - 35","1921.46","Revenue","20018053","REED SPECIALIST RECRUITMENT LTD"
"Housing Services","Rent Allowance Cheques (Home Choice)","F5033","16/05/2017","46293688 - 1","4125","Revenue","20019586","MRS ZHALEH GHOMSHEI"
"Housing Services","Rent Allowance Cheques (Home Choice)","F5033","16/05/2017","46293689 - 1","2775","Revenue","20019469","MS EMMA MCLEOD"
"Housing Services","Rent Allowance Cheques (Home Choice)","F5033","16/05/2017","46293690 - 1","2150","Revenue","20019588","MR P & MRS DW DOWLEY"
"Housing Services","Rent Allowance Cheques (Home Choice)","F5033","16/05/2017","46293697 - 1","500","Revenue","20019587","MR RAMZI SANCAR"
"Housing Services","Rent Allowance Cheques (Home Choice)","F5033","16/05/2017","46293698 - 1","500","Revenue","20019587","MR RAMZI SANCAR"
"Housing Services","Rent Allowance Cheques (Home Choice)","F5033","16/05/2017","46293699 - 1","3300","Revenue","20019587","MR RAMZI SANCAR"
"Housing Services","Void Tenant Choice","B1186","16/05/2017","46293700 - 1","5800","Revenue","20000010","HOUSING PAYMENTS"
"Housing Services","Grants","D3701","16/05/2017","46293706 - 1","1620","Revenue","20000000","GENERAL EXPENSES"
"Housing Services","Grants","D3701","16/05/2017","46293707 - 1","14833","Revenue","20009273","ASYLUM WELCOME"
"Housing Services","Homeless Prevention","D3426","16/05/2017","46293720 - 1","900","Revenue","20019484","MR DOUGLAS HUGHES T/A OXFORDSHIRE ESTATES"
"Housing Services","Homeless Prevention","D3426","16/05/2017","46293721 - 1","825","Revenue","20019484","MR DOUGLAS HUGHES T/A OXFORDSHIRE ESTATES"
"Housing Services","Rent Allowance Cheques (Home Choice)","F5033","23/05/2017","46293731 - 1","1668.16","Revenue","20019442","MR E ALDWORTH/MR MJ NASH"
"Housing Services","Rent Allowance Cheques (Home Choice)","F5033","23/05/2017","46293732 - 1","834.08","Revenue","20019442","MR E ALDWORTH/MR MJ NASH"
"Housing Services","Rent Allowance Cheques (Home Choice)","F5033","23/05/2017","46293734 - 1","1668.16","Revenue","20019440","MR E ALDWORTH"
"Housing Services","Rent Allowance Cheques (Home Choice)","F5033","23/05/2017","46293735 - 1","834.08","Revenue","20019440","MR E ALDWORTH"
"Housing Services","Homeless Prevention","D3426","23/05/2017","46293737 - 1","1692","Revenue","20019590","MR ALAN HATHAWAY"
"Housing Services","Grants","D3701","23/05/2017","46293787 - 1","800","Revenue","20000000","GENERAL EXPENSES"
"Housing Services","Rent Allowance Cheques (Home Choice)","F5033","23/05/2017","46293798 - 1","1933.73","Revenue","20019598","MRS MOVONEY ANTHONY"
"Housing Services","Rent Allowance Cheques (Home Choice)","F5033","23/05/2017","46293801 - 1","1500","Revenue","20014495","GRANDE PROPERTY SERVICES"
"Housing Services","Window Cleaning","B1606","20/06/2017","46293812 - 3","585","Revenue","20008024","KINGS SERVICES"
"Housing Services","Rent Allowance Cheques (Home Choice)","F5033","31/05/2017","46293815 - 1","3300","Revenue","20015204","A B I PROPERTIES"
"Housing Services","Rent Allowance Cheques (Home Choice)","F5033","31/05/2017","46293816 - 1","900","Revenue","20019595","AIDAN COSTELLOE"
"Housing Services","Homeless Prevention","D3426","31/05/2017","46293842 - 1","1266.88","Revenue","20019368","MR JOHN S & MRS VERONICA T WALTERS"
"Housing Services","Homeless Prevention","D3426","31/05/2017","46293844 - 1","621.14","Revenue","20015871","MR W MUELLER"
"Housing Services","Consultants Fees","D3411","31/05/2017","46293848 - 1","7046","Revenue","20008184","CITIZENS ADVICE BUREAU"
"Housing Services","Homeless Prevention","D3426","31/05/2017","46293872 - 1","1511.04","Revenue","20019606","MR & MRS D BROWN"
"Housing Services","Rent Allowance Cheques (Home Choice)","F5033","31/05/2017","46293876 - 1","1026","Revenue","20000010","HOUSING PAYMENTS"
"Housing Services","Rent Allowance Cheques (Home Choice)","F5033","31/05/2017","46293881 - 1","803.87","Revenue","20000010","HOUSING PAYMENTS"
"Housing Services","Other Miscellaneous Expenses","D3811","06/06/2017","46293976 - 1","500","Revenue","20009273","ASYLUM WELCOME"
"Housing Services","Homeless Prevention","D3426","06/06/2017","46293987 - 1","580","Revenue","20019626","JOHNSONS PROPERTY CONSULTANCY LTD"
"Housing Services","Homeless Prevention","D3426","06/06/2017","46293988 - 1","1106.88","Revenue","20019623","CHERWELL PROPERTY SERVICES LTD"
"Housing Services","Rent Allowance Cheques (Home Choice)","F5033","06/06/2017","46293989 - 1","1790","Revenue","20019625","LANSBROUGH ESTATES LTD"
"Housing Services","Rent Allowance Cheques (Home Choice)","F5033","06/06/2017","46293990 - 1","895","Revenue","20019625","LANSBROUGH ESTATES LTD"
"Housing Services","Rent Allowance Cheques (Home Choice)","F5033","06/06/2017","46293992 - 1","975","Revenue","20019624","MR MICHAEL GOTCH"
"Housing Services","Homeless Prevention","D3426","06/06/2017","46293993 - 1","1232.76","Revenue","20015027","JACQUI LEWIS"
"Housing Services","Homeless Prevention","D3426","06/06/2017","46293996 - 1","1150","Revenue","20019484","MR DOUGLAS HUGHES T/A OXFORDSHIRE ESTATES"
"Housing Services","Homeless Prevention","D3426","06/06/2017","46293998 - 1","1221.3","Revenue","20015871","MR W MUELLER"
"Housing Services","Homeless Prevention","D3426","06/06/2017","46293999 - 1","1691.04","Revenue","20019581","MR MUSAHID SYED"
"Housing Services","Temporary Bureau Staffing","A0108","13/06/2017","46294016 - 7","30879.38","Revenue","20018053","REED SPECIALIST RECRUITMENT LTD"
"Housing Services","Temporary Bureau Staffing","A0108","13/06/2017","46294016 - 16","1805.03","Revenue","20018053","REED SPECIALIST RECRUITMENT LTD"
"Housing Services","Homeless Prevention","D3426","13/06/2017","46294027 - 1","500","Revenue","20000000","GENERAL EXPENSES"
"Housing Services","Grants","D3701","13/06/2017","46294034 - 1","10202.33","Revenue","20002930","OXFORDSHIRE COUNTY COUNCIL"
"Housing Services","Rent Allowance Cheques (Home Choice)","F5033","13/06/2017","46294049 - 1","3900","Revenue","20019518","S ALI MOHAMED"
"Housing Services","Homeless Prevention","D3426","13/06/2017","46294050 - 1","580","Revenue","20019639","THE GRAHAM RHODES TRUST"
"Housing Services","Rent Allowance Cheques (Home Choice)","F5033","13/06/2017","46294051 - 1","2775","Revenue","20015351","ADMIRAL HOMES"
"Housing Services","Consultants Fees","D3411","31/05/2017","46294052 - 14","84","Revenue","20011499","TOPS"
"Housing Services","Rent Allowance Cheques (Home Choice)","F5033","13/06/2017","46294057 - 1","1425","Revenue","20019640","MISS AMANDA CURTIS"
"Housing Services","Rent Allowance Cheques (Home Choice)","F5033","13/06/2017","46294066 - 1","4125","Revenue","20019472","APQ PROPERTIES LTD"
"Housing Services","Rent Allowance Cheques (Home Choice)","F5033","13/06/2017","46294067 - 1","2775","Revenue","20019607","SHELLEY NUTT"
"Housing Services","Homeless Prevention","D3426","13/06/2017","46294073 - 1","500","Revenue","20000010","HOUSING PAYMENTS"
"Housing Services","Grants","D3701","20/06/2017","46294174 - 1","660","Revenue","20000000","GENERAL EXPENSES"
"Housing Services","Rent Allowance Cheques (Home Choice)","F5033","20/06/2017","46294182 - 1","3300","Revenue","20019428","FRANCIS PEARSON"
"Housing Services","Rent Allowance Cheques (Home Choice)","F5033","20/06/2017","46294189 - 1","2775","Revenue","20019421","ALEXANDRA HELENE NOBLE"
"Housing Services","Homeless Prevention","D3426","20/06/2017","46294199 - 1","890","Revenue","20019642","RICHARD TIMMS"
"Housing Services","Homeless Prevention","D3426","20/06/2017","46294201 - 1","850","Revenue","20000018","Homelessness Holding Fee Misc Account"
"Housing Services","Homeless Prevention","D3426","27/06/2017","46294255 - 1","1150","Revenue","20019484","MR DOUGLAS HUGHES T/A OXFORDSHIRE ESTATES"
"Housing Services","Rent Allowance Cheques (Home Choice)","F5033","27/06/2017","46294257 - 1","3300","Revenue","20019555","MISS VELMA SHALLOW"
"Housing Services","Rent Allowance Cheques (Home Choice)","F5033","27/06/2017","46294258 - 1","3300","Revenue","20015668","LINCOMBE PROPERTY SERVICES"
"Housing Services","Rent Allowance Cheques (Home Choice)","F5033","27/06/2017","46294259 - 1","4350","Revenue","20015668","LINCOMBE PROPERTY SERVICES"
"Housing Services","Rent Allowance Cheques (Home Choice)","F5033","27/06/2017","46294260 - 1","4125","Revenue","20019586","MRS ZHALEH GHOMSHEI"
"Housing Services","Rent Allowance Cheques (Home Choice)","F5033","27/06/2017","46294261 - 1","4125","Revenue","20016904","CHARLIE MCDONAGH"
"Housing Services","Rent Allowance Cheques (Home Choice)","F5033","27/06/2017","46294268 - 1","2775","Revenue","20019466","MR PETER BENNETT"
"Housing Services","Rent Allowance Cheques (Home Choice)","F5033","27/06/2017","46294269 - 1","2775","Revenue","20019633","AUDREY PARRIS"
"Housing Services","Rent Allowance Cheques (Home Choice)","F5033","27/06/2017","46294270 - 1","2775","Revenue","20010650","MR JOHN KEOWN"
"Housing Services","Consultants Fees","D3411","27/06/2017","46294284 - 15","84","Revenue","20011499","TOPS"
"Housing Services","Homeless Prevention","D3426","27/06/2017","46294285 - 1","500","Revenue","20000010","HOUSING PAYMENTS"
"Housing Services","Rent Allowance Cheques (Home Choice)","F5033","27/06/2017","46294288 - 1","2775","Revenue","20019466","MR PETER BENNETT"
"Housing Services","Gas","B1502","11/04/2017","47019089 - 0","12950.65","Revenue","20007602","TOTAL GAS & POWER LTD"
"Housing Services","Gas","B1502","25/04/2017","47019238 - 1","2838.71","Revenue","20007602","TOTAL GAS & POWER LTD"
"Housing Services","Water & Sewerage Charges","B1830","09/05/2017","47019649 - 0","939.78","Revenue","20019401","CASTLE WATER"
"Housing Services","Gas","B1502","09/05/2017","47019655 - 0","1281.7","Revenue","20007602","TOTAL GAS & POWER LTD"
"Housing Services","Water & Sewerage Charges","B1830","09/05/2017","47019656 - 1","891.7","Revenue","20019401","CASTLE WATER"
"Housing Services","Gas","B1502","09/05/2017","47019662 - 1","764","Revenue","20007602","TOTAL GAS & POWER LTD"
"Housing Services","Gas","B1502","09/05/2017","47019672 - 1","686.01","Revenue","20007602","TOTAL GAS & POWER LTD"
"Housing Services","Electricity","B1501","23/05/2017","47019723 - 0","3831.07","Revenue","20011411","NPOWER"
"Housing Services","Electricity","B1501","23/05/2017","47019728 - 1","4620.53","Revenue","20011411","NPOWER"
"Housing Services","Electricity","B1501","23/05/2017","47019730 - 1","3322.6","Revenue","20011411","NPOWER"
"Housing Services","Electricity","B1501","23/05/2017","47019733 - 0","3441.89","Revenue","20011411","NPOWER"
"Housing Services","Electricity","B1501","23/05/2017","47019740 - 0","2897.26","Revenue","20011411","NPOWER"
"Housing Services","Electricity","B1501","23/05/2017","47019741 - 1","2748.42","Revenue","20011411","NPOWER"
"Housing Services","Electricity","B1501","23/05/2017","47019746 - 0","3053.81","Revenue","20011411","NPOWER"
"Housing Services","Electricity","B1501","23/05/2017","47019748 - 0","3193.08","Revenue","20011411","NPOWER"
"Housing Services","Electricity","B1501","23/05/2017","47019752 - 0","3211.27","Revenue","20011411","NPOWER"
"Housing Services","Gas","B1502","23/05/2017","47019773 - 0","536.73","Revenue","20007602","TOTAL GAS & POWER LTD"
"Housing Services","Gas","B1502","23/05/2017","47019777 - 0","1671.28","Revenue","20007602","TOTAL GAS & POWER LTD"
"Housing Services","Gas","B1502","23/05/2017","47019788 - 0","439.89","Revenue","20002402","SOUTHERN ELECTRIC PLC"
"Housing Services","Gas","B1502","23/05/2017","47019794 - 1","422.17","Revenue","20002402","SOUTHERN ELECTRIC PLC"
"Housing Services","Gas","B1502","23/05/2017","47019801 - 1","438.53","Revenue","20002402","SOUTHERN ELECTRIC PLC"
"Housing Services","Electricity","B1501","23/05/2017","47019815 - 1","1091.77","Revenue","20002402","SOUTHERN ELECTRIC PLC"
"Housing Services","Electricity","B1501","23/05/2017","47019816 - 0","928.04","Revenue","20002402","SOUTHERN ELECTRIC PLC"
"Housing Services","Gas","B1502","20/06/2017","47020159 - 1","441.82","Revenue","20002402","SOUTHERN ELECTRIC PLC"
"Housing Services","Gas","B1502","20/06/2017","47020160 - 0","438.64","Revenue","20002402","SOUTHERN ELECTRIC PLC"
"Housing Services","Gas","B1502","20/06/2017","47020161 - 1","429.08","Revenue","20002402","SOUTHERN ELECTRIC PLC"
"Housing Services","Electricity","B1501","20/06/2017","47020174 - 0","2984.98","Revenue","20011411","NPOWER"
"Housing Services","Electricity","B1501","20/06/2017","47020198 - 1","4065.11","Revenue","20011411","NPOWER"
"Housing Services","Gas","B1502","20/06/2017","47020207 - 0","1074.22","Revenue","20007602","TOTAL GAS & POWER LTD"
"Housing Services","Water & Sewerage Charges","B1830","20/06/2017","47020222 - 0","1690.69","Revenue","20019401","CASTLE WATER"
"Housing Services","Water & Sewerage Charges","B1830","20/06/2017","47020224 - 0","1027.48","Revenue","20019401","CASTLE WATER"
"Housing Services","Acquisition of Land & Property","Y001","19/04/2017","48021820 - 1","1500","Capital","20000000","GENERAL EXPENSES"
"Housing Services","Acquisition of Land & Property","Y001","25/04/2017","48021821 - 1","9150","Capital","20016580","HMRC"
"Housing Services","Acquisition of Land & Property","Y001","31/05/2017","48021824 - 1","8500","Capital","20016580","HMRC"
"Housing Services","Acquisition of Land & Property","Y001","31/05/2017","48021825 - 1","9000","Capital","20016580","HMRC"
"Housing Services","Acquisition of Land & Property","Y001","27/06/2017","48021826 - 1","9050","Capital","20016580","HMRC"
"Housing Services","Acquisition of Land & Property","Y001","27/06/2017","48021827 - 1","8150","Capital","20016580","HMRC"
"Housing Services","Build'g Works D.L.O.Recharge","B1102","31/05/2017","60074216 - 0","640","Revenue","20007609","EXECUTIVE FIRE PROTECTION LTD"
"Housing Services","Build'g Works D.L.O.Recharge","B1102","27/06/2017","60075742 - 0","715","Revenue","20007609","EXECUTIVE FIRE PROTECTION LTD"
"Regeneration and Major Projects Team","Main Contractor","Y021","11/04/2017","1036208 - 0","139652.73","Capital","20019490","SUPPORT IN SPORT (UK)LTD"
"Regeneration and Major Projects Team","Main Contractor","Y021","04/04/2017","1036213 - 0","8919.57","Capital","20013684","ATKINS LIMITED"
"Regeneration and Major Projects Team","Main Contractor","Y021","25/04/2017","1036378 - 0","50575","Capital","20019509","LAWSON DEMOLITION LTD"
"Regeneration and Major Projects Team","Main Contractor","Y021","04/04/2017","1036379 - 0","40825","Capital","20019509","LAWSON DEMOLITION LTD"
"Regeneration and Major Projects Team","Main Contractor","Y021","19/04/2017","1036430 - 0","21161.23","Capital","20017269","CROFT BUILDING & CONSERVATION LTD"
"Regeneration and Major Projects Team","Main Contractor","Y021","19/04/2017","1036436 - 0","4026.25","Capital","20018996","ROBINSON LOW FRANCIS LLP"
"Regeneration and Major Projects Team","Main Contractor","Y021","04/04/2017","1036452 - 0","23137.16","Capital","20000225","FERGAL CONTRACTING CO LTD"
"Regeneration and Major Projects Team","Main Contractor","Y021","11/04/2017","1036563 - 0","2800","Capital","20018107","PURCELL MILLER TRITTON LLP T/A PURCELL"
"Regeneration and Major Projects Team","Main Contractor","Y021","06/06/2017","1036574 - 0","1050","Capital","20013684","ATKINS LIMITED"
"Regeneration and Major Projects Team","Main Contractor","Y021","25/04/2017","1036610 - 0","650","Capital","20016656","AKSWARD LTD"
"Regeneration and Major Projects Team","Main Contractor","Y021","03/05/2017","1037009 - 0","2800","Capital","20018107","PURCELL MILLER TRITTON LLP T/A PURCELL"
"Regeneration and Major Projects Team","Main Contractor","Y021","09/05/2017","1037148 - 0","3000","Capital","20017120","ADP ARCHITECTS"
"Regeneration and Major Projects Team","Main Contractor","Y021","23/05/2017","1037240 - 0","25048.8","Capital","20019509","LAWSON DEMOLITION LTD"
"Regeneration and Major Projects Team","Main Contractor","Y021","06/06/2017","1037342 - 0","1145.76","Capital","20013684","ATKINS LIMITED"
"Regeneration and Major Projects Team","Main Contractor","Y021","13/06/2017","1037369 - 1","1290","Capital","20013684","ATKINS LIMITED"
"Regeneration and Major Projects Team","Main Contractor","Y021","06/06/2017","1037416 - 0","41967.57","Capital","20017269","CROFT BUILDING & CONSERVATION LTD"
"Regeneration and Major Projects Team","Main Contractor","Y021","06/06/2017","1037767 - 0","2800","Capital","20018107","PURCELL MILLER TRITTON LLP T/A PURCELL"
"Regeneration and Major Projects Team","Main Contractor","Y021","13/06/2017","1037903 - 0","5275.38","Capital","20013684","ATKINS LIMITED"
"Regeneration and Major Projects Team","Main Contractor","Y021","13/06/2017","1038009 - 0","1610","Capital","20017120","ADP ARCHITECTS"
"Environmental Sustainability","Main Contractor","Y021","19/04/2017","1036168 - 0","4400","Capital","20012389","PUMPING  SOLUTIONS  (UK)  LTD"
"Environmental Sustainability","Miscellaneous Fees","Y173","11/04/2017","1036674 - 0","1000","Capital","20002930","OXFORDSHIRE COUNTY COUNCIL"
"Environmental Sustainability","Miscellaneous Fees","Y173","16/05/2017","1037004 - 1","5048","Capital","20013684","ATKINS LIMITED"
"Environmental Sustainability","Main Contractor","Y021","16/05/2017","1037005 - 0","12952","Capital","20013684","ATKINS LIMITED"
"Environmental Sustainability","Miscellaneous Fees","Y173","09/05/2017","1037117 - 0","1000","Capital","20002930","OXFORDSHIRE COUNTY COUNCIL"
"Environmental Sustainability","Main Contractor","Y021","09/05/2017","1037201 - 0","3269","Capital","20002930","OXFORDSHIRE COUNTY COUNCIL"
"Environmental Sustainability","Main Contractor","Y021","20/06/2017","1037849 - 0","2160","Capital","20019576","CORINNE WELCH LTD"
"Environmental Sustainability","Other Contributions","Y995","04/04/2017","48021818 - 1","380000","Capital","20002929","ENVIRONMENT AGENCY"
"Community Services","General Contracted Services","D3401","06/06/2017","1035617 - 0","800","Revenue","20005968","WESLEY MEMORIAL METHODIST CHR"
"Community Services","Special Events","D3807","04/04/2017","1035865 - 0","578.33","Revenue","20018333","SURF & TURF INSTANT SHELTERS LTD"
"Community Services","Security Services","D3418","09/05/2017","1035973 - 0","1514.73","Revenue","20011183","SELECT SECURITY & STEWARDING LIMITED"
"Community Services","Security Services","D3418","11/04/2017","1035974 - 0","2272.08","Revenue","20011183","SELECT SECURITY & STEWARDING LIMITED"
"Community Services","Furniture & Equipment Purchase","D3001","11/04/2017","1036047 - 0","1348.56","Revenue","20002079","BISHOP SPORTS & LEISURE LTD"
"Community Services","Awards / Prizes","D3705","11/04/2017","1036063 - 0","1621","Revenue","20015810","KEEP BRITAIN TIDY"
"Community Services","Photocopying/Paper Supplies","D3306","11/04/2017","1036129 - 1","1162.97","Revenue","20002121","CANON (UK) LTD"
"Community Services","Photocopying/Paper Supplies","D3306","11/04/2017","1036130 - 1","693.24","Revenue","20002121","CANON (UK) LTD"
"Community Services","Photocopying/Paper Supplies","D3306","11/04/2017","1036131 - 1","489.18","Revenue","20002121","CANON (UK) LTD"
"Community Services","Security Services","D3418","11/04/2017","1036162 - 0","566","Revenue","20018420","SHOWSEC INTERNATIONAL LTD"
"Community Services","Conferences","D3602","19/04/2017","1036225 - 0","875","Revenue","20014717","CSP NATIONAL NETWORK"
"Community Services","General Contracted Services","D3401","19/04/2017","1036273 - 0","550","Revenue","20017268","DIONNE FREEMAN"
"Community Services","General Contracted Services","D3401","19/04/2017","1036274 - 0","1100","Revenue","20017268","DIONNE FREEMAN"
"Community Services","Grants","D3701","19/04/2017","1036276 - 0","4426.33","Revenue","20013292","Bury Knowle Health Centre"
"Community Services","General Contracted Services","D3401","04/04/2017","1036292 - 0","854.5","Revenue","20002720","CARBON COLOUR COMPANY LTD"
"Community Services","Advertising & Publicity","D3802","04/04/2017","1036311 - 0","2500","Revenue","20008780","LEYS NEWS LTD"
"Community Services","Consultants Fees","D3411","19/04/2017","1036325 - 0","1408.75","Revenue","20018703","ZEST CONSULTANCY"
"Community Services","General Contracted Services","D3401","25/04/2017","1036330 - 0","500","Revenue","20019272","DIVERSITI UK"
"Community Services","Consultants Fees","D3411","11/04/2017","1036341 - 0","4173.97","Revenue","20019317","NEIL STEVENSON"
"Community Services","Consultants Fees","D3411","04/04/2017","1036342 - 0","3668.8","Revenue","20018107","PURCELL MILLER TRITTON LLP T/A PURCELL"
"Community Services","Provisions","D3101","04/04/2017","1036384 - 0","1557.05","Revenue","20017894","OTHC LEMON ZEST"
"Community Services","Town Hall Catering Recharge","D3104","04/04/2017","1036384 - 1","5143.6","Revenue","20017894","OTHC LEMON ZEST"
"Community Services","General Contracted Services","D3401","11/04/2017","1036385 - 0","950","Revenue","20019536","MADE WITH JOY LTD"
"Community Services","Grants","D3701","04/04/2017","1036394 - 0","640","Revenue","20016059","ROSE HILL JUNIOR YOUTH CLUB"
"Community Services","Grants","D3701","11/04/2017","1036408 - 0","7527","Revenue","20015597","OXFORDSHIRE MIND"
"Community Services","General Contracted Services","D3401","25/04/2017","1036437 - 0","550","Revenue","20010884","OXFORD RADCLIFFE HOSPITALS CHARITABLE FUND"
"Community Services","Reactive Maintenance & Minor Repairs","B1101","25/04/2017","1036485 - 0","3278.89","Revenue","20018752","ACTION ON HEARING LOSS"
"Community Services","Consultants Fees","D3411","03/05/2017","1036487 - 0","2000","Revenue","20019543","GWENALLT CONSULTING"
"Community Services","Consultants Fees","D3411","25/04/2017","1036488 - 0","2000","Revenue","20019543","GWENALLT CONSULTING"
"Community Services","Grants","D3701","11/04/2017","1036494 - 0","726.25","Revenue","20018434","NHS OXFORDSHIRE CCG"
"Community Services","Advertising & Publicity","D3802","11/04/2017","1036499 - 0","2282.25","Revenue","20008780","LEYS NEWS LTD"
"Community Services","Advertising & Publicity","D3802","25/04/2017","1036503 - 0","600","Revenue","20017087","3MIL LTD"
"Community Services","Advertising & Publicity","D3802","25/04/2017","1036504 - 0","900","Revenue","20017087","3MIL LTD"
"Community Services","Advertising & Publicity","D3802","25/04/2017","1036511 - 0","1200","Revenue","20017087","3MIL LTD"
"Community Services","General Contracted Services","D3401","25/04/2017","1036519 - 0","510","Revenue","20008609","BAKERS COMMERCIAL SERVICES LTD"
"Community Services","General Contracted Services","D3401","25/04/2017","1036520 - 0","600","Revenue","20019545","THE ALCOHOL ACADEMY CIC"
"Community Services","Grants","D3701","11/04/2017","1036521 - 0","11931.08","Revenue","20002930","OXFORDSHIRE COUNTY COUNCIL"
"Community Services","General Stationery Supplies","D3301","25/04/2017","1036540 - 0","720","Revenue","20010534","XMA LIMITED"
"Community Services","General Stationery Supplies","D3301","25/04/2017","1036548 - 0","728.8","Revenue","20007849","LYRECO UK LTD"
"Community Services","General Contracted Services","D3401","11/04/2017","1036559 - 0","1350","Revenue","20016981","SCOPE SECURITY LTD"
"Community Services","General Contracted Services","D3401","11/04/2017","1036562 - 0","3500","Revenue","20014907","TEI WILLIAMS PRESS & ARTS MARKETING"
"Community Services","Security Services","D3418","25/04/2017","1036583 - 0","566","Revenue","20018420","SHOWSEC INTERNATIONAL LTD"
"Community Services","Reactive Maintenance & Minor Repairs","B1101","11/04/2017","1036600 - 0","1550","Revenue","20011508","D A MILES & SONS"
"Community Services","Reactive Maintenance & Minor Repairs","B1101","11/04/2017","1036601 - 0","3998","Revenue","20011508","D A MILES & SONS"
"Community Services","Consultants Fees","D3411","25/04/2017","1036662 - 0","1470","Revenue","20019305","BELVEDERE PROJECT SOLUTIONS LLP"
"Community Services","Consultants Fees","D3411","19/04/2017","1036665 - 0","545","Revenue","20017254","LIZ WOOLLEY"
"Community Services","Security Services","D3418","11/04/2017","1036672 - 0","4428","Revenue","20016981","SCOPE SECURITY LTD"
"Community Services","Staff Advertising","A0702","25/04/2017","1036692 - 0","662","Revenue","20009528","HAYMARKET MEDIA GROUP"
"Community Services","Cleaning Materials","B1601","03/05/2017","1036709 - 0","2970","Revenue","20016920","ALLIANCE DISPOSABLES LTD"
"Community Services","General Contracted Services","D3401","03/05/2017","1036719 - 0","4898.6","Revenue","20015211","FUSION LIFESTYLE"
"Community Services","General Contracted Services","D3401","19/04/2017","1036723 - 0","450","Revenue","20010837","DICK RUDMAN"
"Community Services","Security Services","D3418","25/04/2017","1036726 - 0","452.8","Revenue","20018420","SHOWSEC INTERNATIONAL LTD"
"Community Services","Conferences","D3602","19/04/2017","1036730 - 0","650","Revenue","20016776","YOUTH SPORT TRUST"
"Community Services","Instructors & Coaching Fees","D3413","19/04/2017","1036732 - 0","6236.5","Revenue","20018888","OXFORDSHIRE YOUTH"
"Community Services","Services Maintenance (Planned)","B1103","19/04/2017","1036737 - 0","810","Revenue","20015211","FUSION LIFESTYLE"
"Community Services","Contract Cleaning","B1602","19/04/2017","1036748 - 0","783.39","Revenue","20003172","RENTOKIL INITIAL SERVICES NO1"
"Community Services","Provisions","D3101","03/05/2017","1036767 - 0","869.4","Revenue","20009346","BUNNY'S"
"Community Services","Consultants Fees","D3411","25/04/2017","1036791 - 0","3500","Revenue","20019294","Simon Leach Design"
"Community Services","General Contracted Services","D3401","19/04/2017","1036802 - 0","920","Revenue","20019534","M J PLUMRIDGE"
"Community Services","General Contracted Services","D3401","19/04/2017","1036806 - 0","718","Revenue","20015211","FUSION LIFESTYLE"
"Community Services","Instructors & Coaching Fees","D3413","03/05/2017","1036811 - 0","505","Revenue","20018432","SPORTSHALL ASSOCIATE LTD"
"Community Services","General Contracted Services","D3401","03/05/2017","1036812 - 0","550","Revenue","20018138","INSPIRED EXCHANGE LTD"
"Community Services","General Contracted Services","D3401","25/04/2017","1036887 - 0","1062.9","Revenue","20019418","FAR FROM THE NORM"
"Community Services","Consultants Fees","D3411","09/05/2017","1036898 - 0","1000","Revenue","20019304","Marilyn Scott"
"Community Services","General Contracted Services","D3401","25/04/2017","1036923 - 0","640","Revenue","20002568","PYROTEC SERVICES LTD"
"Community Services","Staff Advertising","A0702","25/04/2017","1036924 - 0","437.07","Revenue","20007856","NEWSQUEST MIDLANDS, WALES & SOUTH WEST"
"Community Services","Subscriptions","D3703","09/05/2017","1036926 - 0","907.5","Revenue","20017863","MALLARD CONSULTANCY LTD"
"Community Services","Services Maintenance (Planned)","B1103","03/05/2017","1036929 - 0","1713.8","Revenue","20015211","FUSION LIFESTYLE"
"Community Services","General Contracted Services","D3401","03/05/2017","1036945 - 0","704","Revenue","20015211","FUSION LIFESTYLE"
"Community Services","Cleaning Materials","B1601","16/05/2017","1036963 - 0","944.5","Revenue","20016920","ALLIANCE DISPOSABLES LTD"
"Community Services","General Contracted Services","D3401","03/05/2017","1036969 - 0","605","Revenue","20018343","EUTON DALEY"
"Community Services","General Contracted Services","D3401","03/05/2017","1036970 - 0","1200","Revenue","20018343","EUTON DALEY"
"Community Services","General Contracted Services","D3401","03/05/2017","1036989 - 0","1230","Revenue","20009494","BT REDCARE"
"Community Services","Consultants Fees","D3411","03/05/2017","1037008 - 0","2973.8","Revenue","20018107","PURCELL MILLER TRITTON LLP T/A PURCELL"
"Community Services","Services Maintenance (Planned)","B1103","03/05/2017","1037042 - 0","1936","Revenue","20015211","FUSION LIFESTYLE"
"Community Services","Security Services","D3418","16/05/2017","1037092 - 0","452.8","Revenue","20018420","SHOWSEC INTERNATIONAL LTD"
"Community Services","Security Services","D3418","23/05/2017","1037106 - 0","452.8","Revenue","20018420","SHOWSEC INTERNATIONAL LTD"
"Community Services","Cleaning Materials","B1601","03/05/2017","1037108 - 0","557.36","Revenue","20003172","RENTOKIL INITIAL SERVICES NO1"
"Community Services","Consultants Fees","D3411","09/05/2017","1037111 - 0","2038","Revenue","20017948","INSPIRING DRAMA (THOMAS BROOKS)"
"Community Services","General Contracted Services","D3401","09/05/2017","1037112 - 0","556.79","Revenue","20018343","EUTON DALEY"
"Community Services","Consultants Fees","D3411","09/05/2017","1037130 - 0","4595.5","Revenue","20013331","OVE ARUP & PARTNERS LTD"
"Community Services","General Contracted Services","D3401","23/05/2017","1037139 - 0","41330.25","Revenue","20015211","FUSION LIFESTYLE"
"Community Services","CCTV","B1246","23/05/2017","1037140 - 0","14500","Revenue","20014935","COMPUTERISED & DIGITAL SECURITY SYSTEMS LTD"
"Community Services","General Contracted Services","D3401","09/05/2017","1037149 - 0","3326.4","Revenue","20016762","IAN NOLAN EVENTS LTD"
"Community Services","General Contracted Services","D3401","09/05/2017","1037150 - 0","1000","Revenue","20016762","IAN NOLAN EVENTS LTD"
"Community Services","Furniture & Equipment Purchase","D3001","09/05/2017","1037155 - 0","564","Revenue","20003374","CITY AUDIO VISUAL"
"Community Services","Services Maintenance (Planned)","B1103","09/05/2017","1037189 - 0","729.41","Revenue","20015211","FUSION LIFESTYLE"
"Community Services","Consultants Fees","D3411","31/05/2017","1037221 - 0","1470","Revenue","20019305","BELVEDERE PROJECT SOLUTIONS LLP"
"Community Services","Consultants Fees","D3411","16/05/2017","1037232 - 0","1708.82","Revenue","20019317","NEIL STEVENSON"
"Community Services","Main Contractor","Y021","31/05/2017","1037234 - 0","34716","Capital","20015211","FUSION LIFESTYLE"
"Community Services","Security Services","D3418","23/05/2017","1037268 - 0","735","Revenue","20009730","R & R FRONTLINE SERVICES LTD"
"Community Services","Cleaning Materials","B1601","31/05/2017","1037275 - 0","604.06","Revenue","20018021","UNISAN"
"Community Services","Licences (Non-Transport)","D3804","16/05/2017","1037276 - 0","1272.75","Revenue","20019430","PODNOSH LTD"
"Community Services","Subscriptions","D3703","31/05/2017","1037303 - 0","720","Revenue","20018092","SUBSTANCE 2005 LTD"
"Community Services","Temporary Bureau Staffing","A0108","16/05/2017","1037305 - 0","1770","Revenue","20018218","THE SPORT FOR STREETS INITIATIVE"
"Community Services","Provisions","D3101","23/05/2017","1037370 - 0","882.5","Revenue","20009224","LAMB CATERING LTD"
"Community Services","General Contracted Services","D3401","16/05/2017","1037373 - 0","1481.64","Revenue","20019338","BENTHAM LTD T/A MORGAN COMPUTERS"
"Community Services","General Contracted Services","D3401","16/05/2017","1037396 - 0","5586.21","Revenue","20009494","BT REDCARE"
"Community Services","General Contracted Services","D3401","23/05/2017","1037402 - 0","2375","Revenue","20016215","BODY POLITIC DANCE LTD"
"Community Services","General Contracted Services","D3401","31/05/2017","1037421 - 0","4340.3","Revenue","20003911","Live Barriers a division of Ashtead Plant Hire"
"Community Services","Security Services","D3418","31/05/2017","1037477 - 0","4050","Revenue","20016981","SCOPE SECURITY LTD"
"Community Services","General Contracted Services","D3401","06/06/2017","1037493 - 0","1000","Revenue","20018845","REI LUX UK LTD"
"Community Services","General Contracted Services","D3401","23/05/2017","1037496 - 0","2800","Revenue","20019540","DIGITAL ARTIST RESIDENCY"
"Community Services","General Contracted Services","D3401","23/05/2017","1037508 - 0","1350","Revenue","20016981","SCOPE SECURITY LTD"
"Community Services","Security Services","D3418","06/06/2017","1037530 - 0","452.8","Revenue","20018420","SHOWSEC INTERNATIONAL LTD"
"Community Services","Materials","D3021","13/06/2017","1037576 - 0","600","Revenue","20007753","ESSENTRA PACKAGING & SECURITY LTD"
"Community Services","Postage & Carriage","D3501","13/06/2017","1037576 - 1","11.5","Revenue","20007753","ESSENTRA PACKAGING & SECURITY LTD"
"Community Services","Goods For Resale","D3011","23/05/2017","1037580 - 0","702","Revenue","20008018","CHRIS ANDREWS PUBLICATIONS LTD"
"Community Services","Security Services","D3418","23/05/2017","1037606 - 0","566","Revenue","20018420","SHOWSEC INTERNATIONAL LTD"
"Community Services","Subscriptions","D3703","23/05/2017","1037607 - 0","420","Revenue","20014683","CLOA"
"Community Services","Short Courses","A0622","13/06/2017","1037621 - 1","4050","Revenue","20016631","QUEST & NBS"
"Community Services","Cleaning Materials","B1601","13/06/2017","1037634 - 0","507.34","Revenue","20016920","ALLIANCE DISPOSABLES LTD"
"Community Services","Public Transport","C2501","31/05/2017","1037654 - 1","4360.42","Revenue","20006596","OXFORD BUS COMPANY LTD"
"Community Services","Instructors & Coaching Fees","D3413","13/06/2017","1037689 - 0","565","Revenue","20013617","SWAN FIRE (UK) LIMITED"
"Community Services","Reactive Maintenance & Minor Repairs","B1101","31/05/2017","1037701 - 0","1950","Revenue","20019316","TRUTH LTD T/A KJC FELT ROOFING"
"Community Services","Reactive Maintenance & Minor Repairs","B1101","31/05/2017","1037703 - 0","750","Revenue","20019316","TRUTH LTD T/A KJC FELT ROOFING"
"Community Services","Storage Costs","D3430","13/06/2017","1037709 - 0","2125","Revenue","20015821","S JONES CONTAINER SERVICES LTD"
"Community Services","Provisions","D3101","31/05/2017","1037733 - 0","648.27","Revenue","20017894","OTHC LEMON ZEST"
"Community Services","Town Hall Catering Recharge","D3104","31/05/2017","1037733 - 1","2214.34","Revenue","20017894","OTHC LEMON ZEST"
"Community Services","Consultants Fees","D3411","31/05/2017","1037740 - 0","1697.5","Revenue","20018703","ZEST CONSULTANCY"
"Community Services","General Contracted Services","D3401","13/06/2017","1037750 - 0","921.3","Revenue","20019449","RUDI COLE"
"Community Services","Town Hall Catering Recharge","D3104","06/06/2017","1037761 - 0","6806.85","Revenue","20017894","OTHC LEMON ZEST"
"Community Services","Consultants Fees","D3411","06/06/2017","1037766 - 0","1721","Revenue","20018107","PURCELL MILLER TRITTON LLP T/A PURCELL"
"Community Services","Materials","D3021","20/06/2017","1037837 - 0","957.87","Revenue","20006448","WALLACE CAMERON INTERNATIONAL LTD"
"Community Services","Services Maintenance (Planned)","B1103","13/06/2017","1037852 - 0","1427.76","Revenue","20016705","SOUTHERN ELECTRIC POWER DISTRIBUTION PLC"
"Community Services","Awards / Prizes","D3705","06/06/2017","1037869 - 0","649.89","Revenue","20012816","RUNNING IMP INTERNATIONAL SPORTS LTD"
"Community Services","Instructors & Coaching Fees","D3413","13/06/2017","1037884 - 0","3885","Revenue","20002930","OXFORDSHIRE COUNTY COUNCIL"
"Community Services","Security Services","D3418","27/06/2017","1037940 - 0","566","Revenue","20018420","SHOWSEC INTERNATIONAL LTD"
"Community Services","Security Services","D3418","27/06/2017","1037941 - 0","566","Revenue","20018420","SHOWSEC INTERNATIONAL LTD"
"Community Services","Security Services","D3418","27/06/2017","1037942 - 0","566","Revenue","20018420","SHOWSEC INTERNATIONAL LTD"
"Community Services","Consultants Fees","D3411","13/06/2017","1037950 - 0","4033.8","Revenue","20018107","PURCELL MILLER TRITTON LLP T/A PURCELL"
"Community Services","Performing Rights Fees","D3704","27/06/2017","1037951 - 0","2444.44","Revenue","20008145","THE PERFORMING RIGHTS SOCIETY"
"Community Services","General Contracted Services","D3401","20/06/2017","1037970 - 0","31665","Revenue","20013923","SUTCLIFFE PLAY SOUTH WEST"
"Community Services","General Contracted Services","D3401","13/06/2017","1037978 - 0","690","Revenue","20015921","RIGHT ANGLE DESIGN"
"Community Services","General Contracted Services","D3401","13/06/2017","1037986 - 0","1350","Revenue","20016981","SCOPE SECURITY LTD"
"Community Services","Security Services","D3418","27/06/2017","1038012 - 0","4185","Revenue","20016981","SCOPE SECURITY LTD"
"Community Services","General Contracted Services","D3401","13/06/2017","1038018 - 0","499","Revenue","20017339","ARBTECH CONSULTING LTD"
"Community Services","General Contracted Services","D3401","13/06/2017","1038019 - 0","549","Revenue","20017339","ARBTECH CONSULTING LTD"
"Community Services","General Contracted Services","D3401","20/06/2017","1038035 - 0","702","Revenue","20016215","BODY POLITIC DANCE LTD"
"Community Services","Advertising & Publicity","D3802","20/06/2017","1038091 - 0","782.5","Revenue","20002720","CARBON COLOUR COMPANY LTD"
"Community Services","Advertising & Publicity","D3802","20/06/2017","1038091 - 1","42","Revenue","20002720","CARBON COLOUR COMPANY LTD"
"Community Services","Consultants Fees","D3411","27/06/2017","1038119 - 0","4595.5","Revenue","20013331","OVE ARUP & PARTNERS LTD"
"Community Services","Consultants Fees","D3411","27/06/2017","1038171 - 0","1470","Revenue","20019305","BELVEDERE PROJECT SOLUTIONS LLP"
"Community Services","Equipment Hire Charges","D3006","20/06/2017","1038187 - 0","705","Revenue","20003374","CITY AUDIO VISUAL"
"Community Services","Grants","D3701","27/06/2017","1038256 - 0","540","Revenue","20018812","ACCESS SPORTS CIO"
"Community Services","Grants","D3701","04/04/2017","46293133 - 1","3070.8","Revenue","20019177","OXFORD WELLBEING PROJECT"
"Community Services","Contributions","D3702","04/04/2017","46293175 - 1","500","Revenue","20009273","ASYLUM WELCOME"
"Community Services","Grants","D3701","04/04/2017","46293176 - 1","740","Revenue","20017749","YELLOW SUBMARINE"
"Community Services","Grants","D3701","04/04/2017","46293177 - 1","1500","Revenue","20013231","WOOD FARM YOUTH CENTRE"
"Community Services","Grants","D3701","04/04/2017","46293191 - 1","500","Revenue","20017761","JACARI"
"Community Services","Grants","D3701","04/04/2017","46293194 - 1","2000","Revenue","20012189","PEGASUS THEATRE TRUST LIMITED"
"Community Services","Grants","D3701","04/04/2017","46293195 - 1","1000","Revenue","20012189","PEGASUS THEATRE TRUST LIMITED"
"Community Services","Grants","D3701","04/04/2017","46293196 - 1","850","Revenue","20009133","BLACKBIRD LEYS ADVENTURE PLAYGROUND"
"Community Services","Grants","D3701","04/04/2017","46293201 - 1","2487","Revenue","20014691","BARTON COMMUNITY ASSOCIATION CAFE - EATWELLS"
"Community Services","Grants","D3701","04/04/2017","46293202 - 1","2500","Revenue","20002063","BARTON COMMUNITY ASSOCIATION"
"Community Services","Grants","D3701","04/04/2017","46293203 - 1","683.22","Revenue","20016384","OXFORD 50+ NETWORK"
"Community Services","Grants","D3701","25/04/2017","46293205 - 1","2495","Revenue","20013670","RESOURCE FUTURES LTD"
"Community Services","Grants","D3701","04/04/2017","46293206 - 1","2497","Revenue","20019382","GETTING HEARD"
"Community Services","Grants","D3701","04/04/2017","46293207 - 1","2324","Revenue","20002085","FUSION-OXFORD'S COMMUNITY ARTS AGENCY LIMITED"
"Community Services","Grants","D3701","04/04/2017","46293228 - 1","4500","Revenue","20009717","ARK T CENTRE"
"Community Services","Grants","D3701","04/04/2017","46293229 - 1","500","Revenue","20009717","ARK T CENTRE"
"Community Services","Grants","D3701","04/04/2017","46293230 - 1","1000","Revenue","20000019","GRANT PAYMENTS"
"Community Services","Grants","D3701","04/04/2017","46293231 - 1","500","Revenue","20000019","GRANT PAYMENTS"
"Community Services","Grants","D3701","25/04/2017","46293232 - 1","1000","Revenue","20016727","AGE UK OXFORDSHIRE"
"Community Services","Contributions","D3702","04/04/2017","46293239 - 1","750","Revenue","20016573","COMMUNITY EMERGENCY FOODBANK"
"Community Services","Contributions","D3702","04/04/2017","46293240 - 1","550","Revenue","20016942","CHERWELL PUBLISHING SERVICES LTD"
"Community Services","Contributions","D3702","04/04/2017","46293241 - 1","600","Revenue","20010187","OSARCC"
"Community Services","Contributions","D3702","04/04/2017","46293242 - 1","750","Revenue","20009876","REFUGEE RESOURCE"
"Community Services","Grants","D3701","04/04/2017","46293243 - 1","5471.7","Revenue","20014469","ADAM FRENCH"
"Community Services","Grants","D3701","04/04/2017","46293244 - 1","6000","Revenue","20014469","ADAM FRENCH"
"Community Services","Grants","D3701","04/04/2017","46293245 - 1","4002.6","Revenue","20014469","ADAM FRENCH"
"Community Services","Grants","D3701","25/04/2017","46293247 - 1","540","Revenue","20018054","BASEBALL SOFTBALL UK"
"Community Services","Grants","D3701","04/04/2017","46293248 - 1","9090","Revenue","20012642","JSC"
"Community Services","Grants","D3701","04/04/2017","46293249 - 1","6000","Revenue","20012642","JSC"
"Community Services","Grants","D3701","04/04/2017","46293258 - 1","530","Revenue","20000019","GRANT PAYMENTS"
"Community Services","Grants","D3701","25/04/2017","46293259 - 1","1000","Revenue","20002331","OXFORD BROOKES UNIVERSITY"
"Community Services","Grants","D3701","11/04/2017","46293260 - 1","2000","Revenue","20012587","OXFORD DANCE FORUM"
"Community Services","Grants","D3701","11/04/2017","46293261 - 1","1000","Revenue","20018382","EXPERIENCE OXFORDSHIRE"
"Community Services","General Contracted Services","D3401","11/04/2017","46293295 - 1","23400.71","Revenue","20003616","THAMES VALLEY POLICE AUTHORITY"
"Community Services","General Contracted Services","D3401","11/04/2017","46293296 - 1","28490.03","Revenue","20003616","THAMES VALLEY POLICE AUTHORITY"
"Community Services","General Contracted Services","D3401","11/04/2017","46293297 - 1","34297.56","Revenue","20003616","THAMES VALLEY POLICE AUTHORITY"
"Community Services","Instructors & Coaching Fees","D3413","11/04/2017","46293361 - 1","1000","Revenue","20000019","GRANT PAYMENTS"
"Community Services","Grants","D3701","11/04/2017","46293370 - 1","1056","Revenue","20000019","GRANT PAYMENTS"
"Community Services","Grants","D3701","11/04/2017","46293378 - 1","6500","Revenue","20009273","ASYLUM WELCOME"
"Community Services","Grants","D3701","11/04/2017","46293380 - 1","8000","Revenue","20009847","DOVECOTE VOLUNTARY PARENT COMMITTEE"
"Community Services","Grants","D3701","11/04/2017","46293381 - 1","7000","Revenue","20017627","INNOVISTA INTERNATIONAL"
"Community Services","Grants","D3701","11/04/2017","46293382 - 1","8000","Revenue","20008780","LEYS NEWS LTD"
"Community Services","Grants","D3701","11/04/2017","46293384 - 1","2000","Revenue","20014355","OPEN DOOR"
"Community Services","Grants","D3701","11/04/2017","46293385 - 1","2500","Revenue","20018891","OXFORD AGAINST CUTTING"
"Community Services","Grants","D3701","11/04/2017","46293386 - 1","6000","Revenue","20009501","THE LEYS CDI"
"Community Services","Grants","D3701","11/04/2017","46293387 - 1","2500","Revenue","20012444","OXFORD CREDIT UNION"
"Community Services","Grants","D3701","11/04/2017","46293388 - 1","2000","Revenue","20009449","OXFORDSHIRE PLAY ASSOCIATION"
"Community Services","Grants","D3701","11/04/2017","46293389 - 1","6000","Revenue","20013231","WOOD FARM YOUTH CENTRE"
"Community Services","Grants","D3701","11/04/2017","46293390 - 1","800","Revenue","20013647","REDUCING THE RISK OF DOMESTIC ABUSE"
"Community Services","Awards / Prizes","D3705","11/04/2017","46293391 - 1","20000","Revenue","20011006","ASPIRE OXFORDSHIRE COMMUNITY ENTERPRISE LTD"
"Community Services","Contributions","D3702","11/04/2017","46293392 - 1","9399","Revenue","20008184","CITIZENS ADVICE BUREAU"
"Community Services","Instructors & Coaching Fees","D3413","19/04/2017","46293407 - 1","1125","Revenue","20000000","GENERAL EXPENSES"
"Community Services","Temporary Bureau Staffing","A0108","19/04/2017","46293414 - 1","528.38","Revenue","20018053","REED SPECIALIST RECRUITMENT LTD"
"Community Services","Temporary Bureau Staffing","A0108","19/04/2017","46293414 - 2","2640.22","Revenue","20018053","REED SPECIALIST RECRUITMENT LTD"
"Community Services","Temporary Bureau Staffing","A0108","19/04/2017","46293414 - 23","2114.05","Revenue","20018053","REED SPECIALIST RECRUITMENT LTD"
"Community Services","Temporary Bureau Staffing","A0108","19/04/2017","46293414 - 25","415.87","Revenue","20018053","REED SPECIALIST RECRUITMENT LTD"
"Community Services","Temporary Bureau Staffing","A0108","19/04/2017","46293414 - 43","587.76","Revenue","20018053","REED SPECIALIST RECRUITMENT LTD"
"Community Services","Grants","D3701","19/04/2017","46293426 - 1","10934","Revenue","20012251","OXFORDSHIRE COMMUNITY VOLUNTARY ACTION (OCVA)"
"Community Services","Furniture & Equipment Purchase","D3001","25/04/2017","46293488 - 1","1348.56","Revenue","20002079","BISHOP SPORTS & LEISURE LTD"
"Community Services","Grants","D3701","25/04/2017","46293494 - 1","6000","Revenue","20018662","HOME START"
"Community Services","Grants","D3701","25/04/2017","46293495 - 1","6000","Revenue","20013670","RESOURCE FUTURES LTD"
"Community Services","Grants","D3701","25/04/2017","46293496 - 1","7000","Revenue","20008209","DONNINGTON DOORSTEP"
"Community Services","General Contracted Services","D3401","03/05/2017","46293515 - 1","630.5","Revenue","20000000","GENERAL EXPENSES"
"Community Services","General Contracted Services","D3401","03/05/2017","46293516 - 1","1083","Revenue","20000000","GENERAL EXPENSES"
"Community Services","General Contracted Services","D3401","03/05/2017","46293516 - 2","1083","Revenue","20000000","GENERAL EXPENSES"
"Community Services","Grants","D3701","03/05/2017","46293545 - 1","700","Revenue","20000019","GRANT PAYMENTS"
"Community Services","Grants","D3701","03/05/2017","46293548 - 1","859.24","Revenue","20003009","ANCHOR TRUST"
"Community Services","Grants","D3701","03/05/2017","46293549 - 1","1000","Revenue","20000019","GRANT PAYMENTS"
"Community Services","Grants","D3701","03/05/2017","46293570 - 1","10934","Revenue","20012251","OXFORDSHIRE COMMUNITY VOLUNTARY ACTION (OCVA)"
"Community Services","Grants","D3701","03/05/2017","46293571 - 1","4000","Revenue","20019569","IN2SCIENCEUK"
"Community Services","Grants","D3701","09/05/2017","46293600 - 1","19328.43","Revenue","20010077","BLACKBIRD LEYS N""HOOD SUPPORT SCHEME"
"Community Services","Grants","D3701","09/05/2017","46293611 - 1","5000","Revenue","20013231","WOOD FARM YOUTH CENTRE"
"Community Services","Grants","D3701","09/05/2017","46293612 - 1","3470","Revenue","20009717","ARK T CENTRE"
"Community Services","Grants","D3701","09/05/2017","46293616 - 1","4000","Revenue","20019580","LEYS INFORMATION TECHNOLOGY ZONE"
"Community Services","Temporary Bureau Staffing","A0108","16/05/2017","46293675 - 14","861.67","Revenue","20018053","REED SPECIALIST RECRUITMENT LTD"
"Community Services","Temporary Bureau Staffing","A0108","16/05/2017","46293675 - 20","423.51","Revenue","20018053","REED SPECIALIST RECRUITMENT LTD"
"Community Services","Temporary Bureau Staffing","A0108","16/05/2017","46293675 - 23","5337.07","Revenue","20018053","REED SPECIALIST RECRUITMENT LTD"
"Community Services","Temporary Bureau Staffing","A0108","16/05/2017","46293675 - 26","1761.09","Revenue","20018053","REED SPECIALIST RECRUITMENT LTD"
"Community Services","Temporary Bureau Staffing","A0108","16/05/2017","46293675 - 36","1047.86","Revenue","20018053","REED SPECIALIST RECRUITMENT LTD"
"Community Services","Temporary Bureau Staffing","A0108","16/05/2017","46293675 - 38","914.05","Revenue","20018053","REED SPECIALIST RECRUITMENT LTD"
"Community Services","Grants","D3701","16/05/2017","46293722 - 1","3000","Revenue","20009717","ARK T CENTRE"
"Community Services","Grants","D3701","16/05/2017","46293723 - 1","5000","Revenue","20017842","WOLVERCOTE YOUNG PEOPLES CLUB LTD"
"Community Services","Grants","D3701","23/05/2017","46293747 - 1","4000","Revenue","20018275","SAFE! SUPPORTING YOUNG VICTIMS"
"Community Services","Grants","D3701","23/05/2017","46293755 - 1","4500","Revenue","20009133","BLACKBIRD LEYS ADVENTURE PLAYGROUND"
"Community Services","Grants","D3701","23/05/2017","46293756 - 1","21869.5","Revenue","20009161","ROSE HILL & DONNINGTON ADVICE CENTRE LTD"
"Community Services","Grants","D3701","23/05/2017","46293757 - 1","27927.85","Revenue","20009163","OXFORD COMMUNITY WORK AGENCY L"
"Community Services","Grants","D3701","23/05/2017","46293758 - 1","12000","Revenue","20009385","THE PARASOL PROJECT"
"Community Services","Grants","D3701","23/05/2017","46293789 - 1","6000","Revenue","20000019","GRANT PAYMENTS"
"Community Services","Grants","D3701","23/05/2017","46293790 - 1","3000","Revenue","20000019","GRANT PAYMENTS"
"Community Services","Grants","D3701","20/06/2017","46293813 - 1","2000","Revenue","20008766","OXFORDSHIRE CHINESE COMMUNITY"
"Community Services","Grants","D3701","31/05/2017","46293817 - 1","8907.5","Revenue","20004323","ELMORE COMMUNITY SERVICES"
"Community Services","Grants","D3701","31/05/2017","46293818 - 1","3750","Revenue","20014454","EMMAUS OXFORD (STORE) LIMITED"
"Community Services","Contributions","D3702","31/05/2017","46293822 - 1","500","Revenue","20019554","OXFORD NIGHTLINE"
"Community Services","Contributions","D3702","31/05/2017","46293824 - 1","650","Revenue","20008780","LEYS NEWS LTD"
"Community Services","Contributions","D3702","31/05/2017","46293825 - 1","650","Revenue","20008780","LEYS NEWS LTD"
"Community Services","Contributions","D3702","31/05/2017","46293826 - 1","500","Revenue","20010719","SS PHILIP AND JAMES'"
"Community Services","Contributions","D3702","31/05/2017","46293827 - 1","500","Revenue","20004360","POLSTEAD PLAYGROUP"
"Community Services","Contributions","D3702","31/05/2017","46293828 - 1","500","Revenue","20017586","WATERWAYS RESIDENTS COMMUNITY INTEREST COMPANY"
"Community Services","Contributions","D3702","31/05/2017","46293831 - 1","1000","Revenue","20017817","OXFORD POVERTY ACTION TRUST"
"Community Services","Contributions","D3702","31/05/2017","46293833 - 1","675","Revenue","20014899","WOLVERCOTE VILLAGE HALL"
"Community Services","Contributions","D3702","31/05/2017","46293834 - 1","500","Revenue","20017535","FRIENDS OF ARISTOTLE LANE RECREATION"
"Community Services","Grants","D3701","31/05/2017","46293843 - 1","19405.75","Revenue","20011006","ASPIRE OXFORDSHIRE COMMUNITY ENTERPRISE LTD"
"Community Services","Contributions","D3702","31/05/2017","46293886 - 1","500","Revenue","20000019","GRANT PAYMENTS"
"Community Services","Contributions","D3702","31/05/2017","46293887 - 1","1000","Revenue","20000019","GRANT PAYMENTS"
"Community Services","Contributions","D3702","31/05/2017","46293888 - 1","1000","Revenue","20000019","GRANT PAYMENTS"
"Community Services","Grants","D3701","31/05/2017","46293899 - 1","800","Revenue","20000019","GRANT PAYMENTS"
"Community Services","Grants","D3701","06/06/2017","46293968 - 1","2000","Revenue","20017627","INNOVISTA INTERNATIONAL"
"Community Services","Grants","D3701","06/06/2017","46293969 - 1","2000","Revenue","20009501","THE LEYS CDI"
"Community Services","Grants","D3701","06/06/2017","46293970 - 1","1000","Revenue","20000019","GRANT PAYMENTS"
"Community Services","Pitch & Site Rents","K9534","06/06/2017","46293977 - 1","3356.25","Revenue","20012337","NEW ROAD BAPTIST CHURCH"
"Community Services","General Contracted Services","D3401","06/06/2017","46293986 - 1","1979.17","Revenue","20016215","BODY POLITIC DANCE LTD"
"Community Services","Grants","D3701","06/06/2017","46293994 - 1","1395","Revenue","20004324","THE GATEHOUSE"
"Community Services","Temporary Bureau Staffing","A0108","13/06/2017","46294016 - 1","371.77","Revenue","20018053","REED SPECIALIST RECRUITMENT LTD"
"Community Services","Temporary Bureau Staffing","A0108","13/06/2017","46294016 - 20","1771.61","Revenue","20018053","REED SPECIALIST RECRUITMENT LTD"
"Community Services","Temporary Bureau Staffing","A0108","13/06/2017","46294016 - 38","1547.8","Revenue","20018053","REED SPECIALIST RECRUITMENT LTD"
"Community Services","Grants","D3701","13/06/2017","46294026 - 1","4500","Revenue","20019629","FLASH OF SPLENDOUR ARTS CIC"
"Community Services","Grants","D3701","13/06/2017","46294047 - 1","4500","Revenue","20019320","Sanctuary Hosting Ltd.,"
"Community Services","Grants","D3701","20/06/2017","46294128 - 1","1250","Revenue","20019637","MANDALA THEATRE COMPANY"
"Community Services","Grants","D3701","20/06/2017","46294156 - 1","2500","Revenue","20010162","OXFORD FRIEND"
"Community Services","Grants","D3701","27/06/2017","46294228 - 1","2398.17","Revenue","20009133","BLACKBIRD LEYS ADVENTURE PLAYGROUND"
"Community Services","Grants","D3701","27/06/2017","46294229 - 1","9000","Revenue","20009847","DOVECOTE VOLUNTARY PARENT COMMITTEE"
"Community Services","Grants","D3701","27/06/2017","46294233 - 1","500","Revenue","20000019","GRANT PAYMENTS"
"Community Services","Grants","D3701","27/06/2017","46294235 - 1","15000","Revenue","20013119","THE STORY MUSEUM"
"Community Services","Grants","D3701","27/06/2017","46294236 - 1","20000","Revenue","20015863","COWLEY ROAD WORKS (EAST OXFORD ACTION CHARITY)"
"Community Services","Grants","D3701","27/06/2017","46294238 - 1","1000","Revenue","20007299","RESTORE LTD"
"Community Services","Grants","D3701","27/06/2017","46294239 - 1","2500","Revenue","20015250","OXFORD PHILHARMONIC ORCHESTRA TRUST"
"Community Services","Grants","D3701","27/06/2017","46294240 - 1","11250","Revenue","20010187","OSARCC"
"Community Services","Grants","D3701","27/06/2017","46294241 - 1","28134","Revenue","20016440","ARTS AT THE OLD FIRE STATION"
"Community Services","Gas","B1502","11/04/2017","47019083 - 1","10434.65","Revenue","20007602","TOTAL GAS & POWER LTD"
"Community Services","Gas","B1502","11/04/2017","47019085 - 1","7076.05","Revenue","20007602","TOTAL GAS & POWER LTD"
"Community Services","Gas","B1502","11/04/2017","47019088 - 1","18656.11","Revenue","20007602","TOTAL GAS & POWER LTD"
"Community Services","Gas","B1502","11/04/2017","47019103 - 0","5329.97","Revenue","20007602","TOTAL GAS & POWER LTD"
"Community Services","Gas","B1502","11/04/2017","47019105 - 0","16095.57","Revenue","20007602","TOTAL GAS & POWER LTD"
"Community Services","Gas","B1502","11/04/2017","47019111 - 0","6839.12","Revenue","20007602","TOTAL GAS & POWER LTD"
"Community Services","Gas","B1502","25/04/2017","47019217 - 0","3695.06","Revenue","20007602","TOTAL GAS & POWER LTD"
"Community Services","Gas","B1502","25/04/2017","47019220 - 1","2199.37","Revenue","20007602","TOTAL GAS & POWER LTD"
"Community Services","Gas","B1502","25/04/2017","47019222 - 1","5699.21","Revenue","20007602","TOTAL GAS & POWER LTD"
"Community Services","Gas","B1502","25/04/2017","47019228 - 1","1965.99","Revenue","20007602","TOTAL GAS & POWER LTD"
"Community Services","Gas","B1502","25/04/2017","47019235 - 0","1297.73","Revenue","20007602","TOTAL GAS & POWER LTD"
"Community Services","Gas","B1502","25/04/2017","47019237 - 0","3918.35","Revenue","20007602","TOTAL GAS & POWER LTD"
"Community Services","Gas","B1502","25/04/2017","47019255 - 0","1611.45","Revenue","20002402","SOUTHERN ELECTRIC PLC"
"Community Services","Electricity","B1501","25/04/2017","47019274 - 1","11122.07","Revenue","20011411","NPOWER"
"Community Services","Gas","B1502","09/05/2017","47019659 - 0","453.22","Revenue","20007602","TOTAL GAS & POWER LTD"
"Community Services","Gas","B1502","09/05/2017","47019661 - 0","457.01","Revenue","20007602","TOTAL GAS & POWER LTD"
"Community Services","Gas","B1502","09/05/2017","47019665 - 0","663.78","Revenue","20007602","TOTAL GAS & POWER LTD"
"Community Services","Gas","B1502","09/05/2017","47019674 - 1","559.13","Revenue","20007602","TOTAL GAS & POWER LTD"
"Community Services","Gas","B1502","09/05/2017","47019676 - 1","472.21","Revenue","20007602","TOTAL GAS & POWER LTD"
"Community Services","Gas","B1502","16/05/2017","47019713 - 0","660.77","Revenue","20007602","TOTAL GAS & POWER LTD"
"Community Services","Electricity","B1501","16/05/2017","47019718 - 1","11195.66","Revenue","20011411","NPOWER"
"Community Services","Electricity","B1501","23/05/2017","47019719 - 0","1200.74","Revenue","20011411","NPOWER"
"Community Services","Electricity","B1501","23/05/2017","47019722 - 1","4926.92","Revenue","20011411","NPOWER"
"Community Services","Electricity","B1501","23/05/2017","47019724 - 1","5958.02","Revenue","20011411","NPOWER"
"Community Services","Electricity","B1501","23/05/2017","47019727 - 0","5379.11","Revenue","20011411","NPOWER"
"Community Services","Electricity","B1501","23/05/2017","47019729 - 0","6932.48","Revenue","20011411","NPOWER"
"Community Services","Electricity","B1501","23/05/2017","47019734 - 1","1605.06","Revenue","20011411","NPOWER"
"Community Services","Electricity","B1501","23/05/2017","47019737 - 1","1486.06","Revenue","20011411","NPOWER"
"Community Services","Electricity","B1501","23/05/2017","47019742 - 0","1411.8","Revenue","20011411","NPOWER"
"Community Services","Electricity","B1501","23/05/2017","47019743 - 1","1426.03","Revenue","20011411","NPOWER"
"Community Services","Electricity","B1501","23/05/2017","47019747 - 2","1613.76","Revenue","20011411","NPOWER"
"Community Services","Electricity","B1501","23/05/2017","47019749 - 1","1573.25","Revenue","20011411","NPOWER"
"Community Services","Gas","B1502","23/05/2017","47019755 - 1","3263.67","Revenue","20007602","TOTAL GAS & POWER LTD"
"Community Services","Gas","B1502","23/05/2017","47019758 - 0","1703.82","Revenue","20007602","TOTAL GAS & POWER LTD"
"Community Services","Gas","B1502","23/05/2017","47019759 - 1","1266.19","Revenue","20007602","TOTAL GAS & POWER LTD"
"Community Services","Gas","B1502","23/05/2017","47019772 - 1","7985.9","Revenue","20007602","TOTAL GAS & POWER LTD"
"Community Services","Gas","B1502","23/05/2017","47019775 - 0","1691.94","Revenue","20007602","TOTAL GAS & POWER LTD"
"Community Services","Gas","B1502","23/05/2017","47019776 - 1","2972.53","Revenue","20007602","TOTAL GAS & POWER LTD"
"Community Services","Gas","B1502","23/05/2017","47019803 - 1","1340.22","Revenue","20002402","SOUTHERN ELECTRIC PLC"
"Community Services","Electricity","B1501","23/05/2017","47019828 - 0","1872.99","Revenue","20002402","SOUTHERN ELECTRIC PLC"
"Community Services","Water & Sewerage Charges","B1830","23/05/2017","47019885 - 1","581.53","Revenue","20019401","CASTLE WATER"
"Community Services","Water & Sewerage Charges","B1830","31/05/2017","47020072 - 0","1812.3","Revenue","20019401","CASTLE WATER"
"Community Services","Electricity","B1501","20/06/2017","47020111 - 0","1208.32","Revenue","20002402","SOUTHERN ELECTRIC PLC"
"Community Services","Electricity","B1501","20/06/2017","47020132 - 0","2354.32","Revenue","20002402","SOUTHERN ELECTRIC PLC"
"Community Services","Electricity","B1501","20/06/2017","47020136 - 0","924.21","Revenue","20002402","SOUTHERN ELECTRIC PLC"
"Community Services","Gas","B1502","20/06/2017","47020155 - 0","471.37","Revenue","20002402","SOUTHERN ELECTRIC PLC"
"Community Services","Gas","B1502","20/06/2017","47020156 - 1","752.57","Revenue","20002402","SOUTHERN ELECTRIC PLC"
"Community Services","Gas","B1502","20/06/2017","47020157 - 0","611.3","Revenue","20002402","SOUTHERN ELECTRIC PLC"
"Community Services","Gas","B1502","20/06/2017","47020162 - 0","1510.58","Revenue","20002402","SOUTHERN ELECTRIC PLC"
"Community Services","Electricity","B1501","20/06/2017","47020169 - 1","13028.76","Revenue","20011411","NPOWER"
"Community Services","Electricity","B1501","20/06/2017","47020170 - 0","1238.46","Revenue","20011411","NPOWER"
"Community Services","Electricity","B1501","20/06/2017","47020173 - 1","5141.91","Revenue","20011411","NPOWER"
"Community Services","Gas","B1502","20/06/2017","47020177 - 1","2848.79","Revenue","20007602","TOTAL GAS & POWER LTD"
"Community Services","Electricity","B1501","20/06/2017","47020199 - 0","6204.71","Revenue","20011411","NPOWER"
"Community Services","Gas","B1502","20/06/2017","47020200 - 1","1646.71","Revenue","20007602","TOTAL GAS & POWER LTD"
"Community Services","Gas","B1502","20/06/2017","47020202 - 1","7826.51","Revenue","20007602","TOTAL GAS & POWER LTD"
"Community Services","Gas","B1502","20/06/2017","47020203 - 0","1149.67","Revenue","20007602","TOTAL GAS & POWER LTD"
"Community Services","Gas","B1502","20/06/2017","47020205 - 0","792.72","Revenue","20007602","TOTAL GAS & POWER LTD"
"Community Services","Gas","B1502","20/06/2017","47020206 - 1","2593.21","Revenue","20007602","TOTAL GAS & POWER LTD"
"Community Services","Electricity","B1501","20/06/2017","47020210 - 1","1360.66","Revenue","20011411","NPOWER"
"Community Services","Electricity","B1501","27/06/2017","47020229 - 1","2720.58","Revenue","20011411","NPOWER"
"Community Services","Electricity","B1501","27/06/2017","47020230 - 0","3113.29","Revenue","20011411","NPOWER"
"Community Services","Electricity","B1501","27/06/2017","47020232 - 0","2929.62","Revenue","20011411","NPOWER"
"Community Services","Electricity","B1501","27/06/2017","47020233 - 1","2933.91","Revenue","20011411","NPOWER"
"Community Services","Electricity","B1501","27/06/2017","47020234 - 0","3394.21","Revenue","20011411","NPOWER"
"Community Services","Electricity","B1501","27/06/2017","47020236 - 0","902.87","Revenue","20011411","NPOWER"
"Community Services","Electricity","B1501","27/06/2017","47020237 - 1","3396.77","Revenue","20011411","NPOWER"
"Community Services","Electricity","B1501","27/06/2017","47020239 - 1","1055.71","Revenue","20011411","NPOWER"
"Community Services","Electricity","B1501","27/06/2017","47020240 - 0","743.84","Revenue","20011411","NPOWER"
"Community Services","Electricity","B1501","27/06/2017","47020241 - 1","3505.93","Revenue","20011411","NPOWER"
"Community Services","Electricity","B1501","27/06/2017","47020244 - 0","2105.73","Revenue","20011411","NPOWER"
"Community Services","Electricity","B1501","27/06/2017","47020246 - 0","1852.14","Revenue","20011411","NPOWER"
"Community Services","Electricity","B1501","27/06/2017","47020247 - 1","3773.82","Revenue","20011411","NPOWER"
"Community Services","Electricity","B1501","27/06/2017","47020249 - 1","912.55","Revenue","20011411","NPOWER"
"Community Services","Electricity","B1501","27/06/2017","47020250 - 0","3410.04","Revenue","20011411","NPOWER"
"Community Services","Water & Sewerage Charges","B1830","27/06/2017","47020290 - 1","1392.29","Revenue","20019401","CASTLE WATER"
"Community Services","Main Contractor","Y021","16/05/2017","48021822 - 1","2110","Capital","20000000","GENERAL EXPENSES"
"Community Services","Main Contractor","Y021","16/05/2017","48021823 - 1","2000","Capital","20000000","GENERAL EXPENSES"
"Direct Services","Reactive Maintenance & Minor Repairs","B1101","04/04/2017","1034546 - 0","1582.4","Revenue","20016691","COTSWOLD TURF SUPPLIES"
"Direct Services","Materials","D3021","04/04/2017","1035605 - 0","58613","Revenue","20000253","S. J.  MCBRIDE  LTD.  T/A  WAREFENCE"
"Direct Services","Short Courses","A0622","04/04/2017","1035854 - 0","1630","Revenue","20015755","JLD DRIVER TRAINING LTD"
"Direct Services","Reactive Maintenance & Minor Repairs","B1101","04/04/2017","1036011 - 0","1577.22","Revenue","20013923","SUTCLIFFE PLAY SOUTH WEST"
"Direct Services","General Contracted Services","D3401","04/04/2017","1036072 - 0","3797","Revenue","20011393","USTIGATE"
"Direct Services","General Contracted Services","D3401","04/04/2017","1036073 - 0","1112","Revenue","20011393","USTIGATE"
"Direct Services","Short Courses","A0622","11/04/2017","1036083 - 0","696.47","Revenue","20007924","SOUTH CENTRAL AMBULANCE SERVICE"
"Direct Services","Services Maintenance (Planned)","B1103","11/04/2017","1036091 - 0","70","Revenue","20000210","BARKER & EVANS LTD"
"Direct Services","Short Courses","A0622","04/04/2017","1036094 - 0","3960","Revenue","20015755","JLD DRIVER TRAINING LTD"
"Direct Services","Short Courses","A0622","04/04/2017","1036095 - 0","3960","Revenue","20015755","JLD DRIVER TRAINING LTD"
"Direct Services","Short Courses","A0622","04/04/2017","1036111 - 0","927","Revenue","20017304","Q.LEARNING LTD"
"Direct Services","Materials","D3021","19/04/2017","1036147 - 0","2528.93","Revenue","20011174","KILLGERM CHEMICALS LIMITED"
"Direct Services","Hardware Purchase","D3520","11/04/2017","1036153 - 0","1907.96","Revenue","20002302","MISCO"
"Direct Services","Materials","D3021","19/04/2017","1036173 - 0","576","Revenue","20002467","AWBS LTD"
"Direct Services","Short Courses","A0622","19/04/2017","1036177 - 0","554","Revenue","20007563","DEL EQUIPMENT (UK) LTD"
"Direct Services","Waste Disposal & Skip Hire","D3420","04/04/2017","1036185 - 0","1824","Revenue","20007833","GELPACK EXCELSIOR LTD"
"Direct Services","Waste Disposal & Skip Hire","D3420","04/04/2017","1036188 - 0","6622","Revenue","20007833","GELPACK EXCELSIOR LTD"
"Direct Services","Reactive Maintenance & Minor Repairs","B1101","19/04/2017","1036207 - 0","1234.5","Revenue","20002296","METRIC GROUP LIMITED"
"Direct Services","Protective Clothing","D3201","19/04/2017","1036221 - 0","469.41","Revenue","20002919","HONEY BROTHERS LTD"
"Direct Services","Postage & Carriage","D3501","19/04/2017","1036221 - 1","7.5","Revenue","20002919","HONEY BROTHERS LTD"
"Direct Services","Equipment Hire Charges","D3006","11/04/2017","1036238 - 1","499","Revenue","20007876","SIEMENS FINANCIAL SERVICES LTD"
"Direct Services","Reactive Maintenance & Minor Repairs","B1101","04/04/2017","1036285 - 1","4800","Revenue","20000253","S. J.  MCBRIDE  LTD.  T/A  WAREFENCE"
"Direct Services","General Contracted Services","D3401","04/04/2017","1036291 - 0","515","Revenue","20014484","SORBUS INTERNATIONAL LIMITED"
"Direct Services","Postage & Carriage","D3501","04/04/2017","1036291 - 1","18.95","Revenue","20014484","SORBUS INTERNATIONAL LIMITED"
"Direct Services","Materials","D3021","11/04/2017","1036308 - 0","2707.5","Revenue","20009145","SURESET UK LTD"
"Direct Services","Short Courses","A0622","19/04/2017","1036312 - 0","540","Revenue","20018521","D TEC INTERNATIONAL LIMITED"
"Direct Services","Short Courses","A0622","11/04/2017","1036333 - 0","3644","Revenue","20016229","TETRA CONSULTING LTD"
"Direct Services","Materials","D3021","11/04/2017","1036354 - 1","2286.01","Revenue","20008377","FLEET (LINE MARKERS) LTD"
"Direct Services","Advertising & Publicity","D3802","25/04/2017","1036362 - 0","619","Revenue","20006232","K DESIGN"
"Direct Services","General Contracted Services","D3401","11/04/2017","1036370 - 0","1340","Revenue","20017452","PETER STREET"
"Direct Services","Short Courses","A0622","11/04/2017","1036383 - 0","1610","Revenue","20017566","OXFORD ENERGY ACADEMY LTD"
"Direct Services","Services Maintenance (Planned)","B1103","11/04/2017","1036397 - 0","1495.32","Revenue","20000210","BARKER & EVANS LTD"
"Direct Services","Consultants Fees","D3411","25/04/2017","1036432 - 0","3885","Revenue","20010153","CIVICA UK LTD"
"Direct Services","Main Contractor","Y021","19/04/2017","1036433 - 0","25702.09","Capital","20015438","WYG ENVIRONMENT PLANNING TRANSPORT LTD"
"Direct Services","Short Courses","A0622","25/04/2017","1036475 - 0","725","Revenue","20018263","PRISTINE CONDITION INTERNATIONAL LTD"
"Direct Services","General Contracted Services","D3401","11/04/2017","1036476 - 0","3980","Revenue","20016501","SOFT SURFACES LTD"
"Direct Services","Short Courses","A0622","25/04/2017","1036486 - 0","1653","Revenue","20002387","AEBI SCHMIDT UK LTD"
"Direct Services","Materials","D3021","25/04/2017","1036496 - 0","6092","Revenue","20019106","AES LTD"
"Direct Services","General Contracted Services","D3401","25/04/2017","1036509 - 0","4449.11","Revenue","20002120","OCS GROUP UK LTD T/A CANNON"
"Direct Services","General Contracted Services","D3401","25/04/2017","1036512 - 0","456.23","Revenue","20002120","OCS GROUP UK LTD T/A CANNON"
"Direct Services","Services Maintenance (Planned)","B1103","11/04/2017","1036549 - 2","477.75","Revenue","20000249","SSE CONTRACTING LTD"
"Direct Services","Contract Plant Hire","C2402","09/05/2017","1036566 - 0","427.8","Revenue","20015309","GAP GROUP LTD"
"Direct Services","Consultants Fees","D3411","03/05/2017","1036590 - 0","7705.13","Revenue","20011419","EXOVA  (UK) LTD"
"Direct Services","Consultants Fees","D3411","03/05/2017","1036591 - 0","800","Revenue","20011419","EXOVA  (UK) LTD"
"Direct Services","Services Maintenance (Planned)","B1103","03/05/2017","1036614 - 0","1918.35","Revenue","20000210","BARKER & EVANS LTD"
"Direct Services","Postage & Carriage","D3501","11/04/2017","1036630 - 1","1792","Revenue","20003730","ROYAL MAIL"
"Direct Services","Postage & Carriage","D3501","11/04/2017","1036644 - 1","416.67","Revenue","20008154","FRANCOTYP-POSTALIA TELESET - POSTAGE"
"Direct Services","Postage & Carriage","D3501","11/04/2017","1036644 - 2","83.33","Revenue","20008154","FRANCOTYP-POSTALIA TELESET - POSTAGE"
"Direct Services","Services Maintenance (Planned)","B1103","25/04/2017","1036646 - 1","1922.47","Revenue","20002351","PHS GROUP PLC"
"Direct Services","Fundamental Service Review","D3314","25/04/2017","1036653 - 0","39500","Revenue","20018486","GRANT THORNTON UK LLP"
"Direct Services","Services Maintenance (Planned)","B1103","25/04/2017","1036680 - 1","719.74","Revenue","20002351","PHS GROUP PLC"
"Direct Services","Materials","D3021","25/04/2017","1036683 - 0","773","Revenue","20013689","LIBERTY PRINTERS (AR & RF REDDIN) LIMITED"
"Direct Services","Materials","D3021","03/05/2017","1036690 - 0","471","Revenue","20011174","KILLGERM CHEMICALS LIMITED"
"Direct Services","Reactive Maintenance & Minor Repairs","B1101","19/04/2017","1036714 - 0","613","Revenue","20018033","BRITISH PEST CONTROL ASSOCIATION"
"Direct Services","Main Contractor","Y021","03/05/2017","1036716 - 0","9988.23","Capital","20018047","TURLEY ASSOCIATES"
"Direct Services","Materials","D3021","19/04/2017","1036738 - 0","493","Revenue","20002617","POWELL'S SHEET MATERIALS LTD"
"Direct Services","Short Courses","A0622","03/05/2017","1036746 - 0","925","Revenue","20016376","ASBESTOS TRAINING LTD"
"Direct Services","Short Courses","A0622","03/05/2017","1036747 - 0","2775","Revenue","20016376","ASBESTOS TRAINING LTD"
"Direct Services","Services Maintenance (Planned)","B1103","25/04/2017","1036757 - 1","8694.22","Revenue","20002351","PHS GROUP PLC"
"Direct Services","Short Courses","A0622","03/05/2017","1036787 - 0","2775","Revenue","20016376","ASBESTOS TRAINING LTD"
"Direct Services","Services Maintenance (Planned)","B1103","09/05/2017","1036803 - 0","210","Revenue","20000210","BARKER & EVANS LTD"
"Direct Services","Services Maintenance (Planned)","B1103","09/05/2017","1036803 - 1","2785","Revenue","20000210","BARKER & EVANS LTD"
"Direct Services","Materials","D3021","25/04/2017","1036808 - 0","655.22","Revenue","20015392","CPA HORTICULTURE LTD"
"Direct Services","Services Maintenance (Planned)","B1103","13/06/2017","1036815 - 1","859.62","Revenue","20000210","BARKER & EVANS LTD"
"Direct Services","General Contracted Services","D3401","25/04/2017","1036823 - 1","2345.76","Revenue","20016581","JADE SECURITY SERVICES LTD"
"Direct Services","Waste Disposal & Skip Hire","D3420","25/04/2017","1036831 - 0","460","Revenue","20002279","M & M SKIP HIRE LTD"
"Direct Services","Short Courses","A0622","25/04/2017","1036838 - 0","1350","Revenue","20008229","SITESAFE UK LTD"
"Direct Services","General Contracted Services","D3401","09/05/2017","1036858 - 0","3995","Revenue","20018680","FAST PARK SYSTEMS UK BRANCH"
"Direct Services","Furniture & Equipment Purchase","D3001","25/04/2017","1036881 - 0","960","Revenue","20007932","FURNISHED HOMES (UNDERLEY FURNISHINGS) LTD"
"Direct Services","Materials","D3021","03/05/2017","1036899 - 0","574.56","Revenue","20006342","JEWSON LTD"
"Direct Services","Protective Clothing","D3201","16/05/2017","1036961 - 0","623.52","Revenue","20002919","HONEY BROTHERS LTD"
"Direct Services","Postage & Carriage","D3501","16/05/2017","1036961 - 1","7.5","Revenue","20002919","HONEY BROTHERS LTD"
"Direct Services","Waste Disposal & Skip Hire","D3420","16/05/2017","1037002 - 0","3275","Revenue","20018957","FAIRPORT CONTAINERS"
"Direct Services","Plants","D3025","16/05/2017","1037023 - 0","766","Revenue","20018850","WYEVALE NURSERIES"
"Direct Services","Plants","D3025","03/05/2017","1037027 - 0","1361.74","Revenue","20017593","AQUAM WATER SERVICES"
"Direct Services","Plants","D3025","03/05/2017","1037028 - 0","1421.74","Revenue","20017593","AQUAM WATER SERVICES"
"Direct Services","Tools","D3023","23/05/2017","1037029 - 0","1079.4","Revenue","20019071","LANDSCAPE SUPPLY COMPANY"
"Direct Services","General Contracted Services","D3401","31/05/2017","1037035 - 0","4449.11","Revenue","20002120","OCS GROUP UK LTD T/A CANNON"
"Direct Services","General Contracted Services","D3401","31/05/2017","1037036 - 0","456.23","Revenue","20002120","OCS GROUP UK LTD T/A CANNON"
"Direct Services","Postage & Carriage","D3501","03/05/2017","1037049 - 0","1000","Revenue","20003547","PITNEY BOWES LTD"
"Direct Services","Reactive Maintenance & Minor Repairs","B1101","09/05/2017","1037051 - 0","2614.5","Revenue","20019271","Monstermulch"
"Direct Services","Plants","D3025","23/05/2017","1037075 - 0","9760.64","Revenue","20019552","SALIX RIVER & WETLAND SERVICES LTD"
"Direct Services","Materials","D3021","23/05/2017","1037154 - 0","515","Revenue","20019560","NAGELS MULTI GRAPHIC T/A NMG PRINT LTD"
"Direct Services","Advertising & Publicity","D3802","23/05/2017","1037159 - 0","925","Revenue","20018628","ONCE CREATIVE BOX LIMITED"
"Direct Services","Materials","D3021","23/05/2017","1037200 - 0","432.1","Revenue","20008752","BARLOW & SONS (HERMITAGE) LTD"
"Direct Services","Tools","D3023","09/05/2017","1037202 - 0","1100","Revenue","20002658","GOOD DIRECTIONS LTD"
"Direct Services","Postage & Carriage","D3501","09/05/2017","1037202 - 1","70","Revenue","20002658","GOOD DIRECTIONS LTD"
"Direct Services","General Contracted Services","D3401","16/05/2017","1037215 - 0","1560","Revenue","20016358","THAMES VALLEY COMMUNITY REHABILITATION COMPANY"
"Direct Services","Materials","D3021","31/05/2017","1037265 - 0","23063","Revenue","20000253","S. J.  MCBRIDE  LTD.  T/A  WAREFENCE"
"Direct Services","Reactive Maintenance & Minor Repairs","B1101","16/05/2017","1037272 - 0","830","Revenue","20000210","BARKER & EVANS LTD"
"Direct Services","Software Maintenance/Running Costs","D3513","16/05/2017","1037277 - 1","9800","Revenue","20018834","IMPERIAL CIVIL ENFORCEMENT SOLUTIONS LTD"
"Direct Services","General Contracted Services","D3401","31/05/2017","1037315 - 0","1100","Revenue","20015074","CLEAR SKIES SOFTWARE"
"Direct Services","Main Contractor","Y021","06/06/2017","1037319 - 0","4205.75","Capital","20018047","TURLEY ASSOCIATES"
"Direct Services","Short Courses","A0622","31/05/2017","1037350 - 0","800","Revenue","20011339","SCARAB SWEEPERS LIMITED"
"Direct Services","General Contracted Services","D3401","31/05/2017","1037360 - 0","2161.14","Revenue","20016581","JADE SECURITY SERVICES LTD"
"Direct Services","Fundamental Service Review","D3314","31/05/2017","1037365 - 0","8500","Revenue","20018486","GRANT THORNTON UK LLP"
"Direct Services","Main Contractor","Y021","16/05/2017","1037366 - 0","14802.71","Capital","20015438","WYG ENVIRONMENT PLANNING TRANSPORT LTD"
"Direct Services","Main Contractor","Y021","16/05/2017","1037367 - 0","3550.8","Capital","20015438","WYG ENVIRONMENT PLANNING TRANSPORT LTD"
"Direct Services","Waste Disposal & Skip Hire","D3420","31/05/2017","1037376 - 0","781.4","Revenue","20000263","SHEEHAN HAULAGE & PLANT HIRE LTD"
"Direct Services","Waste Disposal & Skip Hire","D3420","20/06/2017","1037392 - 0","456","Revenue","20002279","M & M SKIP HIRE LTD"
"Direct Services","Services Maintenance (Planned)","B1103","06/06/2017","1037405 - 0","87.5","Revenue","20000210","BARKER & EVANS LTD"
"Direct Services","Services Maintenance (Planned)","B1103","06/06/2017","1037405 - 1","175","Revenue","20000210","BARKER & EVANS LTD"
"Direct Services","Services Maintenance (Planned)","B1103","06/06/2017","1037405 - 2","105","Revenue","20000210","BARKER & EVANS LTD"
"Direct Services","CCTV","D3504","16/05/2017","1037408 - 0","5728.66","Revenue","20015721","UNIPART SECURITY SOLUTIONS LTD"
"Direct Services","Furniture & Equipment Purchase","D3001","13/06/2017","1037451 - 0","13155.4","Revenue","20017658","F KLUCZNIK & SONS LTD T/A IAE"
"Direct Services","General Contracted Services","D3401","23/05/2017","1037465 - 0","2635","Revenue","20011019","CONTACT SECURITY"
"Direct Services","General Contracted Services","D3401","23/05/2017","1037478 - 0","1405","Revenue","20013173","MACCABEE PETS HOTEL"
"Direct Services","Fundamental Service Review","D3314","23/05/2017","1037491 - 0","776.6","Revenue","20017304","Q.LEARNING LTD"
"Direct Services","Fundamental Service Review","D3314","23/05/2017","1037495 - 0","25500","Revenue","20018486","GRANT THORNTON UK LLP"
"Direct Services","Tools","D3023","31/05/2017","1037533 - 0","578.3","Revenue","20003882","SPALDINGS (UK) LTD"
"Direct Services","Reactive Maintenance & Minor Repairs","B1101","13/06/2017","1037619 - 0","3570.5","Revenue","20018965","ECOSURFACE/ WALTON MOORE LTD"
"Direct Services","Subscriptions","D3703","06/06/2017","1037631 - 0","830","Revenue","20009835","HEALTH & SAFETY LABORATORY"
"Direct Services","Rent","B1701","20/06/2017","1037658 - 1","22210.5","Revenue","20019125","PEARTREE OXFORD LTD"
"Direct Services","General Contracted Services","D3401","06/06/2017","1037682 - 0","388.35","Revenue","20008753","ORCHARD STREET FURNITURE"
"Direct Services","Postage & Carriage","D3501","06/06/2017","1037682 - 1","30","Revenue","20008753","ORCHARD STREET FURNITURE"
"Direct Services","Security Services","D3418","27/06/2017","1037691 - 0","456.23","Revenue","20002120","OCS GROUP UK LTD T/A CANNON"
"Direct Services","Security Services","D3418","27/06/2017","1037692 - 0","4449.11","Revenue","20002120","OCS GROUP UK LTD T/A CANNON"
"Direct Services","General Contracted Services","D3401","13/06/2017","1037714 - 0","1560","Revenue","20016358","THAMES VALLEY COMMUNITY REHABILITATION COMPANY"
"Direct Services","General Contracted Services","D3401","13/06/2017","1037715 - 0","1560","Revenue","20016358","THAMES VALLEY COMMUNITY REHABILITATION COMPANY"
"Direct Services","General Contracted Services","D3401","13/06/2017","1037716 - 0","1560","Revenue","20016358","THAMES VALLEY COMMUNITY REHABILITATION COMPANY"
"Direct Services","Main Contractor","Y021","13/06/2017","1037725 - 0","11333.07","Capital","20015438","WYG ENVIRONMENT PLANNING TRANSPORT LTD"
"Direct Services","Rent","B1701","30/04/2017","1037753 - 1","242038.49","Revenue","20009954","NUFFIELD COLLEGE"
"Direct Services","Materials","D3021","13/06/2017","1037787 - 0","436.8","Revenue","20006342","JEWSON LTD"
"Direct Services","Contract Plant Hire","C2402","13/06/2017","1037825 - 0","506","Revenue","20015309","GAP GROUP LTD"
"Direct Services","CCTV","D3504","27/06/2017","1037836 - 0","1195","Revenue","20009896","VISION SECURE LIMITED"
"Direct Services","Online Services","D3510","20/06/2017","1037838 - 0","1500","Revenue","20019403","ASSERTIVE MEDIA SOLUTIONS LTD"
"Direct Services","Online Services","D3510","20/06/2017","1037839 - 0","1500","Revenue","20019403","ASSERTIVE MEDIA SOLUTIONS LTD"
"Direct Services","Advertising & Publicity","D3802","27/06/2017","1037867 - 0","925","Revenue","20018628","ONCE CREATIVE BOX LIMITED"
"Direct Services","Equipment Hire Charges","D3006","13/06/2017","1037912 - 0","636.88","Revenue","20008407","2 COUSINS ACCESS LTD"
"Direct Services","General Contracted Services","D3401","27/06/2017","1037923 - 0","2410.92","Revenue","20016581","JADE SECURITY SERVICES LTD"
"Direct Services","Waste Disposal & Skip Hire","D3420","27/06/2017","1037938 - 0","508.31","Revenue","20015380","VEHICLE WEIGHING SOLUTIONS LTD"
"Direct Services","Services Maintenance (Planned)","B1103","13/06/2017","1037968 - 3","40","Revenue","20004494","COTSWOLD LIFTS LTD"
"Direct Services","Materials","D3021","13/06/2017","1037975 - 0","990.27","Revenue","20008752","BARLOW & SONS (HERMITAGE) LTD"
"Direct Services","Services Maintenance (Planned)","B1103","20/06/2017","1038025 - 1","324.2","Revenue","20002568","PYROTEC SERVICES LTD"
"Direct Services","Reactive Maintenance & Minor Repairs","B1101","27/06/2017","1038026 - 0","451","Revenue","20011395","CHERWELL DOORS"
"Direct Services","General Stationery Supplies","D3301","13/06/2017","1038048 - 0","472.63","Revenue","20007849","LYRECO UK LTD"
"Direct Services","Rent","B1701","20/06/2017","1038069 - 1","242038.49","Revenue","20009954","NUFFIELD COLLEGE"
"Direct Services","Postage & Carriage","D3501","20/06/2017","1038088 - 0","500","Revenue","20003547","PITNEY BOWES LTD"
"Direct Services","Short Courses","A0622","20/06/2017","1038089 - 0","2024.93","Revenue","20019520","JTL TRAINING"
"Direct Services","Services Maintenance (Planned)","B1103","20/06/2017","1038102 - 0","370","Revenue","20013614","SMS ENVIRONMENTAL LIMITED"
"Direct Services","Services Maintenance (Planned)","B1103","20/06/2017","1038102 - 1","80","Revenue","20013614","SMS ENVIRONMENTAL LIMITED"
"Direct Services","Services Maintenance (Planned)","B1103","20/06/2017","1038102 - 2","20","Revenue","20013614","SMS ENVIRONMENTAL LIMITED"
"Direct Services","Services Maintenance (Planned)","B1103","20/06/2017","1038102 - 3","20","Revenue","20013614","SMS ENVIRONMENTAL LIMITED"
"Direct Services","Services Maintenance (Planned)","B1103","20/06/2017","1038102 - 4","654","Revenue","20013614","SMS ENVIRONMENTAL LIMITED"
"Direct Services","Services Maintenance (Planned)","B1103","20/06/2017","1038102 - 6","20","Revenue","20013614","SMS ENVIRONMENTAL LIMITED"
"Direct Services","Services Maintenance (Planned)","B1103","20/06/2017","1038103 - 0","1955","Revenue","20013614","SMS ENVIRONMENTAL LIMITED"
"Direct Services","Postage & Carriage","D3501","20/06/2017","1038107 - 1","1782.99","Revenue","20008022","NEOPOST FINANCE LIMITED"
"Direct Services","Plants","D3025","27/06/2017","1038140 - 1","1497.1","Revenue","20019552","SALIX RIVER & WETLAND SERVICES LTD"
"Direct Services","Short Courses","A0622","20/06/2017","1038153 - 0","1500","Revenue","20019520","JTL TRAINING"
"Direct Services","Short Courses","A0622","20/06/2017","1038154 - 0","1500","Revenue","20019520","JTL TRAINING"
"Direct Services","Short Courses","A0622","20/06/2017","1038155 - 0","1500","Revenue","20019520","JTL TRAINING"
"Direct Services","General Contracted Services","D3401","27/06/2017","1038216 - 0","1760","Revenue","20017563","WALSH HAULAGE (OXFORD)"
"Direct Services","Cleaning Materials","B1601","27/06/2017","1038270 - 0","1191.2","Revenue","20007833","GELPACK EXCELSIOR LTD"
"Direct Services","Subscriptions","D3703","27/06/2017","1038274 - 0","945","Revenue","20017215","MILLSTREAM ASSOCIATES LTD"
"Direct Services","Reactive Maintenance & Minor Repairs","B1101","27/06/2017","1038348 - 0","690","Revenue","20011854","OXFORD FABRICATION LTD"
"Direct Services","Grants","D3701","04/04/2017","46293178 - 1","605.49","Revenue","20013076","CUTTESLOWE ALLOTMENT ASSOCIATION"
"Direct Services","Short Courses","A0622","04/04/2017","46293200 - 1","2900","Revenue","20000000","GENERAL EXPENSES"
"Direct Services","Short Courses","A0622","04/04/2017","46293200 - 2","223.43","Revenue","20000000","GENERAL EXPENSES"
"Direct Services","Grants","D3701","04/04/2017","46293224 - 1","710","Revenue","20016131","UPPER WOLVERCOTE ALLOTMENT ASSOCIATION"
"Direct Services","Cycle Scheme 2008/09","A0965","11/04/2017","46293314 - 2","3","Revenue","20014779","CYCLESCHEME LIMITED"
"Direct Services","Consultants Fees","D3411","25/04/2017","46293331 - 3","99","Revenue","20011499","TOPS"
"Direct Services","Consultants Fees","D3411","25/04/2017","46293331 - 4","183","Revenue","20011499","TOPS"
"Direct Services","Consultants Fees","D3411","25/04/2017","46293331 - 5","126","Revenue","20011499","TOPS"
"Direct Services","Consultants Fees","D3411","25/04/2017","46293331 - 6","57","Revenue","20011499","TOPS"
"Direct Services","Consultants Fees","D3411","25/04/2017","46293331 - 7","42","Revenue","20011499","TOPS"
"Direct Services","Consultants Fees","D3411","25/04/2017","46293331 - 9","168","Revenue","20011499","TOPS"
"Direct Services","Consultants Fees","D3411","25/04/2017","46293331 - 12","84","Revenue","20011499","TOPS"
"Direct Services","Consultants Fees","D3411","25/04/2017","46293331 - 13","84","Revenue","20011499","TOPS"
"Direct Services","Consultants Fees","D3411","25/04/2017","46293331 - 15","84","Revenue","20011499","TOPS"
"Direct Services","Consultants Fees","D3411","25/04/2017","46293331 - 17","126","Revenue","20011499","TOPS"
"Direct Services","Consultants Fees","D3411","25/04/2017","46293331 - 18","99","Revenue","20011499","TOPS"
"Direct Services","Consultants Fees","D3411","25/04/2017","46293331 - 20","57","Revenue","20011499","TOPS"
"Direct Services","Business Rates/Council Tax","B1702","11/04/2017","46293373 - 1","6873.5","Revenue","20002401","SOUTH OXFORDSHIRE DISTRICT COUNCIL"
"Direct Services","Temporary Bureau Staffing","A0108","19/04/2017","46293414 - 3","1943.97","Revenue","20018053","REED SPECIALIST RECRUITMENT LTD"
"Direct Services","Temporary Bureau Staffing","A0108","19/04/2017","46293414 - 4","2457.8","Revenue","20018053","REED SPECIALIST RECRUITMENT LTD"
"Direct Services","Temporary Bureau Staffing","A0108","19/04/2017","46293414 - 5","5261.38","Revenue","20018053","REED SPECIALIST RECRUITMENT LTD"
"Direct Services","Temporary Bureau Staffing","A0108","19/04/2017","46293414 - 29","857.72","Revenue","20018053","REED SPECIALIST RECRUITMENT LTD"
"Direct Services","Temporary Bureau Staffing","A0108","19/04/2017","46293414 - 32","1859.79","Revenue","20018053","REED SPECIALIST RECRUITMENT LTD"
"Direct Services","Temporary Bureau Staffing","A0108","19/04/2017","46293414 - 33","4455.32","Revenue","20018053","REED SPECIALIST RECRUITMENT LTD"
"Direct Services","Temporary Bureau Staffing","A0108","19/04/2017","46293414 - 34","4413.17","Revenue","20018053","REED SPECIALIST RECRUITMENT LTD"
"Direct Services","Temporary Bureau Staffing","A0108","19/04/2017","46293414 - 35","5720.56","Revenue","20018053","REED SPECIALIST RECRUITMENT LTD"
"Direct Services","Temporary Bureau Staffing","A0108","19/04/2017","46293414 - 36","4407.92","Revenue","20018053","REED SPECIALIST RECRUITMENT LTD"
"Direct Services","Main Contractor","Y021","19/04/2017","46293414 - 37","13075.63","Capital","20018053","REED SPECIALIST RECRUITMENT LTD"
"Direct Services","Temporary Bureau Staffing","A0108","19/04/2017","46293414 - 38","5396.37","Revenue","20018053","REED SPECIALIST RECRUITMENT LTD"
"Direct Services","Temporary Bureau Staffing","A0108","19/04/2017","46293414 - 39","28351.21","Revenue","20018053","REED SPECIALIST RECRUITMENT LTD"
"Direct Services","Temporary Bureau Staffing","A0108","19/04/2017","46293414 - 41","2130.82","Revenue","20018053","REED SPECIALIST RECRUITMENT LTD"
"Direct Services","Temporary Bureau Staffing","A0108","19/04/2017","46293414 - 42","1236.23","Revenue","20018053","REED SPECIALIST RECRUITMENT LTD"
"Direct Services","Services Maintenance (Planned)","B1103","25/04/2017","46293417 - 2","40","Revenue","20004494","COTSWOLD LIFTS LTD"
"Direct Services","Fire Alarms and Emergency Lighting","B1241","19/04/2017","46293418 - 3","110","Revenue","20002568","PYROTEC SERVICES LTD"
"Direct Services","Fire Alarms and Emergency Lighting","B1241","19/04/2017","46293418 - 4","40","Revenue","20002568","PYROTEC SERVICES LTD"
"Direct Services","Fire Alarms and Emergency Lighting","B1241","19/04/2017","46293418 - 11","51.2","Revenue","20002568","PYROTEC SERVICES LTD"
"Direct Services","Short Courses","A0622","19/04/2017","46293424 - 1","910","Revenue","20000000","GENERAL EXPENSES"
"Direct Services","Vehicle Excise Licences","C2202","13/04/2017","46293438 - 1","230","Revenue","20008465","POST OFFICE LTD"
"Direct Services","Vehicle Excise Licences","C2202","13/04/2017","46293438 - 2","230","Revenue","20008465","POST OFFICE LTD"
"Direct Services","Vehicle Excise Licences","C2202","13/04/2017","46293438 - 3","230","Revenue","20008465","POST OFFICE LTD"
"Direct Services","Vehicle Excise Licences","C2202","13/04/2017","46293438 - 4","650","Revenue","20008465","POST OFFICE LTD"
"Direct Services","Vehicle Excise Licences","C2202","13/04/2017","46293438 - 5","230","Revenue","20008465","POST OFFICE LTD"
"Direct Services","Vehicle Excise Licences","C2202","13/04/2017","46293438 - 6","230","Revenue","20008465","POST OFFICE LTD"
"Direct Services","Vehicle Excise Licences","C2202","13/04/2017","46293438 - 7","165","Revenue","20008465","POST OFFICE LTD"
"Direct Services","Vehicle Excise Licences","C2202","13/04/2017","46293438 - 8","230","Revenue","20008465","POST OFFICE LTD"
"Direct Services","Vehicle Excise Licences","C2202","13/04/2017","46293438 - 9","230","Revenue","20008465","POST OFFICE LTD"
"Direct Services","Vehicle Excise Licences","C2202","13/04/2017","46293438 - 10","145","Revenue","20008465","POST OFFICE LTD"
"Direct Services","Vehicle Excise Licences","C2202","13/04/2017","46293438 - 11","230","Revenue","20008465","POST OFFICE LTD"
"Direct Services","General Contracted Services","D3401","25/04/2017","46293446 - 1","95.8","Revenue","20014436","COBALT TELEPHONE TECHNOLOGIES"
"Direct Services","General Contracted Services","D3401","25/04/2017","46293446 - 2","46.4","Revenue","20014436","COBALT TELEPHONE TECHNOLOGIES"
"Direct Services","General Contracted Services","D3401","25/04/2017","46293446 - 3","74.2","Revenue","20014436","COBALT TELEPHONE TECHNOLOGIES"
"Direct Services","General Contracted Services","D3401","25/04/2017","46293446 - 4","188.8","Revenue","20014436","COBALT TELEPHONE TECHNOLOGIES"
"Direct Services","General Contracted Services","D3401","25/04/2017","46293446 - 5","569.2","Revenue","20014436","COBALT TELEPHONE TECHNOLOGIES"
"Direct Services","General Contracted Services","D3401","25/04/2017","46293446 - 6","376","Revenue","20014436","COBALT TELEPHONE TECHNOLOGIES"
"Direct Services","General Contracted Services","D3401","25/04/2017","46293446 - 7","64.6","Revenue","20014436","COBALT TELEPHONE TECHNOLOGIES"
"Direct Services","General Contracted Services","D3401","25/04/2017","46293446 - 8","437.6","Revenue","20014436","COBALT TELEPHONE TECHNOLOGIES"
"Direct Services","General Contracted Services","D3401","25/04/2017","46293446 - 9","47.4","Revenue","20014436","COBALT TELEPHONE TECHNOLOGIES"
"Direct Services","General Contracted Services","D3401","25/04/2017","46293446 - 10","289.4","Revenue","20014436","COBALT TELEPHONE TECHNOLOGIES"
"Direct Services","General Contracted Services","D3401","25/04/2017","46293446 - 11","123.2","Revenue","20014436","COBALT TELEPHONE TECHNOLOGIES"
"Direct Services","General Contracted Services","D3401","25/04/2017","46293446 - 12","457.8","Revenue","20014436","COBALT TELEPHONE TECHNOLOGIES"
"Direct Services","General Contracted Services","D3401","25/04/2017","46293446 - 13","236","Revenue","20014436","COBALT TELEPHONE TECHNOLOGIES"
"Direct Services","General Contracted Services","D3401","25/04/2017","46293446 - 14","103.2","Revenue","20014436","COBALT TELEPHONE TECHNOLOGIES"
"Direct Services","General Contracted Services","D3401","25/04/2017","46293446 - 15","1093","Revenue","20014436","COBALT TELEPHONE TECHNOLOGIES"
"Direct Services","General Contracted Services","D3401","25/04/2017","46293446 - 16","532.2","Revenue","20014436","COBALT TELEPHONE TECHNOLOGIES"
"Direct Services","General Contracted Services","D3401","25/04/2017","46293446 - 17","598","Revenue","20014436","COBALT TELEPHONE TECHNOLOGIES"
"Direct Services","General Contracted Services","D3401","25/04/2017","46293446 - 18","678.8","Revenue","20014436","COBALT TELEPHONE TECHNOLOGIES"
"Direct Services","Cycle Scheme 2008/09","A0965","03/05/2017","46293532 - 2","3","Revenue","20014779","CYCLESCHEME LIMITED"
"Direct Services","Materials","D3021","09/05/2017","46293588 - 1","6464.18","Revenue","20010966","GEO BROWNS IMPLEMENTS LTD"
"Direct Services","Subscriptions","D3703","09/05/2017","46293646 - 1","3139","Revenue","20009350","APSE"
"Direct Services","Other Licences And Fees","C2203","16/05/2017","46293667 - 1","40000","Revenue","20018045","VEHICLE & OPERATOR SERVICES AGENCY"
"Direct Services","Consultants Fees","D3411","31/05/2017","46293671 - 1","42","Revenue","20011499","TOPS"
"Direct Services","Consultants Fees","D3411","31/05/2017","46293671 - 3","57","Revenue","20011499","TOPS"
"Direct Services","Consultants Fees","D3411","31/05/2017","46293671 - 4","42","Revenue","20011499","TOPS"
"Direct Services","Consultants Fees","D3411","31/05/2017","46293671 - 5","42","Revenue","20011499","TOPS"
"Direct Services","Consultants Fees","D3411","31/05/2017","46293671 - 6","141","Revenue","20011499","TOPS"
"Direct Services","Consultants Fees","D3411","31/05/2017","46293671 - 7","126","Revenue","20011499","TOPS"
"Direct Services","Consultants Fees","D3411","31/05/2017","46293671 - 8","42","Revenue","20011499","TOPS"
"Direct Services","Consultants Fees","D3411","31/05/2017","46293671 - 9","84","Revenue","20011499","TOPS"
"Direct Services","Consultants Fees","D3411","31/05/2017","46293671 - 11","42","Revenue","20011499","TOPS"
"Direct Services","Consultants Fees","D3411","31/05/2017","46293671 - 13","42","Revenue","20011499","TOPS"
"Direct Services","Consultants Fees","D3411","31/05/2017","46293671 - 17","57","Revenue","20011499","TOPS"
"Direct Services","Temporary Bureau Staffing","A0108","16/05/2017","46293675 - 8","25483.39","Revenue","20018053","REED SPECIALIST RECRUITMENT LTD"
"Direct Services","Temporary Bureau Staffing","A0108","16/05/2017","46293675 - 9","7952.51","Revenue","20018053","REED SPECIALIST RECRUITMENT LTD"
"Direct Services","Temporary Bureau Staffing","A0108","16/05/2017","46293675 - 10","1674.13","Revenue","20018053","REED SPECIALIST RECRUITMENT LTD"
"Direct Services","Temporary Bureau Staffing","A0108","16/05/2017","46293675 - 17","2012.16","Revenue","20018053","REED SPECIALIST RECRUITMENT LTD"
"Direct Services","Temporary Bureau Staffing","A0108","16/05/2017","46293675 - 19","3145.5","Revenue","20018053","REED SPECIALIST RECRUITMENT LTD"
"Direct Services","Temporary Bureau Staffing","A0108","16/05/2017","46293675 - 21","1936.2","Revenue","20018053","REED SPECIALIST RECRUITMENT LTD"
"Direct Services","Temporary Bureau Staffing","A0108","16/05/2017","46293675 - 22","2873.43","Revenue","20018053","REED SPECIALIST RECRUITMENT LTD"
"Direct Services","Main Contractor","Y021","16/05/2017","46293675 - 24","5080.21","Capital","20018053","REED SPECIALIST RECRUITMENT LTD"
"Direct Services","Temporary Bureau Staffing","A0108","16/05/2017","46293675 - 25","4057.26","Revenue","20018053","REED SPECIALIST RECRUITMENT LTD"
"Direct Services","Temporary Bureau Staffing","A0108","16/05/2017","46293675 - 28","1599.4","Revenue","20018053","REED SPECIALIST RECRUITMENT LTD"
"Direct Services","Temporary Bureau Staffing","A0108","16/05/2017","46293675 - 29","1493.56","Revenue","20018053","REED SPECIALIST RECRUITMENT LTD"
"Direct Services","Temporary Bureau Staffing","A0108","16/05/2017","46293675 - 31","3815.68","Revenue","20018053","REED SPECIALIST RECRUITMENT LTD"
"Direct Services","Temporary Bureau Staffing","A0108","16/05/2017","46293675 - 32","2261.59","Revenue","20018053","REED SPECIALIST RECRUITMENT LTD"
"Direct Services","Temporary Bureau Staffing","A0108","16/05/2017","46293675 - 33","434.24","Revenue","20018053","REED SPECIALIST RECRUITMENT LTD"
"Direct Services","Temporary Bureau Staffing","A0108","16/05/2017","46293675 - 37","856.8","Revenue","20018053","REED SPECIALIST RECRUITMENT LTD"
"Direct Services","Vehicle Excise Licences","C2202","19/05/2017","46293769 - 1","165","Revenue","20008465","POST OFFICE LTD"
"Direct Services","Vehicle Excise Licences","C2202","19/05/2017","46293769 - 2","150","Revenue","20008465","POST OFFICE LTD"
"Direct Services","Vehicle Excise Licences","C2202","19/05/2017","46293769 - 3","650","Revenue","20008465","POST OFFICE LTD"
"Direct Services","Vehicle Excise Licences","C2202","19/05/2017","46293769 - 4","650","Revenue","20008465","POST OFFICE LTD"
"Direct Services","Vehicle Excise Licences","C2202","19/05/2017","46293769 - 5","650","Revenue","20008465","POST OFFICE LTD"
"Direct Services","Vehicle Excise Licences","C2202","19/05/2017","46293769 - 6","650","Revenue","20008465","POST OFFICE LTD"
"Direct Services","Vehicle Excise Licences","C2202","19/05/2017","46293769 - 7","240","Revenue","20008465","POST OFFICE LTD"
"Direct Services","Vehicle Excise Licences","C2202","19/05/2017","46293769 - 8","350","Revenue","20008465","POST OFFICE LTD"
"Direct Services","Vehicle Excise Licences","C2202","19/05/2017","46293769 - 9","350","Revenue","20008465","POST OFFICE LTD"
"Direct Services","Vehicle Excise Licences","C2202","19/05/2017","46293769 - 10","240","Revenue","20008465","POST OFFICE LTD"
"Direct Services","Vehicle Excise Licences","C2202","19/05/2017","46293769 - 11","240","Revenue","20008465","POST OFFICE LTD"
"Direct Services","Vehicle Excise Licences","C2202","19/05/2017","46293769 - 12","240","Revenue","20008465","POST OFFICE LTD"
"Direct Services","Vehicle Excise Licences","C2202","19/05/2017","46293769 - 13","240","Revenue","20008465","POST OFFICE LTD"
"Direct Services","Vehicle Excise Licences","C2202","19/05/2017","46293769 - 14","150","Revenue","20008465","POST OFFICE LTD"
"Direct Services","Vehicle Excise Licences","C2202","19/05/2017","46293769 - 15","165","Revenue","20008465","POST OFFICE LTD"
"Direct Services","General Contracted Services","D3401","23/05/2017","46293809 - 1","98.98","Revenue","20014436","COBALT TELEPHONE TECHNOLOGIES"
"Direct Services","General Contracted Services","D3401","23/05/2017","46293809 - 2","67.78","Revenue","20014436","COBALT TELEPHONE TECHNOLOGIES"
"Direct Services","General Contracted Services","D3401","23/05/2017","46293809 - 3","132.18","Revenue","20014436","COBALT TELEPHONE TECHNOLOGIES"
"Direct Services","General Contracted Services","D3401","23/05/2017","46293809 - 4","144.38","Revenue","20014436","COBALT TELEPHONE TECHNOLOGIES"
"Direct Services","General Contracted Services","D3401","23/05/2017","46293809 - 5","493.98","Revenue","20014436","COBALT TELEPHONE TECHNOLOGIES"
"Direct Services","General Contracted Services","D3401","23/05/2017","46293809 - 6","313.98","Revenue","20014436","COBALT TELEPHONE TECHNOLOGIES"
"Direct Services","General Contracted Services","D3401","23/05/2017","46293809 - 7","71.78","Revenue","20014436","COBALT TELEPHONE TECHNOLOGIES"
"Direct Services","General Contracted Services","D3401","23/05/2017","46293809 - 8","405.78","Revenue","20014436","COBALT TELEPHONE TECHNOLOGIES"
"Direct Services","General Contracted Services","D3401","23/05/2017","46293809 - 9","42.78","Revenue","20014436","COBALT TELEPHONE TECHNOLOGIES"
"Direct Services","General Contracted Services","D3401","23/05/2017","46293809 - 10","263.58","Revenue","20014436","COBALT TELEPHONE TECHNOLOGIES"
"Direct Services","General Contracted Services","D3401","23/05/2017","46293809 - 11","118.78","Revenue","20014436","COBALT TELEPHONE TECHNOLOGIES"
"Direct Services","General Contracted Services","D3401","23/05/2017","46293809 - 12","344.38","Revenue","20014436","COBALT TELEPHONE TECHNOLOGIES"
"Direct Services","General Contracted Services","D3401","23/05/2017","46293809 - 13","213.58","Revenue","20014436","COBALT TELEPHONE TECHNOLOGIES"
"Direct Services","General Contracted Services","D3401","23/05/2017","46293809 - 14","42.78","Revenue","20014436","COBALT TELEPHONE TECHNOLOGIES"
"Direct Services","General Contracted Services","D3401","23/05/2017","46293809 - 15","991.38","Revenue","20014436","COBALT TELEPHONE TECHNOLOGIES"
"Direct Services","General Contracted Services","D3401","23/05/2017","46293809 - 16","458.38","Revenue","20014436","COBALT TELEPHONE TECHNOLOGIES"
"Direct Services","General Contracted Services","D3401","23/05/2017","46293809 - 17","538.78","Revenue","20014436","COBALT TELEPHONE TECHNOLOGIES"
"Direct Services","General Contracted Services","D3401","23/05/2017","46293809 - 18","625.98","Revenue","20014436","COBALT TELEPHONE TECHNOLOGIES"
"Direct Services","Postage & Carriage","D3501","31/05/2017","46293814 - 1","500","Revenue","20009008","NEOPOST LTD RCB CREDIFON  A/C"
"Direct Services","Temporary Bureau Staffing","A0108","13/06/2017","46294016 - 2","2361.06","Revenue","20018053","REED SPECIALIST RECRUITMENT LTD"
"Direct Services","Temporary Bureau Staffing","A0108","13/06/2017","46294016 - 3","2187.27","Revenue","20018053","REED SPECIALIST RECRUITMENT LTD"
"Direct Services","Temporary Bureau Staffing","A0108","13/06/2017","46294016 - 4","9056.72","Revenue","20018053","REED SPECIALIST RECRUITMENT LTD"
"Direct Services","Temporary Bureau Staffing","A0108","13/06/2017","46294016 - 5","4316.34","Revenue","20018053","REED SPECIALIST RECRUITMENT LTD"
"Direct Services","Temporary Bureau Staffing","A0108","13/06/2017","46294016 - 6","2085.09","Revenue","20018053","REED SPECIALIST RECRUITMENT LTD"
"Direct Services","Temporary Bureau Staffing","A0108","13/06/2017","46294016 - 27","1748.9","Revenue","20018053","REED SPECIALIST RECRUITMENT LTD"
"Direct Services","Temporary Bureau Staffing","A0108","13/06/2017","46294016 - 28","2472.04","Revenue","20018053","REED SPECIALIST RECRUITMENT LTD"
"Direct Services","Temporary Bureau Staffing","A0108","13/06/2017","46294016 - 29","2173.84","Revenue","20018053","REED SPECIALIST RECRUITMENT LTD"
"Direct Services","Temporary Bureau Staffing","A0108","13/06/2017","46294016 - 30","1318.25","Revenue","20018053","REED SPECIALIST RECRUITMENT LTD"
"Direct Services","Temporary Bureau Staffing","A0108","13/06/2017","46294016 - 31","3992.7","Revenue","20018053","REED SPECIALIST RECRUITMENT LTD"
"Direct Services","Temporary Bureau Staffing","A0108","13/06/2017","46294016 - 32","4218.18","Revenue","20018053","REED SPECIALIST RECRUITMENT LTD"
"Direct Services","Temporary Bureau Staffing","A0108","13/06/2017","46294016 - 33","27698.86","Revenue","20018053","REED SPECIALIST RECRUITMENT LTD"
"Direct Services","Temporary Bureau Staffing","A0108","13/06/2017","46294016 - 34","3383.85","Revenue","20018053","REED SPECIALIST RECRUITMENT LTD"
"Direct Services","Temporary Bureau Staffing","A0108","13/06/2017","46294016 - 35","3457.99","Revenue","20018053","REED SPECIALIST RECRUITMENT LTD"
"Direct Services","Temporary Bureau Staffing","A0108","13/06/2017","46294016 - 36","5355.25","Revenue","20018053","REED SPECIALIST RECRUITMENT LTD"
"Direct Services","Temporary Bureau Staffing","A0108","13/06/2017","46294016 - 37","2831.32","Revenue","20018053","REED SPECIALIST RECRUITMENT LTD"
"Direct Services","Consultants Fees","D3411","31/05/2017","46294052 - 1","141","Revenue","20011499","TOPS"
"Direct Services","Consultants Fees","D3411","31/05/2017","46294052 - 2","126","Revenue","20011499","TOPS"
"Direct Services","Consultants Fees","D3411","31/05/2017","46294052 - 4","141","Revenue","20011499","TOPS"
"Direct Services","Consultants Fees","D3411","31/05/2017","46294052 - 5","42","Revenue","20011499","TOPS"
"Direct Services","Consultants Fees","D3411","31/05/2017","46294052 - 6","57","Revenue","20011499","TOPS"
"Direct Services","Consultants Fees","D3411","31/05/2017","46294052 - 7","84","Revenue","20011499","TOPS"
"Direct Services","Consultants Fees","D3411","31/05/2017","46294052 - 8","99","Revenue","20011499","TOPS"
"Direct Services","Consultants Fees","D3411","31/05/2017","46294052 - 9","84","Revenue","20011499","TOPS"
"Direct Services","Consultants Fees","D3411","31/05/2017","46294052 - 10","183","Revenue","20011499","TOPS"
"Direct Services","Consultants Fees","D3411","31/05/2017","46294052 - 11","84","Revenue","20011499","TOPS"
"Direct Services","Consultants Fees","D3411","31/05/2017","46294052 - 13","42","Revenue","20011499","TOPS"
"Direct Services","Consultants Fees","D3411","31/05/2017","46294052 - 15","285","Revenue","20011499","TOPS"
"Direct Services","General Contracted Services","D3401","13/06/2017","46294071 - 1","1074","Revenue","20000000","GENERAL EXPENSES"
"Direct Services","Short Courses","A0622","20/06/2017","46294124 - 1","635","Revenue","20000000","GENERAL EXPENSES"
"Direct Services","Vehicle Excise Licences","C2202","16/06/2017","46294151 - 1","240","Revenue","20008465","POST OFFICE LTD"
"Direct Services","Vehicle Excise Licences","C2202","16/06/2017","46294151 - 2","240","Revenue","20008465","POST OFFICE LTD"
"Direct Services","Vehicle Excise Licences","C2202","16/06/2017","46294151 - 3","650","Revenue","20008465","POST OFFICE LTD"
"Direct Services","Vehicle Excise Licences","C2202","16/06/2017","46294151 - 4","650","Revenue","20008465","POST OFFICE LTD"
"Direct Services","Vehicle Excise Licences","C2202","16/06/2017","46294151 - 5","650","Revenue","20008465","POST OFFICE LTD"
"Direct Services","Vehicle Excise Licences","C2202","16/06/2017","46294151 - 6","240","Revenue","20008465","POST OFFICE LTD"
"Direct Services","Vehicle Excise Licences","C2202","16/06/2017","46294151 - 7","240","Revenue","20008465","POST OFFICE LTD"
"Direct Services","Vehicle Excise Licences","C2202","16/06/2017","46294151 - 8","240","Revenue","20008465","POST OFFICE LTD"
"Direct Services","Vehicle Excise Licences","C2202","16/06/2017","46294151 - 9","240","Revenue","20008465","POST OFFICE LTD"
"Direct Services","Vehicle Excise Licences","C2202","16/06/2017","46294151 - 10","240","Revenue","20008465","POST OFFICE LTD"
"Direct Services","Vehicle Excise Licences","C2202","16/06/2017","46294151 - 11","240","Revenue","20008465","POST OFFICE LTD"
"Direct Services","Vehicle Excise Licences","C2202","16/06/2017","46294151 - 12","240","Revenue","20008465","POST OFFICE LTD"
"Direct Services","Vehicle Excise Licences","C2202","16/06/2017","46294151 - 13","240","Revenue","20008465","POST OFFICE LTD"
"Direct Services","Vehicle Excise Licences","C2202","16/06/2017","46294151 - 14","240","Revenue","20008465","POST OFFICE LTD"
"Direct Services","Vehicle Excise Licences","C2202","16/06/2017","46294151 - 15","240","Revenue","20008465","POST OFFICE LTD"
"Direct Services","Services - General Fees","K9401","20/06/2017","46294170 - 1","665","Revenue","20000000","GENERAL EXPENSES"
"Direct Services","Grants","D3701","20/06/2017","46294171 - 1","500","Revenue","20000019","GRANT PAYMENTS"
"Direct Services","Grants","D3701","27/06/2017","46294232 - 1","1000","Revenue","20000019","GRANT PAYMENTS"
"Direct Services","Postage & Carriage","D3501","27/06/2017","46294237 - 1","416.67","Revenue","20009008","NEOPOST LTD RCB CREDIFON  A/C"
"Direct Services","Materials","D3021","27/06/2017","46294242 - 1","837.14","Revenue","20002168","DENNIS EAGLE LTD"
"Direct Services","Materials","D3021","27/06/2017","46294244 - 1","1344","Revenue","20002005","HANSON AGGREGATES"
"Direct Services","General Contracted Services","D3401","27/06/2017","46294283 - 1","117.99","Revenue","20014436","COBALT TELEPHONE TECHNOLOGIES"
"Direct Services","General Contracted Services","D3401","27/06/2017","46294283 - 2","60.16","Revenue","20014436","COBALT TELEPHONE TECHNOLOGIES"
"Direct Services","General Contracted Services","D3401","27/06/2017","46294283 - 3","114.96","Revenue","20014436","COBALT TELEPHONE TECHNOLOGIES"
